Workbook

Sheet Data
A1: Age_Myr | B1: Sea_Level | D1: Notes | E1: Begin376 | F1: 376-Center | G1: Oxy Avr | H1: 1.13 Avr | I1: 3.38 Avr | J1: 3-9 BP | K1: 1-9 BP | M1: 3.38-myr Model | N1: Lag (myr) | O1: Cycle # | P1: Actual | Q1: 1-9 BP Correl | S1: Notes | T1: Begin 1.13 | U1: 1.13-Center | V1: Oxy Avr | W1: 3.38 Avr | X1: 10.14 Avr | Y1: 3-9 BP | Z1: 1-9 BP | AB1: 10.14-myr Model | AC1: Lag (myr) | AD1: Cycle # | AE1: Actual | AF1: 1-9 BP Correl | AH1: Notes | AI1: Begin 3.38 | AJ1: 3.38-Center | AK1: Oxy Avr | AL1: 10.1 Avr | AM1: 30.4 Avr | AN1: 3-9 BP | AO1: 1-9 BP | AQ1: 30.4-myr Model | AR1: Lag (myr) | AS1: Cycle # | AT1: Actual | AU1: 1-9 BP Correl | AW1: Notes | AX1: Begin 10.1 | AY1: 10.1-Center | AZ1: Oxy Avr | BA1: 30.4 Avr | BB1: 91.3 Avr | BC1: 3-9 BP | BD1: 1-9 BP | BF1: 91.3-myr Model | BG1: Lag (myr) | BH1: Cycle # | BI1: Actual | BJ1: 1-9 BP Correl
A2: -591 | B2: -46 | D2: Δt | E2: =F2 - (0.375854163666978/2) -> -593.038372 | F2: -592.8504449 | M2: =SIN((2*PI()*(F2+N2)/3.3826874730028) + 3.205610299) -> -0.7630638569 | N2: 1.313 | O2: -4 | P2: -0.143 | Q2: =CORREL(K11:K792,M15:M796) -> 0.1001056487 | S2: Δt | T2: =U2 - (1.12756249100093/2) -> -603.5622886 | U2: -602.9985073 | AB2: =SIN((2*PI()*(U2+AC2)/10.1480624190084) + 4.210129444) -> -0.270848495 | AC2: 2.98 | AD2: -4 | AE2: -0.122 | AF2: =CORREL(Z17:Z274,AB21:AB278) -> 0.1309285681 | AH2: Δt | AI2: =AJ2 - (3.3826874730028/2) -> -604.6898511 | AJ2: -602.9985073 | AQ2: =SIN((2*PI()*(AJ2+AR2)/30.4441872570252) + 0.356178951) -> 0.7194768542 | AR2: 3.72 | AS2: -4 | AU2: =CORREL(AO10:AO93,AQ14:AQ97) -> -0.2289812636 | AW2: Δt | AX2: =AY2 - (10.1480624190084/2) -> -638.5167262 | AY2: -633.442695 | BF2: =SIN((2*PI()*(AY2+BG2)/91.3325617710757) + 1.165923889) -> 0.2004176188 | BG2: -19.9 | BH2: -4 | BJ2: =CORREL(BD10:BD60,BF14:BF64) -> -0.5108540853
A3: -590.9000244 | B3: -46 | D3: 376-kyr bins | E3: =E2 + 0.375854163666978 -> -592.6625178 | F3: =F2 + 0.375854163666978 -> -592.4745907 | M3: =SIN((2*PI()*(F3+N3)/3.3826874730028) + 3.205610299) -> -0.9999893082 | N3: =N2 -> 1.313 | O3: -3 | P3: -0.076 | Q3: =CORREL(K11:K792,M14:M795) -> 0.1499755003 | S3: 1.13-myr bins | T3: =T2 + 1.12756249100093 -> -602.4347261 | U3: =U2 + 1.12756249100093 -> -601.8709448 | AB3: =SIN((2*PI()*(U3+AC3)/10.1480624190084) + 4.210129444) -> -0.8262434716 | AC3: =AC2 -> 2.98 | AD3: -3 | AE3: -0.065 | AF3: =CORREL(Z17:Z274,AB20:AB277) -> 0.09968788421 | AH3: 3.38-myr bins | AI3: =AI2 + 3.3826874730028 -> -601.3071636 | AJ3: =AJ2 + 3.3826874730028 -> -599.6158198 | AQ3: =SIN((2*PI()*(AJ3+AR3)/30.4441872570252) + 0.356178951) -> 0.1047246972 | AR3: =AR2 -> 3.72 | AS3: -3 | AU3: =CORREL(AO10:AO93,AQ13:AQ96) -> -0.1229974992 | AW3: 10.1-myr bins | AX3: =AX2 + 10.1480624190084 -> -628.3686638 | AY3: =AY2 + 10.1480624190084 -> -623.2946326 | BF3: =SIN((2*PI()*(AY3+BG3)/91.3325617710757) + 1.165923889) -> 0.7832746111 | BG3: =BG2 -> -19.9 | BH3: -3 | BJ3: =CORREL(BD10:BD60,BF13:BF63) -> -0.2712287857
A4: -590.7999878 | B4: -45 | E4: =E3 + 0.375854163666978 -> -592.2866637 | F4: =F3 + 0.375854163666978 -> -592.0987366 | M4: -0.7690086486 | N4: =N3 -> 1.313 | O4: -2 | P4: 0.026 | Q4: =CORREL(K11:K792,M13:M794) -> 0.1297115452 | T4: =T3 + 1.12756249100093 -> -601.3071636 | U4: =U3 + 1.12756249100093 -> -600.7433823 | AB4: -0.9950299451 | AC4: =AC3 -> 2.98 | AD4: -2 | AE4: 0.023 | AF4: =CORREL(Z17:Z274,AB19:AB276) -> 0.01755428324 | AI4: =AI3 + 3.3826874730028 -> -597.9244761 | AJ4: =AJ3 + 3.3826874730028 -> -596.2331324 | AQ4: -0.5590293094 | AR4: =AR3 -> 3.72 | AS4: -2 | AU4: =CORREL(AO10:AO93,AQ12:AQ95) -> 0.04060545412 | AX4: =AX3 + 10.1480624190084 -> -618.2206014 | AY4: =AY3 + 10.1480624190084 -> -613.1465702 | BF4: 0.9996287078 | BG4: =BG3 -> -19.9 | BH4: -2 | BJ4: =CORREL(BD10:BD60,BF12:BF62) -> 0.08744038809
A5: -590.7000122 | B5: -45 | E5: -591.9108095 | F5: -591.7228824 | M5: -0.1782002957 | N5: 1.313 | O5: -1 | P5: 0.116 | Q5: =CORREL(K11:K792,M12:M793) -> 0.04879351359 | T5: -600.1796011 | U5: -599.6158198 | AB5: -0.6982308488 | AC5: 2.98 | AD5: -1 | AE5: 0.1 | AF5: =CORREL(Z17:Z274,AB18:AB275) -> -0.0776537232 | AI5: -594.5417886 | AJ5: =AJ4 + 3.3826874730028 -> -592.8504449 | AQ5: -0.9612072893 | AR5: 3.72 | AS5: -1 | AU5: =CORREL(AO10:AO93,AQ11:AQ94) -> 0.1872105658 | AX5: -608.072539 | AY5: -602.9985077 | BF5: 0.7482454225 | BG5: -19.9 | BH5: -1 | BJ5: =CORREL(BD10:BD60,BF11:BF61) -> 0.4142387264
A6: -590.5999756 | B6: -44 | D6: Last Data Pt. | E6: -591.5349553 | F6: -591.3470282 | M6: =SIN((2*PI()*(F6+N6)/3.3826874730028) + 3.205610299) -> 0.495989956 | N6: 1.313 | O6: 0 | P6: 0.152 | Q6: =CORREL(K11:K792,M11:M792) -> -0.05501390539 | S6: Last Data Pt. | T6: -599.0520386 | U6: =U5 + 1.12756249100093 -> -598.4882574 | AB6: =SIN((2*PI()*(U6+AC6)/10.1480624190084) + 4.210129444) -> -0.07472177834 | AC6: 2.98 | AD6: 0 | AE6: 0.13 | AF6: =CORREL(Z17:Z274,AB17:AB274) -> -0.1309627462 | AH6: Last Data Pt. | AI6: -591.1591012 | AJ6: -589.4677574 | AK6: =AVERAGEIFS(Sea_Level,Age_Myr,">"&AI6,Age_Myr,"<="&AI7) -> -37.42424242 | AQ6: -0.9136256959 | AR6: 3.72 | AS6: 0 | AU6: =CORREL(AO10:AO93,AQ10:AQ93) -> 0.2441358325 | AW6: Last Data Pt. | AX6: -597.9244765 | AY6: -592.8504453 | AZ6: =AVERAGEIFS(Sea_Level,Age_Myr,">"&AX6,Age_Myr,"<="&AX7) -> -37.42424242 | BF6: 0.1467497881 | BG6: -19.9 | BH6: 0 | BJ6: =CORREL(BD10:BD60,BF10:BF60) -> 0.5461408613
A7: -590.5 | B7: -44 | E7: -591.1591012 | F7: =F6 + 0.375854163666978 -> -590.9711741 | G7: =AVERAGEIFS(Sea_Level,Age_Myr,">"&E7,Age_Myr,"<="&E8) -> -45.66666667 | M7: 0.938100995 | N7: 1.313 | O7: 1 | P7: 0.116 | Q7: =CORREL(K11:K792,M10:M791) -> -0.1330136827 | T7: -597.9244761 | U7: -597.3606949 | AB7: 0.5837504426 | AC7: 2.98 | AD7: 1 | AE7: 0.1 | AF7: =CORREL(Z17:Z274,AB16:AB273) -> -0.1079031778 | AI7: -587.7764137 | AJ7: -586.08507 | AK7: -16.20588235 | AQ7: -0.4385484855 | AR7: 3.72 | AS7: 1 | AU7: =CORREL(AO10:AO93,AQ9:AQ92) -> 0.1869223531 | AX7: -587.7764141 | AY7: -582.7023829 | AZ7: -2.801980198 | BF7: -0.523411703 | BG7: -19.9 | BH7: 1 | BJ7: =CORREL(BD10:BD60,BF9:BF59) -> 0.4144478846
A8: -590.4000244 | B8: -43 | E8: -590.783247 | F8: =F7 + 0.375854163666978 -> -590.5953199 | G8: -44.33333333 | M8: 0.9412641526 | N8: 1.313 | O8: 2 | P8: 0.026 | Q8: =CORREL(K11:K792,M9:M790) -> -0.1486123711 | T8: -596.7969136 | U8: -596.2331324 | AB8: 0.9690793438 | AC8: 2.98 | AD8: 2 | AE8: 0.023 | AF8: =CORREL(Z17:Z274,AB15:AB272) -> -0.03100230559 | AI8: -584.3937262 | AJ8: -582.7023825 | AK8: 9.484848485 | AQ8: 0.2417304351 | AR8: 3.72 | AS8: 2 | AU8: =CORREL(AO10:AO93,AQ8:AQ91) -> 0.04421692638 | AX8: -577.6283517 | AY8: -572.5543205 | AZ8: 59.94117647 | BF8: -0.9486630412 | BG8: -19.9 | BH8: 2 | BJ8: =CORREL(BD10:BD60,BF8:BF58) -> 0.09798580819
A9: -590.2999878 | B9: -43 | D9: Oxy Observ | E9: -590.4073928 | F9: -590.2194658 | G9: -42.5 | M9: 0.5039993522 | N9: 1.313 | O9: 3 | P9: -0.076 | Q9: =CORREL(K11:K792,M8:M789) -> -0.0947119271 | S9: Oxy Observ | T9: -595.6693511 | U9: -595.1055699 | AB9: 0.9009652499 | AC9: 2.98 | AD9: 3 | AE9: -0.065 | AF9: =CORREL(Z17:Z274,AB14:AB271) -> 0.05717483469 | AH9: Oxy Observ | AI9: -581.0110387 | AJ9: -579.319695 | AK9: -1.323529412 | AQ9: 0.8089009987 | AR9: 3.72 | AS9: 3 | AU9: =CORREL(AO10:AO93,AQ7:AQ90) -> -0.1212298684 | AW9: Oxy Observ | AX9: -567.4802893 | AY9: -562.4062581 | AZ9: 89.55445545 | BF9: -0.9300243993 | BG9: -19.9 | BH9: 3 | BJ9: =CORREL(BD10:BD60,BF7:BF57) -> -0.2654235625
A10: -590.2000122 | B10: -42 | D10: =COUNT(G2:G10000) -> 1573 | E10: -590.0315387 | F10: -589.8436116 | G10: -40.25 | M10: -0.1690923464 | N10: 1.313 | O10: 4 | P10: -0.143 | Q10: =CORREL(K11:K792,M7:M788) -> 0.003377953108 | S10: =COUNT(V2:V10000) -> 525 | T10: -594.5417886 | U10: -593.9780074 | AB10: 0.4112795025 | AC10: 2.98 | AD10: 4 | AE10: -0.122 | AF10: =CORREL(Z17:Z274,AB13:AB270) -> 0.1127670284 | AH10: =COUNT(AK2:AK10000) -> 175 | AI10: -577.6283513 | AJ10: -575.9370075 | AK10: 44.35294118 | AL10: =AVERAGE(AK9:AK11) -> 39.38235294 | AM10: =AVERAGE(AK6:AK14) -> 33.06714201 | AN10: =AL10-AM10 -> 6.315210933 | AO10: =AK10-AM10 -> 11.28579917 | AQ10: 0.997577795 | AR10: 3.72 | AS10: 4 | AU10: =CORREL(AO10:AO93,AQ6:AQ89) -> -0.2298824987 | AW10: =COUNT(AZ2:AZ10000) -> 59 | AX10: -557.3322269 | AY10: -552.2581956 | AZ10: 145.7058824 | BA10: =AVERAGE(AZ9:AZ11) -> 130.7369443 | BB10: =AVERAGE(AZ6:AZ14) -> 112.322995 | BC10: =BA10-BB10 -> 18.41394924 | BD10: =AZ10-BB10 -> 33.38288731 | BF10: -0.4762170048 | BG10: -19.9 | BH10: 4 | BJ10: =CORREL(BD10:BD60,BF6:BF56) -> -0.5127472848
A11: -590.0999756 | B11: -42 | E11: -589.6556845 | F11: -589.4677574 | G11: -38.5 | H11: =AVERAGE(G10:G12) -> -38.47222222 | I11: =AVERAGE(G7:G15) -> -37.82407407 | J11: =H11-I11 -> -0.6481481481 | K11: =G11-I11 -> -0.6759259259 | M11: -0.7630638569 | N11: 1.313 | T11: -593.4142261 | U11: -592.8504449 | AB11: -0.270848495 | AC11: 2.98 | AI11: -574.2456638 | AJ11: -572.5543201 | AK11: 75.11764706 | AL11: 59.94117647 | AM11: 48.996633 | AN11: 10.94454347 | AO11: 26.12101406 | AQ11: 0.7194768542 | AR11: 3.72 | AX11: -547.1841644 | AY11: -542.1101332 | AZ11: 156.950495 | BA11: 161.2024526 | BB11: 138.3481309 | BC11: 22.85432171 | BD11: 18.60236416 | BF11: 0.2004176188 | BG11: -19.9
A12: -590 | B12: -41 | D12: BP Observ | E12: -589.2798303 | F12: -589.0919033 | G12: -36.66666667 | H12: -36.47222222 | I12: -35.56481481 | J12: -0.9074074074 | K12: -1.101851852 | M12: -0.9999893082 | N12: 1.313 | Q12: 87 cycles | S12: BP Observ | T12: -592.2866637 | U12: -591.7228824 | AB12: -0.8262434716 | AC12: 2.98 | AF12: 29 cycles | AH12: BP Observ | AI12: -570.8629763 | AJ12: -569.1716326 | AK12: 60.35294118 | AL12: 63.74509804 | AM12: 65.25480293 | AN12: -1.509704892 | AO12: -4.901861755 | AQ12: 0.1047246972 | AR12: 3.72 | AU12: 9.3 cycles | AW12: BP Observ | AX12: -537.036102 | AY12: -531.9620708 | AZ12: 180.9509804 | BA12: 177.9935611 | BB12: 160.4742768 | BC12: 17.51928428 | BD12: 20.47670355 | BF12: 0.7832746111 | BG12: -19.9 | BJ12: 5.67 cycles
A13: -589.9000244 | B13: -40 | D13: =COUNT(K2:K10000) -> 1565 | E13: -588.9039762 | F13: -588.7160491 | G13: -34.25 | H13: -33.88888889 | I13: -33.22222222 | J13: -0.6666666667 | K13: -1.027777778 | M13: -0.7690086486 | N13: 1.313 | Q13: 99.9% | S13: =COUNT(Z2:Z10000) -> 517 | T13: -591.1591012 | U13: -590.5953199 | V13: =AVERAGEIFS(Sea_Level,Age_Myr,">"&T13,Age_Myr,"<="&T14) -> -44 | AB13: -0.9950299451 | AC13: 2.98 | AF13: 85% | AH13: =COUNT(AO2:AO10000) -> 167 | AI13: -567.4802889 | AJ13: -565.7889451 | AK13: 55.76470588 | AL13: 74.53416518 | AM13: 79.69112696 | AN13: -5.156961775 | AO13: -23.92642107 | AQ13: =SIN((2*PI()*(AJ13+AR13)/30.4441872570252) + 0.356178951) -> -0.5590293094 | AR13: 3.72 | AU13: 90% | AW13: =COUNT(BD2:BD10000) -> 51 | AX13: -526.8880396 | AY13: -521.8140084 | AZ13: 196.0792079 | BA13: 199.6603896 | BB13: 170.4005048 | BC13: 29.25988481 | BD13: 25.67870316 | BF13: 0.9996287078 | BG13: -19.9 | BJ13: 99.9%
A14: -589.7999878 | B14: -40 | E14: -588.528122 | F14: -588.3401949 | G14: -30.75 | H14: -30.83333333 | I14: -30.91666667 | J14: 0.08333333333 | K14: 0.1666666667 | M14: -0.1782002957 | N14: 1.313 | Q14: Cells 11 to 792 | T14: -590.0315387 | U14: -589.4677574 | V14: -38.63636364 | AB14: -0.6982308488 | AC14: 2.98 | AI14: -564.0976014 | AJ14: -562.4062576 | AK14: 107.4848485 | AL14: 89.73024361 | AM14: 98.45910081 | AN14: -8.728857199 | AO14: 9.025747673 | AQ14: -0.9612072893 | AR14: 3.72 | AX14: -516.7399772 | AY14: -511.665946 | AZ14: 221.9509804 | BA14: 204.9440562 | BB14: 168.9086154 | BC14: 36.0354408 | BD14: 53.04236502 | BF14: =SIN((2*PI()*(AY14+BG14)/91.3325617710757) + 1.165923889) -> 0.7482454225 | BG14: -19.9
A15: -589.7000122 | B15: -40 | D15: # Interpolated | E15: -588.1522679 | F15: -587.9643408 | G15: -27.5 | H15: -27.86111111 | I15: -28.66666667 | J15: 0.8055555556 | K15: 1.166666667 | M15: 0.495989956 | N15: 1.313 | S15: # Interpolated | T15: -588.9039762 | U15: -588.3401949 | V15: -30.83333333 | AB15: -0.07472177834 | AC15: 2.98 | AF15: Cells 17 to 274 | AH15: # Interpolated | AI15: -560.7149139 | AJ15: -559.0235702 | AK15: 105.9411765 | AL15: 114.5145573 | AM15: 109.9956427 | AN15: 4.518914637 | AO15: -4.054466231 | AQ15: -0.9136256959 | AR15: 3.72 | AU15: Cells 10 to 93 | AW15: # Interpolated | AX15: -506.5919148 | AY15: -501.5178836 | AZ15: 196.8019802 | BA15: 205.0287646 | BB15: 165.1338144 | BC15: 39.89495028 | BD15: 31.66816584 | BF15: 0.1467497881 | BG15: -19.9 | BJ15: Cells 10 to 60
A16: -589.5999756 | B16: -39 | D16: =COUNTA(D18:D10000) -> 0 | E16: -587.7764137 | F16: -587.5884866 | G16: -25.33333333 | H16: -25.36111111 | I16: -26.22222222 | J16: 0.8611111111 | K16: 0.8888888889 | M16: =SIN((2*PI()*(F16+N16)/3.3826874730028) + 3.205610299) -> 0.938100995 | N16: 1.313 | Q16: from 589.468 Ma | S16: =COUNTA(S18:S10000) -> 0 | T16: -587.7764137 | U16: -587.2126324 | V16: -23.27272727 | AB16: 0.5837504426 | AC16: 2.98 | AF16: Lead = 2.98-myr | AH16: =COUNTA(AH18:AH10000) -> 0 | AI16: -557.3322264 | AJ16: -555.6408827 | AK16: 130.1176471 | AL16: 125.1568627 | AM16: 119.3845316 | AN16: 5.772331155 | AO16: 10.73311547 | AQ16: -0.4385484855 | AR16: 3.72 | AU16: Lead = 3.72-myr | AW16: =COUNTA(AW18:AW10000) -> 0 | AX16: -496.4438523 | AY16: -491.3698211 | AZ16: 196.3333333 | BA16: 180.8041804 | BB16: 163.8048815 | BC16: 16.99929895 | BD16: 32.52845186 | BF16: -0.523411703 | BG16: -19.9 | BJ16: Lag = -19.9-myr
A17: -589.5 | B17: -39 | E17: -587.4005595 | F17: -587.2126324 | G17: -23.25 | H17: -23.44444444 | I17: -23.62962963 | J17: 0.1851851852 | K17: 0.3796296296 | M17: 0.9412641526 | N17: 1.313 | Q17: to 295.926 Ma | T17: -586.6488512 | U17: -586.08507 | V17: -16.90909091 | W17: =AVERAGE(V16:V18) -> -16.42171717 | X17: =AVERAGE(V13:V21) -> -14.92003367 | Y17: =W17-X17 -> -1.501683502 | Z17: =V17-X17 -> -1.989057239 | AB17: 0.9690793438 | AC17: 2.98 | AF17: from 586.085 Ma | AI17: -553.949539 | AJ17: -552.2581952 | AK17: 139.4117647 | AL17: =AVERAGE(AK16:AK18) -> 145.7058824 | AM17: =AVERAGE(AK13:AK21) -> 130.7668845 | AN17: =AL17-AM17 -> 14.93899782 | AO17: =AK17-AM17 -> 8.644880174 | AQ17: 0.2417304351 | AR17: 3.72 | AU17: from 575.937 Ma | AX17: -486.2957899 | AY17: -481.2217587 | AZ17: 149.2772277 | BA17: 140.5793373 | BB17: 160.0053172 | BC17: -19.42597985 | BD17: -10.72808948 | BF17: -0.9486630412 | BG17: -19.9 | BJ17: from 552.258 Ma
A18: -589.4000244 | B18: -38 | E18: -587.0247054 | F18: -586.8367783 | G18: -21.75 | H18: -21.66666667 | I18: -21.18518519 | J18: -0.4814814815 | K18: -0.5648148148 | M18: 0.5039993522 | N18: 1.313 | Q18: Lead = 1.313-myr | T18: -585.5212887 | U18: -584.9575075 | V18: -9.083333333 | W18: -8.482323232 | X18: -9.0496633 | Y18: 0.5673400673 | Z18: -0.03367003367 | AB18: 0.9009652499 | AC18: 2.98 | AF18: to 296.302 Ma | AI18: -550.5668515 | AJ18: -548.8755078 | AK18: 167.5882353 | AL18: 151.7272727 | AM18: 143.2668845 | AN18: 8.460388196 | AO18: 24.32135076 | AQ18: 0.8089009987 | AR18: 3.72 | AU18: to 295.174 Ma | AX18: -476.1477275 | AY18: -471.0736963 | AZ18: 76.12745098 | BA18: 112.3791173 | BB18: 156.0757242 | BC18: -43.69660692 | BD18: -79.94827326 | BF18: -0.9300243993 | BG18: -19.9 | BJ18: to 44.855 Ma
A19: -589.2999878 | B19: -38 | E19: -586.6488512 | F19: -586.4609241 | G19: -20 | H19: -19.41666667 | I19: -18.82407407 | J19: -0.5925925926 | K19: -1.175925926 | M19: -0.1690923464 | N19: 1.313 | T19: -584.3937262 | U19: -583.829945 | V19: 0.5454545455 | W19: 0.09343434343 | X19: -6.342592593 | Y19: 6.436026936 | Z19: 6.888047138 | AB19: =SIN((2*PI()*(U19+AC19)/10.1480624190084) + 4.210129444) -> 0.4112795025 | AC19: 2.98 | AF19: Test # 2 | AI19: -547.184164 | AJ19: -545.4928203 | AK19: 148.1818182 | AL19: 158.4625668 | AM19: 152.6280452 | AN19: 5.834521687 | AO19: -4.446226976 | AQ19: 0.997577795 | AR19: 3.72 | AX19: -465.9996651 | AY19: =AY18 + 10.1480624190084 -> -460.9256339 | AZ19: 111.7326733 | BA19: 110.9500744 | BB19: 153.1846567 | BC19: -42.23458228 | BD19: -41.45198343 | BF19: -0.4762170048 | BG19: -19.9
A20: -589.2000122 | B20: -37 | E20: -586.272997 | F20: -586.08507 | G20: -16.5 | H20: -16.61111111 | I20: -16.37962963 | J20: -0.2314814815 | K20: -0.1203703704 | M20: -0.7630638569 | N20: 1.313 | Q20: Test # 2 | T20: -583.2661637 | U20: -582.7023825 | V20: 8.818181818 | W20: 9.484848485 | X20: -2.856060606 | Y20: 12.34090909 | Z20: 11.67424242 | AB20: -0.270848495 | AC20: 2.98 | AD20: Cycle # | AE20: Actual | AF20: 1-9 BP Correl | AI20: =AI19 + 3.3826874730028 -> -543.8014765 | AJ20: =AJ19 + 3.3826874730028 -> -542.1101328 | AK20: 159.6176471 | AL20: 156.8645276 | AM20: =AVERAGE(AK16:AK24) -> 161.1737968 | AN20: =AL20-AM20 -> -4.309269162 | AO20: =AK20-AM20 -> -1.556149733 | AQ20: =SIN((2*PI()*(AJ20+AR20)/30.4441872570252) + 0.356178951) -> 0.7194768542 | AR20: 3.72 | AX20: -455.8516027 | AY20: -450.7775715 | AZ20: 144.990099 | BA20: 134.4925581 | BB20: 145.3397722 | BC20: -10.84721413 | BD20: -0.3496732026 | BF20: 0.2004176188 | BG20: -19.9
A21: -589.0999756 | B21: -37 | E21: -585.8971429 | F21: -585.7092158 | G21: -13.33333333 | H21: =AVERAGE(G20:G22) -> -14.02777778 | I21: =AVERAGE(G17:G25) -> -13.82407407 | J21: =H21-I21 -> -0.2037037037 | K21: =G21-I21 -> 0.4907407407 | M21: -0.9999893082 | N21: 1.313 | O21: Cycle # | P21: Actual | Q21: 1-9 BP Correl | T21: -582.1386012 | U21: -581.57482 | V21: 19.09090909 | W21: 12.24747475 | X21: 2.588383838 | Y21: 9.659090909 | Z21: 16.50252525 | AB21: -0.8262434716 | AC21: 2.98 | AD21: -4 | AE21: -0.136 | AF21: =CORREL(Z275:Z533,AB279:AB537) -> -0.1357044652 | AI21: -540.4187891 | AJ21: -538.7274453 | AK21: 162.7941176 | AL21: 163.5588235 | AM21: 167.3459101 | AN21: -3.787086552 | AO21: -4.551792434 | AQ21: 0.1047246972 | AR21: 3.72 | AX21: =AX20 + 10.1480624190084 -> -445.7035402 | AY21: =AY20 + 10.1480624190084 -> -440.629509 | AZ21: =AVERAGEIFS(Sea_Level,Age_Myr,">"&AX21,Age_Myr,"<="&AX22) -> 146.754902 | BA21: =AVERAGE(AZ20:AZ22) -> 150.8192908 | BB21: =AVERAGE(AZ17:AZ25) -> 133.8299683 | BC21: =BA21-BB21 -> 16.98932246 | BD21: =AZ21-BB21 -> 12.92493367 | BF21: =SIN((2*PI()*(AY21+BG21)/91.3325617710757) + 1.165923889) -> 0.7832746111 | BG21: -19.9
A22: -589 | B22: -36 | E22: -585.5212887 | F22: -585.3333616 | G22: -12.25 | H22: -11.69444444 | I22: -11.21296296 | J22: -0.4814814815 | K22: -1.037037037 | M22: -0.3123751968 | N22: 0.265 | O22: -4 | P22: -0.049 | Q22: =CORREL(K793:K1575,M797:M1579) -> -0.04946595899 | T22: -581.0110387 | U22: -580.4472575 | V22: 8.833333333 | W22: 4.550505051 | X22: 9.596801347 | Y22: -5.046296296 | Z22: -0.7634680135 | AB22: -0.9950299451 | AC22: 2.98 | AD22: -3 | AE22: -0.072 | AF22: =CORREL(Z275:Z533,AB278:AB536) -> -0.07184077683 | AI22: -537.0361016 | AJ22: -535.3447579 | AK22: 168.2647059 | AL22: 174.2647059 | AM22: 173.7053872 | AN22: 0.559318677 | AO22: -5.440681323 | AQ22: -0.5590293094 | AR22: 3.72 | AX22: -435.5554778 | AY22: -430.4814466 | AZ22: 160.7128713 | BA22: 167.7997153 | BB22: 128.9850838 | BC22: 38.81463146 | BD22: 31.72778748 | BF22: 0.9996287078 | BG22: -19.9
A23: -588.9000244 | B23: -35 | E23: -585.1454345 | F23: -584.9575075 | G23: -9.5 | H23: -9.083333333 | I23: -8.462962963 | J23: -0.6203703704 | K23: -1.037037037 | M23: -0.849915035 | N23: 0.265 | O23: -3 | P23: -0.026 | Q23: =CORREL(K793:K1575,M796:M1578) -> -0.02620840293 | T23: -579.8834763 | U23: -579.319695 | V23: -14.27272727 | W23: -1.631313131 | X23: 17.38383838 | Y23: -19.01515152 | Z23: -31.65656566 | AB23: 0.3810091742 | AC23: -1.477 | AD23: -2 | AE23: 0.025 | AF23: =CORREL(Z275:Z533,AB277:AB535) -> 0.0251114735 | AI23: -533.6534141 | AJ23: -531.9620704 | AK23: 191.7352941 | AL23: 180.9509804 | AM23: 177.9308774 | AN23: 3.020102991 | AO23: 13.80441672 | AQ23: -0.9612072893 | AR23: 3.72 | AX23: -425.4074154 | AY23: -420.3333842 | AZ23: 195.9313725 | BA23: 160.9474212 | BB23: 136.4600293 | BC23: 24.48739188 | BD23: 59.47134321 | BF23: 0.7482454225 | BG23: -19.9
A24: -588.7999878 | B24: -35 | E24: -584.7695804 | F24: -584.5816533 | G24: -5.5 | H24: -5.777777778 | I24: -5.546296296 | J24: -0.2314814815 | K24: 0.0462962963 | M24: -0.9897701826 | N24: 0.265 | O24: -2 | P24: 0.009 | Q24: =CORREL(K793:K1575,M795:M1577) -> 0.009312356135 | T24: =T23 + 1.12756249100093 -> -578.7559138 | U24: =U23 + 1.12756249100093 -> -578.1921325 | V24: 0.5454545455 | W24: 4 | X24: =AVERAGE(V20:V28) -> 25.19191919 | Y24: =W24-X24 -> -21.19191919 | Z24: =V24-X24 -> -24.64646465 | AB24: =SIN((2*PI()*(U24+AC24)/10.1480624190084) + 4.210129444) -> -0.3024329876 | AC24: -1.477 | AD24: -1 | AE24: 0.11 | AF24: =CORREL(Z275:Z533,AB276:AB534) -> 0.1104528287 | AI24: -530.2707267 | AJ24: -528.5793829 | AK24: 182.8529412 | AL24: 186.751634 | AM24: 187.2309368 | AN24: -0.4793028322 | AO24: -4.377995643 | AQ24: -0.9136256959 | AR24: 3.72 | AX24: -415.259353 | AY24: -410.1853218 | AZ24: 126.1980198 | BA24: 138.2914968 | BB24: 141.46663 | BC24: -3.1751332 | BD24: -15.26861019 | BF24: 0.1467497881 | BG24: -19.9
A25: -588.7000122 | B25: -34 | E25: -584.3937262 | F25: -584.2057991 | G25: -2.333333333 | H25: -2.527777778 | I25: -2.675925926 | J25: 0.1481481481 | K25: 0.3425925926 | M25: -0.6665008617 | N25: 0.265 | O25: -1 | P25: 0.04 | Q25: =CORREL(K793:K1575,M794:M1576) -> 0.04047576027 | T25: -577.6283513 | U25: -577.06457 | V25: 25.72727273 | W25: 24.14646465 | X25: 32.6010101 | Y25: -8.454545455 | Z25: -6.873737374 | AB25: -0.8443633933 | AC25: -1.477 | AD25: 0 | AE25: 0.145 | AF25: =CORREL(Z275:Z533,AB275:AB533) -> 0.1445000578 | AI25: -526.8880392 | AJ25: -525.1966954 | AK25: 185.6666667 | AL25: 188.3888889 | AM25: 192.8943355 | AN25: -4.505446623 | AO25: -7.227668845 | AQ25: -0.4385484855 | AR25: 3.72 | AX25: -405.1112906 | AY25: -400.0372594 | AZ25: 92.74509804 | BA25: 108.2054617 | BB25: 140.7585798 | BC25: -32.55311806 | BD25: -48.01348174 | BF25: -0.523411703 | BG25: -19.9
A26: -588.5999756 | B26: -33 | E26: -584.0178721 | F26: -583.829945 | G26: 0.25 | H26: 0.3055555556 | I26: 0.02777777778 | J26: 0.2777777778 | K26: 0.2222222222 | M26: -0.03136838022 | N26: 0.265 | O26: 0 | P26: 0.053 | Q26: =CORREL(K793:K1575,M793:M1575) -> 0.05270010634 | T26: -576.5007888 | U26: -575.9370075 | V26: 46.16666667 | W26: 44.2979798 | X26: 39.25757576 | Y26: 5.04040404 | Z26: 6.909090909 | AB26: -0.9912067832 | AC26: -1.477 | AD26: 1 | AE26: 0.11 | AF26: =CORREL(Z275:Z533,AB274:AB532) -> 0.1104061573 | AI26: -523.5053517 | AJ26: -521.814008 | AK26: 196.6470588 | AL26: 195.9771242 | AM26: 199.6263617 | AN26: -3.649237473 | AO26: -2.979302832 | AQ26: 0.2417304351 | AR26: 3.72 | AX26: -394.9632282 | AY26: -389.8891969 | AZ26: 105.6732673 | BA26: 113.9401087 | BB26: 142.2676611 | BC26: -28.32755236 | BD26: -36.59439375 | BF26: -0.9486630412 | BG26: -19.9
A27: -588.5 | B27: -32 | E27: =E26 + 0.375854163666978 -> -583.6420179 | F27: =F26 + 0.375854163666978 -> -583.4540908 | G27: 3 | H27: 3.166666667 | I27: =AVERAGE(G23:G31) -> 3.055555556 | J27: =H27-I27 -> 0.1111111111 | K27: =G27-I27 -> -0.05555555556 | M27: =SIN((2*PI()*(F27+N27)/3.3826874730028) + 3.205610299) -> 0.6184417149 | N27: =N26 -> 0.265 | O27: 1 | P27: 0.04 | Q27: =CORREL(K793:K1575,M792:M1574) -> 0.04026548695 | T27: -575.3732263 | U27: =U26 + 1.12756249100093 -> -574.809445 | V27: 61 | W27: 59.32828283 | X27: 44.75084175 | Y27: 14.57744108 | Z27: 16.24915825 | AB27: -0.6742535032 | AC27: -1.477 | AD27: 2 | AE27: 0.025 | AF27: =CORREL(Z275:Z533,AB273:AB531) -> 0.02479320228 | AI27: -520.1226642 | AJ27: -518.4313205 | AK27: 205.6176471 | AL27: 211.3823529 | AM27: 201.0312933 | AN27: 10.35105962 | AO27: 4.586353733 | AQ27: 0.8089009987 | AR27: 3.72 | AX27: -384.8151657 | AY27: -379.7411345 | AZ27: 143.4019608 | BA27: 135.2891024 | BB27: 143.2799564 | BC27: -7.990853987 | BD27: 0.1220043573 | BF27: -0.9300243993 | BG27: -19.9
A28: -588.4000244 | B28: -31 | E28: -583.2661637 | F28: -583.0782366 | G28: 6.25 | H28: 6.194444444 | I28: 6.388888889 | J28: -0.1944444444 | K28: -0.1388888889 | M28: 0.9788760585 | N28: 0.265 | O28: 2 | P28: 0.009 | Q28: =CORREL(K793:K1575,M791:M1573) -> 0.008990198722 | T28: -574.2456638 | U28: -573.6818826 | V28: 70.81818182 | W28: 69.10606061 | X28: 50.69023569 | Y28: 18.41582492 | Z28: 20.12794613 | AB28: -0.04180951558 | AC28: =AC27 -> -1.477 | AD28: 3 | AE28: -0.072 | AF28: =CORREL(Z275:Z533,AB272:AB530) -> -0.07203545667 | AI28: -516.7399768 | AJ28: -515.048633 | AK28: 231.8823529 | AL28: 216.0294118 | AM28: 203.9169142 | AN28: 12.11249752 | AO28: 27.9654387 | AQ28: 0.997577795 | AR28: 3.72 | AX28: -374.6671033 | AY28: -369.5930721 | AZ28: 156.7920792 | BA28: 146.2705624 | BB28: 138.000453 | BC28: 8.270109364 | BD28: 18.79162622 | BF28: -0.4762170048 | BG28: -19.9
A29: -588.2999878 | B29: -30 | E29: -582.8903096 | F29: -582.7023825 | G29: 9.333333333 | H29: 8.861111111 | I29: 9.518518519 | J29: -0.6574074074 | K29: -0.1851851852 | M29: 0.8812834152 | N29: 0.265 | O29: 3 | P29: -0.026 | Q29: =CORREL(K793:K1575,M790:M1572) -> -0.02649170341 | T29: -573.1181013 | U29: -572.5543201 | V29: 75.5 | W29: 75.10606061 | X29: 59.7037037 | Y29: 15.4023569 | Z29: 15.7962963 | AB29: 0.6101976091 | AC29: -1.477 | AD29: 4 | AE29: -0.136 | AF29: =CORREL(Z275:Z533,AB271:AB529) -> -0.1356830209 | AI29: -513.3572893 | AJ29: -511.6659456 | AK29: 210.5882353 | AL29: 221.9509804 | AM29: 204.8580907 | AN29: 17.09288968 | AO29: 5.730144583 | AQ29: 0.7194768542 | AR29: 3.72 | AX29: -364.5190409 | AY29: -359.4450097 | AZ29: 138.6176471 | BA29: 151.9154533 | BB29: 130.0612395 | BC29: 21.85421385 | BD29: 8.556407602 | BF29: 0.2004176188 | BG29: -19.9
A30: -588.2000122 | B30: -30 | E30: -582.5144554 | F30: -582.3265283 | G30: 11 | H30: 11.77777778 | I30: 12.02777778 | J30: -0.25 | K30: -1.027777778 | M30: 0.3713284676 | N30: 0.265 | O30: 4 | P30: -0.05 | Q30: =CORREL(K793:K1575,M789:M1571) -> -0.04957784309 | T30: -571.9905388 | U30: -571.4267576 | V30: 79 | W30: 70.92424242 | X30: 66.17845118 | Y30: 4.745791246 | Z30: 12.82154882 | AB30: 0.9766864908 | AC30: -1.477 | AI30: =AI29 + 3.3826874730028 -> -509.9746018 | AJ30: =AJ29 + 3.3826874730028 -> -508.2832581 | AK30: 223.3823529 | AL30: 204.959893 | AM30: =AVERAGE(AK26:AK34) -> 205.0879382 | AN30: =AL30-AM30 -> -0.1280451575 | AO30: =AK30-AM30 -> 18.29441474 | AQ30: =SIN((2*PI()*(AJ30+AR30)/30.4441872570252) + 0.356178951) -> 0.1047246972 | AR30: 3.72 | AX30: -354.3709785 | AY30: -349.2969473 | AZ30: 160.3366337 | BA30: 156.25927 | BB30: 121.0378567 | BC30: 35.22141332 | BD30: 39.29877694 | BF30: 0.7832746111 | BG30: -19.9
A31: -588.0999756 | B31: -29 | E31: -582.1386012 | F31: -581.9506742 | G31: 15 | H31: 15.5 | I31: 13.22222222 | J31: 2.277777778 | K31: 1.777777778 | M31: -0.3123751968 | N31: 0.265 | T31: -570.8629763 | U31: -570.2991951 | V31: 58.27272727 | W31: 58.81818182 | X31: 64.76599327 | Y31: -5.947811448 | Z31: -6.493265993 | AB31: 0.8861729089 | AC31: -1.477 | AF31: 29 cycles | AI31: -506.5919143 | AJ31: -504.9005706 | AK31: 180.9090909 | AL31: 207.3324421 | AM31: 205.7807487 | AN31: 1.551693405 | AO31: -24.87165775 | AQ31: -0.5590293094 | AR31: 3.72 | AX31: -344.2229161 | AY31: -339.1488848 | AZ31: 169.8235294 | BA31: 159.5253349 | BB31: 104.6035721 | BC31: 54.92176276 | BD31: 65.21995729 | BF31: 0.9996287078 | BG31: -19.9
A32: -588 | B32: -28 | E32: -581.7627471 | F32: -581.57482 | G32: 20.5 | H32: 19.38888889 | I32: 12.36111111 | J32: 7.027777778 | K32: 8.138888889 | M32: -0.849915035 | N32: 0.265 | Q32: 87 cycles | T32: -569.7354138 | U32: -569.1716326 | V32: 39.18181818 | W32: 59.70707071 | X32: 63.58080808 | Y32: -3.873737374 | Z32: -24.3989899 | AB32: 0.3810091742 | AC32: -1.477 | AF32: 90% | AI32: -503.2092269 | AJ32: -501.5178831 | AK32: 217.7058824 | AL32: 196.6461676 | AM32: 204.9768271 | AN32: -8.330659537 | AO32: 12.72905526 | AQ32: -0.9612072893 | AR32: =AR31 -> 3.72 | AX32: -334.0748536 | AY32: -329.0008224 | AZ32: 148.4158416 | BA32: 124.3281563 | BB32: 86.4367976 | BC32: 37.89135874 | BD32: 61.97904398 | BF32: 0.7482454225 | BG32: -19.9
A33: -587.9000244 | B33: -27 | E33: -581.3868929 | F33: -581.1989658 | G33: 22.66666667 | H33: 21.13888889 | I33: 9.962962963 | J33: 11.17592593 | K33: 12.7037037 | M33: -0.9897701826 | N33: 0.265 | Q33: 60% | T33: -568.6078513 | U33: -568.0440701 | V33: 81.66666667 | W33: 68.28282828 | X33: 66.18686869 | Y33: 2.095959596 | Z33: 15.47979798 | AB33: -0.3024329876 | AC33: -1.477 | AI33: -499.8265394 | AJ33: -498.1351957 | AK33: 191.3235294 | AL33: 198.9215686 | AM33: 199.7205387 | AN33: -0.7989700931 | AO33: -8.397009309 | AQ33: -0.9136256959 | AR33: 3.72 | AX33: -323.9267912 | AY33: -318.85276 | AZ33: 54.74509804 | BA33: 71.5651977 | BB33: 70.66578226 | BC33: 0.8994154317 | BD33: -15.92068423 | BF33: 0.1467497881 | BG33: -19.9
A34: -587.7999878 | B34: -26 | E34: -581.0110387 | F34: -580.8231117 | G34: 20.25 | H34: 17.97222222 | I34: 7.148148148 | J34: 10.82407407 | K34: 13.10185185 | M34: -0.6665008617 | N34: 0.265 | Q34: Cells 793 to 1575 | T34: -567.4802889 | U34: -566.9165076 | V34: 84 | W34: 66.37373737 | X34: 70.16161616 | Y34: -3.787878788 | Z34: 13.83838384 | AB34: -0.8443633933 | AC34: -1.477 | AF34: Cells 275 to 533 | AI34: -496.4438519 | AJ34: -494.7525082 | AK34: 187.7352941 | AL34: 193.9803922 | AM34: 191.5898198 | AN34: 2.390572391 | AO34: -3.854525649 | AQ34: -0.4385484855 | AR34: 3.72 | AX34: -313.7787288 | AY34: -308.7046976 | AZ34: 11.53465347 | BA34: 8.014819129 | BB34: 52.27812291 | BC34: -44.26330378 | BD34: -40.74346944 | BF34: -0.523411703 | BG34: -19.9
A35: -587.7000122 | B35: -26 | E35: -580.6351846 | F35: -580.4472575 | G35: 11 | H35: 8.833333333 | I35: 4.62037037 | J35: 4.212962963 | K35: 6.37962963 | M35: -0.03136838022 | N35: 0.265 | T35: -566.3527264 | U35: -565.7889451 | V35: 33.45454545 | W35: 55.92929293 | X35: 74.37373737 | Y35: -18.44444444 | Z35: -40.91919192 | AB35: -0.9912067832 | AC35: -1.477 | AF35: Lag = -1.477-myr | AI35: -493.0611644 | AJ35: -491.3698207 | AK35: 202.8823529 | AL35: 196.3333333 | AM35: 180.8675975 | AN35: 15.46573579 | AO35: 22.0147554 | AQ35: 0.2417304351 | AR35: 3.72 | AX35: -303.6306664 | AY35: -298.5566352 | AZ35: -42.23529412 | BA35: -16.93321685 | BB35: 32.69714619 | BC35: -49.63036304 | BD35: -74.9324403 | BF35: -0.9486630412 | BG35: -19.9
A36: -587.5999756 | B36: -25 | E36: -580.2593304 | F36: -580.0714033 | G36: -4.75 | H36: -3.027777778 | I36: 2.259259259 | J36: -5.287037037 | K36: -7.009259259 | M36: 0.6184417149 | N36: 0.265 | Q36: from 295.550 Ma | T36: -565.2251639 | U36: -564.6613826 | V36: 50.33333333 | W36: 59.35353535 | X36: 79.33417508 | Y36: -19.98063973 | Z36: -29.00084175 | AB36: -0.6742535032 | AC36: -1.477 | AF36: from 295.174 Ma | AI36: -489.678477 | AJ36: -487.9871332 | AK36: 198.3823529 | AL36: 195.2801545 | AM36: 169.825411 | AN36: 25.45474351 | AO36: 28.55694197 | AQ36: 0.8089009987 | AR36: 3.72 | AX36: -293.482604 | AY36: -288.4085728 | AZ36: -20.0990099 | BA36: -15.82712095 | BB36: 11.64194655 | BC36: -27.46906749 | BD36: -31.74095645 | BF36: -0.9300243993 | BG36: -19.9
A37: -587.5 | B37: -25 | E37: -579.8834763 | F37: -579.6955492 | G37: -15.33333333 | H37: -12.02777778 | I37: -0.01851851852 | J37: -12.00925926 | K37: -15.31481481 | M37: 0.9788760585 | N37: 0.265 | Q37: to 1.632 Ma | T37: -564.0976014 | U37: -563.5338201 | V37: 94.27272727 | W37: 85.29292929 | X37: 85.39478114 | Y37: -0.1018518519 | Z37: 8.877946128 | AB37: -0.04180951558 | AC37: -1.477 | AF37: to 4.263 Ma | AI37: -486.2957895 | AJ37: -484.6044458 | AK37: 184.5757576 | AL37: 173.4566251 | AM37: 152.325411 | AN37: 21.1312141 | AO37: 32.2503466 | AQ37: 0.997577795 | AR37: 3.72 | AX37: -283.3345415 | AY37: -278.2605103 | AZ37: 14.85294118 | BA37: -10.70578528 | BB37: -2.724519511 | BC37: -7.981265774 | BD37: 17.57746069 | BF37: -0.4762170048 | BG37: -19.9
A38: -587.4000244 | B38: -24 | E38: -579.5076221 | F38: -579.319695 | G38: -16 | H38: -14.36111111 | I38: -1.675925926 | J38: -12.68518519 | K38: -14.32407407 | M38: 0.8812834152 | N38: 0.265 | Q38: Lead = 0.265-myr | T38: -562.9700389 | U38: -562.4062576 | V38: 111.2727273 | W38: 107.4848485 | X38: 89.81565657 | Y38: 17.66919192 | Z38: 21.45707071 | AB38: 0.6101976091 | AC38: -1.477 | AI38: -482.913102 | AJ38: -481.2217583 | AK38: =AVERAGEIFS(Sea_Level,Age_Myr,">"&AI38,Age_Myr,"<="&AI39) -> 137.4117647 | AL38: 149.6232917 | AM38: 140.694692 | AN38: 8.928599723 | AO38: -3.282927312 | AQ38: 0.7194768542 | AR38: 3.72 | AX38: -273.1864791 | AY38: -268.1124479 | AZ38: -26.87128713 | BA38: -9.303500938 | BB38: -4.337561207 | BC38: -4.965939731 | BD38: -22.53372592 | BF38: 0.2004176188 | BG38: -19.9
A39: -587.2999878 | B39: -23 | E39: -579.1317679 | F39: -578.9438408 | G39: -11.75 | H39: -11.33333333 | I39: -1.898148148 | J39: -9.435185185 | K39: -9.851851852 | M39: 0.3713284676 | N39: 0.265 | T39: -561.8424764 | U39: -561.2786952 | V39: 116.9090909 | W39: 110.3661616 | X39: 96.01767677 | Y39: 14.34848485 | Z39: 20.89141414 | AB39: 0.9766864908 | AC39: -1.477 | AI39: -479.5304146 | AJ39: -477.8390708 | AK39: 126.8823529 | AL39: 115.2745098 | AM39: 131.0035651 | AN39: -15.72905526 | AO39: -4.121212121 | AQ39: 0.1047246972 | AR39: 3.72 | AX39: -263.0384167 | AY39: -257.9643855 | AZ39: -15.89215686 | BA39: -20.81223711 | BB39: -1.498274337 | BC39: -19.31396277 | BD39: -14.39388253 | BF39: 0.7832746111 | BG39: -19.9
A40: -587.2000122 | B40: -23 | E40: -578.7559138 | F40: -578.5679867 | G40: -6.25 | H40: -6 | I40: -0.1203703704 | J40: -5.87962963 | K40: -6.12962963 | M40: -0.3123751968 | N40: 0.265 | T40: -560.7149139 | U40: -560.1511327 | V40: 102.9166667 | W40: 104.5176768 | X40: 107.5227273 | Y40: -3.005050505 | Z40: -4.606060606 | AB40: 0.8861729089 | AC40: -1.477 | AI40: -476.1477271 | AJ40: -474.4563833 | AK40: 81.52941176 | AL40: 89.53921569 | AM40: 121.0918004 | AN40: -31.55258467 | AO40: -39.56238859 | AQ40: -0.5590293094 | AR40: 3.72 | AX40: -252.8903543 | AY40: -247.8163231 | AZ40: -19.67326733 | BA40: -5.482592377 | BB40: 1.362852952 | BC40: -6.845445329 | BD40: -21.03612028 | BF40: 0.9996287078 | BG40: -19.9
A41: -587.0999756 | B41: -23 | E41: -578.3800596 | F41: -578.1921325 | G41: 0 | H41: 0.5 | I41: 4.185185185 | J41: -3.685185185 | K41: -4.185185185 | M41: -0.849915035 | N41: 0.265 | T41: -559.5873514 | U41: -559.0235702 | V41: 93.72727273 | W41: 106.0328283 | X41: 114.4755892 | Y41: -8.442760943 | Z41: -20.7483165 | AB41: 0.3810091742 | AC41: -1.477 | AI41: -472.7650396 | AJ41: -471.0736959 | AK41: 60.20588235 | AL41: 76.12745098 | AM41: 112.4578134 | AN41: -36.33036245 | AO41: -52.25193108 | AQ41: -0.9612072893 | AR41: 3.72 | AX41: -242.7422919 | AY41: -237.6682607 | AZ41: 19.11764706 | BA41: 13.22403417 | BB41: 4.099926659 | BC41: 9.124107509 | BD41: 15.0177204 | BF41: 0.7482454225 | BG41: -19.9
A42: -587 | B42: -22 | E42: -578.0042054 | F42: -577.8162784 | G42: 7.75 | H42: 8.666666667 | I42: 10.33333333 | J42: -1.666666667 | K42: -2.583333333 | M42: -0.9897701826 | N42: 0.265 | T42: -558.4597889 | U42: -557.8960077 | V42: 121.4545455 | W42: 118.3333333 | X42: 117.293771 | Y42: 1.03956229 | Z42: 4.160774411 | AB42: -0.3024329876 | AC42: -1.477 | AI42: -469.3823521 | AJ42: -467.6910084 | AK42: 86.64705882 | AL42: 82.4560309 | AM42: 105.1716181 | AN42: -22.71558724 | AO42: -18.52455932 | AQ42: -0.9136256959 | AR42: 3.72 | AX42: -232.5942294 | AY42: -227.5201982 | AZ42: 40.22772277 | BA42: 32.14453504 | BB42: 6.9114735 | BC42: 25.23306154 | BD42: 33.31624927 | BF42: 0.1467497881 | BG42: -19.9
A43: -586.9000244 | B43: -22 | E43: -577.6283513 | F43: -577.4404242 | G43: 18.25 | H43: 17.66666667 | I43: 17.33333333 | J43: 0.3333333333 | K43: 0.9166666667 | M43: -0.6665008617 | N43: 0.265 | T43: -557.3322264 | U43: -556.7684452 | V43: 139.8181818 | W43: 132.7575758 | X43: 120.4671717 | Y43: 12.29040404 | Z43: 19.3510101 | AB43: -0.8443633933 | AC43: -1.477 | AI43: -465.9996647 | AJ43: -464.3083209 | AK43: 100.5151515 | AL43: 100.2795603 | AM43: 106.6029907 | AN43: -6.323430382 | AO43: -6.087839176 | AQ43: -0.4385484855 | AR43: 3.72 | AX43: -222.446167 | AY43: -217.3721358 | AZ43: 37.08823529 | BA43: 20.27693652 | BB43: 14.44722708 | BC43: 5.829709442 | BD43: 22.64100822 | BF43: -0.523411703 | BG43: -19.9
A44: -586.7999878 | B44: -22 | E44: -577.2524971 | F44: -577.06457 | G44: 27 | H44: 26.41666667 | I44: 24.36111111 | J44: 2.055555556 | K44: 2.638888889 | M44: -0.03136838022 | N44: 0.265 | T44: -556.2046639 | U44: -555.6408827 | V44: 137 | W44: 129.9090909 | X44: 125.1136364 | Y44: 4.795454545 | Z44: 11.88636364 | AB44: -0.9912067832 | AC44: -1.477 | AI44: -462.6169772 | AJ44: -460.9256335 | AK44: 113.6764706 | AL44: 111.6226976 | AM44: 110.983066 | AN44: 0.6396316102 | AO44: 2.693404635 | AQ44: 0.2417304351 | AR44: 3.72 | AX44: -212.2981046 | AY44: -207.2240734 | AZ44: -16.48514851 | BA44: 8.379246748 | BB44: 25.50496128 | BC44: -17.12571453 | BD44: -41.9901098 | BF44: -0.9486630412 | BG44: -19.9
A45: -586.7000122 | B45: -21 | E45: -576.8766429 | F45: -576.6887159 | G45: 34 | H45: 33.66666667 | I45: 31.33333333 | J45: 2.333333333 | K45: 2.666666667 | M45: 0.6184417149 | N45: 0.265 | T45: -555.0771015 | U45: -554.5133202 | V45: 112.9090909 | W45: 123.1818182 | X45: 132.2239057 | Y45: -9.042087542 | Z45: -19.31481481 | AB45: -0.6742535032 | AC45: -1.477 | AI45: -459.2342897 | AJ45: -457.542946 | AK45: 120.6764706 | AL45: 117.7843137 | AM45: 120.1105169 | AN45: -2.326203209 | AO45: 0.5659536542 | AQ45: 0.8089009987 | AR45: 3.72 | AX45: -202.1500422 | AY45: -197.076011 | AZ45: 4.534653465 | BA45: 9.402122565 | BB45: 34.60727151 | BC45: -25.20514895 | BD45: -30.07261805 | BF45: -0.9300243993 | BG45: -19.9
A46: -586.5999756 | B46: -21 | E46: -576.5007888 | F46: -576.3128617 | G46: 40 | H46: 40.33333333 | I46: 38.14814815 | J46: 2.185185185 | K46: 1.851851852 | M46: 0.9788760585 | N46: 0.265 | T46: -553.949539 | U46: -553.3857577 | V46: 119.6363636 | W46: 124.1262626 | X46: 140.6986532 | Y46: -16.57239057 | Z46: -21.06228956 | AB46: -0.04180951558 | AC46: -1.477 | AI46: -455.8516022 | AJ46: -454.1602585 | AK46: 119 | AL46: 129.9901961 | AM46: 130.8262032 | AN46: -0.8360071301 | AO46: -11.82620321 | AQ46: 0.997577795 | AR46: 3.72 | AX46: -192.0019798 | AY46: -186.9279486 | AZ46: 40.15686275 | BA46: 28.54733709 | BB46: 46.02557217 | BC46: -17.47823508 | BD46: -5.86870942 | BF46: -0.4762170048 | BG46: -19.9
A47: -586.5 | B47: -20 | E47: -576.1249346 | F47: -575.9370075 | G47: 47 | H47: 46.16666667 | I47: 44.53703704 | J47: 1.62962963 | K47: 2.462962963 | M47: 0.8812834152 | N47: 0.265 | T47: -552.8219765 | U47: -552.2581952 | V47: 139.8333333 | W47: 139.3989899 | X47: 145.6481481 | Y47: -6.249158249 | Z47: -5.814814815 | AB47: 0.6101976091 | AC47: -1.477 | AI47: -452.4689148 | AJ47: -450.777571 | AK47: 150.2941176 | AL47: 145.1990493 | AM47: 134.5255496 | AN47: 10.6734997 | AO47: 15.76856803 | AQ47: 0.7194768542 | AR47: 3.72 | AX47: -181.8539174 | AY47: -176.7798861 | AZ47: 40.95049505 | BA47: 54.91160292 | BB47: 56.5789275 | BC47: -1.667324576 | BD47: -15.62843245 | BF47: 0.2004176188 | BG47: -19.9
A48: -586.4000244 | B48: -20 | E48: -575.7490805 | F48: -575.5611534 | G48: 51.5 | H48: 51.66666667 | I48: 50.09259259 | J48: 1.574074074 | K48: 1.407407407 | M48: 0.3713284676 | N48: 0.265 | T48: -551.694414 | U48: -551.1306327 | V48: 158.7272727 | W48: 155.1565657 | X48: 145.1734007 | Y48: 9.983164983 | Z48: 13.55387205 | AB48: 0.9766864908 | AC48: -1.477 | AI48: -449.0862273 | AJ48: -447.3948836 | AK48: 166.3030303 | AL48: 160.0912062 | AM48: 139.8081798 | AN48: 20.28302634 | AO48: 26.49485047 | AQ48: 0.1047246972 | AR48: 3.72 | AX48: -171.7058549 | AY48: -166.6318237 | AZ48: 83.62745098 | BA48: 62.27515693 | BB48: 62.68568131 | BC48: -0.4105243858 | BD48: 20.94176967 | BF48: 0.7832746111 | BG48: -19.9
A49: -586.2999878 | B49: -19 | E49: -575.3732263 | F49: -575.1852992 | G49: 56.5 | H49: 56.44444444 | I49: 55.00925926 | J49: 1.435185185 | K49: 1.490740741 | M49: -0.3123751968 | N49: 0.265 | T49: -550.5668515 | U49: -550.0030702 | V49: 166.9090909 | W49: 165.2121212 | X49: 145.2744108 | Y49: 19.93771044 | Z49: 21.63468013 | AB49: 0.8861729089 | AC49: -1.477 | AI49: -445.7035398 | AJ49: -444.0121961 | AK49: 163.6764706 | AL49: 162.2088532 | AM49: 145.2166766 | AN49: 16.99217667 | AO49: 18.45979402 | AQ49: -0.5590293094 | AR49: 3.72 | AX49: -161.5577925 | AY49: -156.4837613 | AZ49: 62.24752475 | BA49: 89.25244289 | BB49: 81.41725447 | BC49: 7.835188421 | BD49: -19.16972972 | BF49: 0.9996287078 | BG49: -19.9
A50: -586.2000122 | B50: -18 | E50: -574.9973721 | F50: -574.809445 | G50: 61.33333333 | H50: 61.02777778 | I50: 59.41666667 | J50: 1.611111111 | K50: 1.916666667 | M50: -0.849915035 | N50: 0.265 | T50: -549.439289 | U50: -548.8755078 | V50: 170 | W50: 167.6363636 | X50: 151.7390572 | Y50: 15.8973064 | Z50: 18.26094276 | AB50: 0.3810091742 | AC50: -1.477 | AI50: -442.3208524 | AJ50: -440.6295086 | AK50: 156.6470588 | AL50: 146.754902 | AM50: 150.926025 | AN50: -4.171122995 | AO50: 5.721033868 | AQ50: -0.9612072893 | AR50: 3.72 | AX50: -151.4097301 | AY50: -146.3356989 | AZ50: 121.8823529 | BA50: 106.4459328 | BB50: 98.28486378 | BC50: 8.161069048 | BD50: 23.59748916 | BF50: 0.7482454225 | BG50: -19.9
A51: -586.0999756 | B51: -17 | E51: -574.621518 | F51: -574.4335909 | G51: 65.25 | H51: 64.94444444 | I51: 63.30555556 | J51: 1.638888889 | K51: 1.944444444 | M51: -0.9897701826 | N51: 0.265 | T51: -548.3117265 | U51: -547.7479453 | V51: 166 | W51: 157.1818182 | X51: 158.0757576 | Y51: -0.8939393939 | Z51: 7.924242424 | AB51: -0.3024329876 | AC51: -1.477 | AI51: -438.9381649 | AJ51: -437.2468211 | AK51: 119.9411765 | AL51: 141.5490196 | AM51: 160.6547831 | AN51: -19.10576352 | AO51: -40.71360665 | AQ51: -0.9136256959 | AR51: 3.72 | AX51: -141.2616677 | AY51: -136.1876365 | AZ51: 135.2079208 | BA51: 116.3797644 | BB51: 119.0903169 | BC51: -2.710552428 | BD51: 16.11760392 | BF51: 0.1467497881 | BG51: -19.9
A52: -586 | B52: -16 | E52: -574.2456638 | F52: -574.0577367 | G52: 68.25 | H52: 68.25 | I52: 66.41666667 | J52: 1.833333333 | K52: 1.833333333 | M52: -0.6665008617 | N52: 0.265 | T52: -547.184164 | U52: -546.6203828 | V52: 135.5454545 | W52: 146.4848485 | X52: 161.8417508 | Y52: -15.35690236 | Z52: -26.2962963 | AB52: -0.8443633933 | AC52: -1.477 | AI52: -435.5554774 | AJ52: -433.8641337 | AK52: 148.0588235 | AL52: 143.4509804 | AM52: 165.6286393 | AN52: -22.17765894 | AO52: -17.56981581 | AQ52: -0.4385484855 | AR52: 3.72 | AX52: -131.1136053 | AY52: -126.039574 | AZ52: 92.04901961 | BA52: 126.4519834 | BB52: 138.5925495 | BC52: -12.14056602 | BD52: -46.54352984 | BF52: -0.523411703 | BG52: -19.9
A53: -585.9000244 | B53: -15 | E53: -573.8698096 | F53: -573.6818826 | G53: 71.25 | H53: 71.05555556 | I53: 69.19444444 | J53: 1.861111111 | K53: 2.055555556 | M53: -0.03136838022 | N53: 0.265 | T53: -546.0566015 | U53: -545.4928203 | V53: 137.9090909 | W53: 148.1818182 | X53: 158.3063973 | Y53: -10.12457912 | Z53: -20.3973064 | AB53: -0.9912067832 | AC53: -1.477 | AI53: -432.1727899 | AJ53: -430.4814462 | AK53: 162.3529412 | AL53: 160.8241236 | AM53: 167.8367994 | AN53: -7.012675777 | AO53: -5.48385819 | AQ53: 0.2417304351 | AR53: 3.72 | AX53: -120.9655428 | AY53: -115.8915116 | AZ53: 152.0990099 | BA53: 133.4970556 | BB53: 153.8682672 | BC53: -20.37121163 | BD53: -1.769257318 | BF53: -0.9486630412 | BG53: -19.9
A54: -585.7999878 | B54: -14 | E54: -573.4939555 | F54: -573.3060284 | G54: 73.66666667 | H54: 73.30555556 | I54: 71.62037037 | J54: 1.685185185 | K54: 2.046296296 | M54: 0.6184417149 | N54: 0.265 | T54: -544.929039 | U54: -544.3652578 | V54: 171.0909091 | W54: 161.8888889 | X54: 157.7239057 | Y54: 4.164983165 | Z54: 13.36700337 | AB54: -0.6742535032 | AC54: -1.477 | AI54: -428.7901025 | AJ54: -427.0987587 | AK54: 172.0606061 | AL54: 180.3241236 | AM54: 168.4119628 | AN54: 11.91216082 | AO54: 3.648643296 | AQ54: 0.8089009987 | AR54: 3.72 | AX54: -110.8174804 | AY54: -105.7434492 | AZ54: 156.3431373 | BA54: 178.6160292 | BB54: 168.318978 | BC54: 10.29705127 | BD54: -11.97584072 | BF54: -0.9300243993 | BG54: -19.9
A55: -585.7000122 | B55: -13 | E55: -573.1181013 | F55: -572.9301742 | G55: 75 | H55: 74.55555556 | I55: 73.63888889 | J55: 0.9166666667 | K55: 1.361111111 | M55: 0.9788760585 | N55: 0.265 | T55: -543.8014765 | U55: -543.2376953 | V55: 176.6666667 | W55: 173.8282828 | X55: 158.2794613 | Y55: 15.54882155 | Z55: 18.38720539 | AB55: -0.04180951558 | AC55: -1.477 | AI55: -425.407415 | AJ55: -423.7160713 | AK55: 206.5588235 | AL55: 191.2260844 | AM55: 165.1668647 | AN55: 26.05921965 | AO55: 41.3919588 | AQ55: 0.997577795 | AR55: 3.72 | AX55: =AX54 + 10.1480624190084 -> -100.669418 | AY55: =AY54 + 10.1480624190084 -> -95.59538679 | AZ55: =AVERAGEIFS(Sea_Level,Age_Myr,">"&AX55,Age_Myr,"<="&AX56) -> 227.4059406 | BA55: =AVERAGE(AZ54:AZ56) -> 200.073222 | BB55: =AVERAGE(AZ51:AZ59) -> 174.0691236 | BC55: =BA55-BB55 -> 26.00409845 | BD55: =AZ55-BB55 -> 53.33681702 | BF55: =SIN((2*PI()*(AY55+BG55)/91.3325617710757) + 1.165923889) -> -0.4762170048 | BG55: -19.9
A56: -585.5999756 | B56: -13 | E56: -572.7422471 | F56: -572.5543201 | G56: 75 | H56: 75.5 | I56: 75.16666667 | J56: 0.3333333333 | K56: -0.1666666667 | M56: 0.8812834152 | N56: 0.265 | T56: -542.6739141 | U56: -542.1101328 | V56: 173.7272727 | W56: 159.1010101 | X56: 156.7037037 | Y56: 2.397306397 | Z56: 17.02356902 | AB56: 0.6101976091 | AC56: -1.477 | AI56: -422.0247275 | AJ56: -420.3333838 | AK56: 195.0588235 | AL56: 195.9313725 | AM56: 160.8367003 | AN56: 35.09467221 | AO56: 34.22212319 | AQ56: 0.7194768542 | AR56: 3.72 | AX56: -90.52135558 | AY56: -85.44732437 | AZ56: 216.4705882 | BA56: 221.6618132 | BB56: 179.2366531 | BC56: 42.42516016 | BD56: 37.23393516 | BF56: 0.2004176188 | BG56: -19.9
A57: -585.5 | B57: -13 | E57: -572.366393 | F57: -572.1784659 | G57: 76.5 | H57: 76.61111111 | I57: 75.75 | J57: 0.8611111111 | K57: 0.75 | M57: 0.3713284676 | N57: 0.265 | T57: -541.5463516 | U57: -540.9825703 | V57: 126.9090909 | W57: 154.1010101 | X57: 162.4107744 | Y57: -8.30976431 | Z57: -35.5016835 | AB57: 0.9766864908 | AC57: -1.477 | AI57: -418.64204 | AJ57: -416.9506963 | AK57: 186.1764706 | AL57: 183.3627451 | AM57: 156.634086 | AN57: 26.72865914 | AO57: 29.54238463 | AQ57: 0.1047246972 | AR57: 3.72 | AX57: -80.37329316 | AY57: -75.29926195 | AZ57: 221.1089109 | BA57: 209.9611402 | BB57: 185.6800513 | BC57: 24.28108889 | BD57: 35.42885955 | BF57: 0.7832746111 | BG57: -19.9
A58: -585.4000244 | B58: -13 | E58: -571.9905388 | F58: -571.8026117 | G58: 78.33333333 | H58: 78.11111111 | I58: 75.09259259 | J58: 3.018518519 | K58: 3.240740741 | M58: -0.3123751968 | N58: 0.265 | T58: -540.4187891 | U58: -539.8550078 | V58: 161.6666667 | W58: 154.5252525 | X58: 165.8282828 | Y58: -11.3030303 | Z58: -4.161616162 | AB58: 0.8861729089 | AC58: -1.477 | AI58: -415.2593526 | AJ58: -413.5680088 | AK58: 168.8529412 | AL58: 160.8235294 | AM58: 150.6896415 | AN58: 10.1338879 | AO58: 18.16329966 | AQ58: -0.5590293094 | AR58: 3.72 | AX58: -70.22523075 | AY58: -65.15119954 | AZ58: 192.3039216 | BA58: 195.6821653 | BB58: 178.4991156 | BC58: 17.18304968 | BD58: 13.80480597 | BF58: 0.9996287078 | BG58: -19.9
A59: -585.2999878 | B59: -12 | E59: -571.6146847 | F59: -571.4267576 | G59: 79.5 | H59: 78.94444444 | I59: 71.10185185 | J59: 7.842592593 | K59: 8.398148148 | M59: -0.849915035 | N59: 0.265 | T59: -539.2912266 | U59: -538.7274453 | V59: 175 | W59: 162.8282828 | X59: 163.3939394 | Y59: -0.5656565657 | Z59: 11.60606061 | AB59: 0.3810091742 | AC59: -1.477 | AI59: -411.8766651 | AJ59: -410.1853214 | AK59: 127.4411765 | AL59: 125.7546049 | AM59: 138.1436918 | AN59: -12.38908695 | AO59: -10.70251535 | AQ59: -0.9612072893 | AR59: 3.72 | AX59: -60.07716833 | AY59: -55.00313712 | AZ59: 173.6336634 | BA59: 182.5510904 | BB59: 170.3091741 | BC59: 12.24191635 | BD59: 3.324489312 | BF59: 0.7482454225 | BG59: -19.9
A60: -585.2000122 | B60: -11 | E60: -571.2388305 | F60: -571.0509034 | G60: 79 | H60: 77.33333333 | I60: 65.7962963 | J60: 11.53703704 | K60: 13.2037037 | M60: -0.9897701826 | N60: 0.265 | T60: -538.1636641 | U60: -537.5998828 | V60: 151.8181818 | W60: 171.2424242 | X60: 164.7239057 | Y60: 6.518518519 | Z60: -12.90572391 | AB60: -0.3024329876 | AC60: -1.477 | AI60: -408.4939776 | AJ60: -406.8026339 | AK60: 80.96969697 | AL60: 106.2153892 | AM60: 127.6534957 | AN60: -21.43810656 | AO60: -46.68379877 | AQ60: -0.9136256959 | AR60: 3.72 | AX60: -49.92910591 | AY60: -44.8550747 | AZ60: 181.7156863 | BA60: 168.4629845 | BB60: 145.7037859 | BC60: 22.75919868 | BD60: 36.01190042 | BF60: 0.1467497881 | BG60: -19.9
A61: -585.0999756 | B61: -11 | E61: -570.8629763 | F61: -570.6750492 | G61: 73.5 | H61: 72.61111111 | I61: 61.7962963 | J61: 10.81481481 | K61: 11.7037037 | M61: -0.6665008617 | N61: 0.265 | T61: -537.0361016 | U61: -536.4723204 | V61: 186.9090909 | W61: 169.1313131 | X61: 165.5227273 | Y61: 3.608585859 | Z61: 21.38636364 | AB61: -0.8443633933 | AC61: -1.477 | AI61: -405.1112902 | AJ61: -403.4199464 | AK61: 110.2352941 | AL61: 100.0193108 | AM61: 116.6077441 | AN61: -16.58843335 | AO61: -6.37244999 | AQ61: -0.4385484855 | AR61: 3.72 | AX61: -39.78104349 | AY61: -34.70701228 | AZ61: 150.039604 | BF61: -0.523411703 | BG61: -19.9
A62: -585 | B62: -10 | E62: -570.4871222 | F62: -570.2991951 | G62: 65.33333333 | H62: 58.86111111 | I62: 59.44444444 | J62: -0.5833333333 | K62: 5.888888889 | M62: -0.03136838022 | N62: 0.265 | T62: -535.9085391 | U62: -535.3447579 | V62: 168.6666667 | W62: 168.2525253 | X62: 174.3813131 | Y62: -6.128787879 | Z62: -5.714646465 | AB62: -0.9912067832 | AC62: -1.477 | AI62: -401.7286027 | AJ62: -400.0372589 | AK62: 108.8529412 | AL62: 92.74509804 | AM62: 108.0696177 | AN62: -15.32451971 | AO62: 0.7833234304 | AQ62: 0.2417304351 | AR62: 3.72 | AX62: -29.63298107 | AY62: -24.55894986 | AZ62: 87.47058824 | BF62: -0.9486630412 | BG62: -19.9
A63: -584.9000244 | B63: -9 | E63: -570.111268 | F63: -569.9233409 | G63: 37.75 | H63: 43.44444444 | I63: 58.93518519 | J63: -15.49074074 | K63: -21.18518519 | M63: 0.6184417149 | N63: 0.265 | T63: -534.7809766 | U63: -534.2171954 | V63: 149.1818182 | W63: 168.8282828 | X63: 172.5597643 | Y63: -3.731481481 | Z63: -23.37794613 | AB63: -0.6742535032 | AC63: -1.477 | AI63: -398.3459152 | AJ63: -396.6545715 | AK63: 59.14705882 | AL63: 93.38235294 | AM63: 104.5696177 | AN63: -11.1872648 | AO63: -45.42255892 | AQ63: 0.8089009987 | AR63: 3.72 | AX63: -19.48491865 | AY63: -14.41088744 | AZ63: 82.63366337 | BF63: -0.9300243993 | BG63: -19.9
A64: -584.7999878 | B64: -8 | E64: -569.7354138 | F64: -569.5474868 | G64: 27.25 | H64: 34.66666667 | I64: 59.46296296 | J64: -24.7962963 | K64: -32.21296296 | M64: 0.9788760585 | N64: 0.265 | T64: -533.6534141 | U64: -533.0896329 | V64: 188.6363636 | W64: 172.9116162 | X64: 175.0143098 | Y64: -2.102693603 | Z64: 13.62205387 | AB64: -0.04180951558 | AC64: -1.477 | AI64: -394.9632277 | AJ64: -393.271884 | AK64: 112.1470588 | AL64: 88.98039216 | AM64: 106.8866112 | AN64: -17.90621905 | AO64: 5.260447613 | AQ64: 0.997577795 | AR64: 3.72 | AX64: -9.336856231 | AY64: -4.262825021 | AZ64: 5.957446809 | BF64: -0.4762170048 | BG64: -19.9
A65: -584.7000122 | B65: -7 | E65: -569.3595597 | F65: -569.1716326 | G65: 39 | H65: 40.52777778 | I65: 60.35185185 | J65: -19.82407407 | K65: -21.35185185 | M65: 0.8812834152 | N65: 0.265 | T65: -532.5258516 | U65: -531.9620704 | V65: 180.9166667 | W65: 192.0631313 | X65: 180.8400673 | Y65: 11.22306397 | Z65: 0.0765993266 | AB65: 0.6101976091 | AC65: -1.477 | AI65: -391.5805403 | AJ65: -389.8891965 | AK65: 95.64705882 | AL65: 105.7091503 | AM65: 113.9520697 | AN65: -8.24291939 | AO65: -18.30501089 | AQ65: 0.7194768542 | AR65: 3.72 | AX65: 0.811206188 | AY65: 5.885237398 | BF65: 0.2004176188 | BG65: -19.9
A66: -584.5999756 | B66: -6 | E66: -568.9837055 | F66: -568.7957784 | G66: 55.33333333 | H66: 56.02777778 | I66: 61.85185185 | J66: -5.824074074 | K66: -6.518518519 | M66: 0.3713284676 | N66: 0.265 | T66: -531.3982891 | U66: -530.8345079 | V66: 206.6363636 | W66: 177.6085859 | X66: 175.8905724 | Y66: 1.718013468 | Z66: 30.74579125 | AB66: 0.9766864908 | AC66: -1.477 | AI66: -388.1978528 | AJ66: -386.506509 | AK66: 109.3333333 | AL66: 114.1111111 | AM66: 121.9716776 | AN66: -7.860566449 | AO66: -12.63834423 | AQ66: 0.1047246972 | AR66: 3.72 | AX66: 10.95926861 | AY66: 16.03329982 | BF66: 0.7832746111 | BG66: -19.9
A67: -584.5 | B67: -5 | E67: -568.6078513 | F67: -568.4199243 | G67: 73.75 | H67: 71.11111111 | I67: 64.17592593 | J67: 6.935185185 | K67: 9.574074074 | M67: -0.3123751968 | N67: 0.265 | T67: -530.2707267 | U67: -529.7069454 | V67: 145.2727273 | W67: 183 | X67: 179.9276094 | Y67: 3.072390572 | Z67: -34.65488215 | AB67: 0.8861729089 | AC67: -1.477 | AI67: -384.8151653 | AJ67: -383.1238216 | AK67: 137.3529412 | AL67: 131.6601307 | AM67: 126.7018221 | AN67: 4.958308576 | AO67: 10.65111903 | AQ67: -0.5590293094 | AR67: 3.72 | AX67: 21.10733103 | AY67: 26.18136224 | BF67: 0.9996287078 | BG67: -19.9
A68: -584.4000244 | B68: -4 | E68: -568.2319972 | F68: -568.0440701 | G68: 84.25 | H68: 81.66666667 | I68: 68.81481481 | J68: 12.85185185 | K68: 15.43518519 | M68: -0.849915035 | N68: 0.265 | T68: -529.1431642 | U68: -528.5793829 | V68: 197.0909091 | W68: 182.2045455 | X68: 186.6447811 | Y68: -4.44023569 | Z68: 10.44612795 | AB68: 0.3810091742 | AC68: -1.477 | AI68: -381.4324778 | AJ68: -379.7411341 | AK68: 148.2941176 | AL68: 143.4019608 | AM68: 135.2835215 | AN68: 8.118439295 | AO68: 13.01059616 | AQ68: -0.9612072893 | AR68: 3.72 | AX68: 31.25539345 | AY68: 36.32942465 | BF68: 0.7482454225 | BG68: =BG67 -> -19.9
A69: -584.2999878 | B69: -3 | E69: -567.856143 | F69: -567.6682159 | G69: 87 | H69: 86.08333333 | I69: 73.12037037 | J69: 12.96296296 | K69: 13.87962963 | M69: -0.9897701826 | N69: 0.265 | T69: -528.0156017 | U69: -527.4518204 | V69: 204.25 | W69: 181.2348485 | X69: 187.6296296 | Y69: -6.394781145 | Z69: 16.62037037 | AB69: -0.3024329876 | AC69: -1.477 | AI69: -378.0497904 | AJ69: -376.3584466 | AK69: 144.5588235 | AL69: 158.4215686 | AM69: 137.5155476 | AN69: 20.90602099 | AO69: 7.043275896 | AQ69: -0.9136256959 | AR69: 3.72 | AX69: 41.40345586 | AY69: 46.47748707 | BF69: 0.1467497881 | BG69: -19.9
A70: -584.2000122 | B70: -2 | E70: -567.4802889 | F70: -567.2923618 | G70: 87 | H70: 86.75 | I70: 70.4537037 | J70: 16.2962963 | K70: 16.5462963 | M70: -0.6665008617 | N70: 0.265 | T70: -526.8880392 | U70: -526.3242579 | V70: 142.3636364 | W70: 183.8712121 | X70: 187.0025253 | Y70: -3.131313131 | Z70: -44.63888889 | AB70: -0.8443633933 | AC70: -1.477 | AI70: -374.6671029 | AJ70: -372.9757592 | AK70: =AVERAGEIFS(Sea_Level,Age_Myr,">"&AI70,Age_Myr,"<="&AI71) -> 182.4117647 | AL70: 159.4649436 | AM70: 141.2671816 | AN70: 18.19776193 | AO70: 41.14458309 | AQ70: -0.4385484855 | AR70: 3.72
A71: -584.0999756 | B71: -2 | E71: -567.1044347 | F71: -566.9165076 | G71: =AVERAGEIFS(Sea_Level,Age_Myr,">"&E71,Age_Myr,"<="&E72) -> 86.25 | H71: 84.25 | I71: 65.94444444 | J71: 18.30555556 | K71: 20.30555556 | M71: -0.03136838022 | N71: 0.265 | T71: -525.7604767 | U71: -525.1966954 | V71: 205 | W71: 185.6666667 | X71: 188.1641414 | Y71: -2.497474747 | Z71: 16.83585859 | AB71: -0.9912067832 | AC71: -1.477 | AI71: -371.2844154 | AJ71: -369.5930717 | AK71: 151.4242424 | AL71: 156.7394534 | AM71: 146.2530204 | AN71: 10.48643296 | AO71: 5.171222024 | AQ71: 0.2417304351 | AR71: 3.72
A72: -584 | B72: -1 | E72: -566.7285805 | F72: -566.5406534 | G72: 79.5 | H72: 77.25 | I72: 61.05555556 | J72: 16.19444444 | K72: 18.44444444 | M72: 0.6184417149 | N72: 0.265 | T72: -524.6329142 | U72: -524.069133 | V72: 209.6363636 | W72: 204.0454545 | X72: 196.8005051 | Y72: 7.244949495 | Z72: 12.83585859 | AB72: -0.6742535032 | AC72: -1.477 | AI72: -367.9017279 | AJ72: -366.2103842 | AK72: 136.3823529 | AL72: 140.0139632 | AM72: 148.1549812 | AN72: -8.141018023 | AO72: -11.77262824 | AQ72: 0.8089009987 | AR72: 3.72
A73: -583.9000244 | B73: 0 | E73: -566.3527264 | F73: -566.1647993 | G73: 66 | H73: 53.5 | I73: 57.11111111 | J73: -3.611111111 | K73: 8.888888889 | M73: 0.9788760585 | N73: 0.265 | T73: -523.5053517 | U73: -522.9415705 | V73: 197.5 | W73: 194.1363636 | X73: 192.729798 | Y73: 1.406565657 | Z73: 4.77020202 | AB73: -0.04180951558 | AC73: -1.477 | AI73: -364.5190405 | AJ73: -362.8276967 | AK73: 132.2352941 | AL73: 132.6764706 | AM73: 148.634086 | AN73: -15.95761537 | AO73: -16.39879184 | AQ73: 0.997577795 | AR73: 3.72
A74: -583.7999878 | B74: 1 | E74: -565.9768722 | F74: -565.7889451 | G74: 15 | H74: 31.91666667 | I74: 55.5 | J74: -23.58333333 | K74: -40.5 | M74: 0.8812834152 | N74: 0.265 | T74: -522.3777892 | U74: -521.814008 | V74: 175.2727273 | W74: 196.6212121 | X74: 195.7929293 | Y74: 0.8282828283 | Z74: -20.52020202 | AB74: 0.6101976091 | AC74: -1.477 | AI74: -361.136353 | AJ74: -359.4450093 | AK74: 129.4117647 | AL74: 138.6176471 | AM74: 151.872648 | AN74: -13.25500099 | AO74: -22.46088334 | AQ74: 0.7194768542 | AR74: 3.72
A75: -583.7000122 | B75: 1 | E75: -565.601018 | F75: -565.413091 | G75: 14.75 | H75: 19.83333333 | I75: 55.46296296 | J75: -35.62962963 | K75: -40.71296296 | M75: 0.3713284676 | N75: 0.265 | T75: -521.2502267 | U75: -520.6864455 | V75: 217.0909091 | W75: =AVERAGE(V74:V76) -> 205.1212121 | X75: 207.2979798 | Y75: -2.176767677 | Z75: 9.792929293 | AB75: 0.9766864908 | AC75: -1.477 | AI75: -357.7536655 | AJ75: -356.0623218 | AK75: 154.2058824 | AL75: 146.0294118 | AM75: 151.2811448 | AN75: -5.251733016 | AO75: 2.924737572 | AQ75: 0.1047246972 | AR75: 3.72
A76: -583.5999756 | B76: 2 | E76: -565.2251639 | F76: -565.0372368 | G76: 29.75 | H76: 31.08333333 | I76: 56.24074074 | J76: -25.15740741 | K76: -26.49074074 | M76: -0.3123751968 | N76: 0.265 | T76: -520.1226642 | U76: -519.558883 | V76: 223 | W76: 200.1818182 | X76: 208.9183502 | Y76: -8.736531987 | Z76: 14.08164983 | AB76: 0.8861729089 | AC76: -1.477 | AI76: -354.3709781 | AJ76: -352.6796343 | AK76: 154.4705882 | AL76: 153.7608437 | AM76: 153.4333531 | AN76: 0.3274905922 | AO76: 1.037235096 | AQ76: -0.5590293094 | AR76: 3.72
A77: -583.5 | B77: 3 | E77: -564.8493097 | F77: -564.6613826 | G77: 48.75 | H77: 50.33333333 | I77: 58.62962963 | J77: -8.296296296 | K77: -9.87962963 | M77: -0.849915035 | N77: 0.265 | T77: -518.9951017 | U77: -518.4313205 | V77: =AVERAGEIFS(Sea_Level,Age_Myr,">"&T77,Age_Myr,"<="&T78) -> 160.4545455 | W77: 205.0909091 | X77: 211.3223906 | Y77: -6.231481481 | Z77: -50.86784512 | AB77: 0.3810091742 | AC77: -1.477 | AI77: -350.9882906 | AJ77: -349.2969468 | AK77: 152.6060606 | AL77: 160.2608437 | AM77: 156.2340067 | AN77: 4.026836997 | AO77: -3.627946128 | AQ77: -0.9612072893 | AR77: 3.72
A78: -583.4000244 | B78: 3 | E78: -564.4734555 | F78: -564.2855285 | G78: 72.5 | H78: 69.30555556 | I78: 63.26851852 | J78: 6.037037037 | K78: 9.231481481 | M78: -0.9897701826 | N78: 0.265 | T78: -517.8675393 | U78: -517.303758 | V78: 231.8181818 | W78: 212.7272727 | X78: 214.1860269 | Y78: -1.458754209 | Z78: 17.63215488 | AB78: -0.3024329876 | AC78: -1.477 | AI78: -347.6056031 | AJ78: -345.9142594 | AK78: 173.7058824 | AL78: 167.8000594 | AM78: 160.2242028 | AN78: 7.575856605 | AO78: 13.48167954 | AQ78: -0.9136256959 | AR78: 3.72
A79: -583.2999878 | B79: 4 | E79: -564.0976014 | F79: -563.9096743 | G79: 86.66666667 | H79: 84.13888889 | I79: 74.0462963 | J79: 10.09259259 | K79: 12.62037037 | M79: -0.6665008617 | N79: 0.265 | T79: -516.7399768 | U79: -516.1761955 | V79: 245.9090909 | W79: 232.4368687 | X79: 214.8122896 | Y79: 17.62457912 | Z79: 31.09680135 | AB79: -0.8443633933 | AC79: -1.477 | AI79: -344.2229156 | AJ79: -342.5315719 | AK79: 177.0882353 | AL79: 173.8627451 | AM79: 163.3771044 | AN79: 10.48564072 | AO79: 13.71113092 | AQ79: -0.4385484855 | AR79: 3.72
A80: -583.2000122 | B80: 4 | E80: -563.7217472 | F80: -563.5338201 | G80: 93.25 | H80: 93.63888889 | I80: 85.10185185 | J80: 8.537037037 | K80: 8.148148148 | M80: -0.03136838022 | N80: 0.265 | T80: -515.6124143 | U80: -515.048633 | V80: 219.5833333 | W80: 232.2550505 | X80: 215.8207071 | Y80: 16.43434343 | Z80: 3.762626263 | AB80: -0.9912067832 | AC80: -1.477 | AI80: -340.8402282 | AJ80: -339.1488844 | AK80: 170.7941176 | AL80: 169.8235294 | AM80: 159.5306991 | AN80: 10.29283026 | AO80: 11.2634185 | AQ80: 0.2417304351 | AR80: 3.72
A81: -583.0999756 | B81: 6 | E81: -563.3458931 | F81: -563.157966 | G81: 101 | H81: 100.6666667 | I81: 94.65740741 | J81: 6.009259259 | K81: 6.342592593 | M81: 0.6184417149 | N81: 0.265 | T81: -514.4848518 | U81: -513.9210705 | V81: 231.2727273 | W81: 224.709596 | X81: 218.0328283 | Y81: 6.676767677 | Z81: 13.23989899 | AB81: -0.6742535032 | AC81: -1.477 | AI81: -337.4575407 | AJ81: -335.766197 | AK81: 161.5882353 | AL81: =AVERAGE(AK80:AK82) -> 166.8431373 | AM81: 153.8705684 | AN81: 12.97256883 | AO81: 7.717666865 | AQ81: 0.8089009987 | AR81: 3.72
A82: -583 | B82: 7 | E82: -562.9700389 | F82: -562.7821118 | G82: 107.75 | H82: 106.9166667 | I82: 102.2685185 | J82: 4.648148148 | K82: 5.481481481 | M82: 0.9788760585 | N82: 0.265 | T82: -513.3572893 | U82: -512.793508 | V82: 223.2727273 | W82: 211.8181818 | X82: 224.0328283 | Y82: -12.21464646 | Z82: -0.7601010101 | AB82: -0.04180951558 | AC82: -1.477 | AI82: -334.0748532 | AJ82: -332.3835095 | AK82: 168.1470588 | AL82: 162.5077243 | AM82: 140.5385225 | AN82: 21.96920182 | AO82: 27.60853634 | AQ82: 0.997577795 | AR82: 3.72
A83: -582.9000244 | B83: 8 | E83: -562.5941847 | F83: -562.4062576 | G83: 112 | H83: 111.3333333 | I83: 107.3240741 | J83: 4.009259259 | K83: 4.675925926 | M83: 0.8812834152 | N83: 0.265 | T83: -512.2297268 | U83: -511.6659456 | V83: 180.9090909 | W83: 210.1161616 | X83: 222.0159933 | Y83: -11.89983165 | Z83: -41.10690236 | AB83: 0.6101976091 | AC83: -1.477 | AI83: -330.6921657 | AJ83: -329.000822 | AK83: 157.7878788 | AL83: 148.5077243 | AM83: 124.3587839 | AN83: 24.14894038 | AO83: 33.42909487 | AQ83: 0.7194768542 | AR83: 3.72
A84: -582.7999878 | B84: 9 | E84: -562.2183306 | F84: -562.0304035 | G84: 114.25 | H84: 114 | I84: 110.4166667 | J84: 3.583333333 | K84: 3.833333333 | M84: 0.3713284676 | N84: 0.265 | T84: -511.1021643 | U84: -510.5383831 | V84: 226.1666667 | W84: 216.6616162 | X84: 219.8341751 | Y84: -3.172558923 | Z84: 6.332491582 | AB84: 0.9766864908 | AC84: -1.477 | AI84: -327.3094783 | AJ84: -325.6181345 | AK84: 119.5882353 | AL84: 126.9685086 | AM84: 109.4372153 | AN84: 17.53129333 | AO84: 10.15102 | AQ84: 0.1047246972 | AR84: 3.72
A85: -582.7000122 | B85: 9 | E85: -561.8424764 | F85: -561.6545493 | G85: 115.75 | H85: =AVERAGE(G84:G86) -> 115.75 | I85: 111.3888889 | J85: 4.361111111 | K85: 4.361111111 | M85: -0.3123751968 | N85: 0.265 | T85: -509.9746018 | U85: -509.4108206 | V85: 242.9090909 | W85: 227.8434343 | X85: 212.6683502 | Y85: 15.17508418 | Z85: 30.24074074 | AB85: 0.8861729089 | AC85: -1.477 | AI85: -323.9267908 | AJ85: -322.2354471 | AK85: 103.5294118 | AL85: 85.24509804 | AM85: 91.30857596 | AN85: -6.063477916 | AO85: 12.22083581 | AQ85: -0.5590293094 | AR85: 3.72
A86: -582.5999756 | B86: 10 | E86: -561.4666222 | F86: -561.2786952 | G86: 117.25 | H86: 117 | I86: 110.4166667 | J86: 6.583333333 | K86: 6.833333333 | M86: -0.849915035 | N86: 0.265 | T86: -508.8470393 | U86: -508.2832581 | V86: 214.4545455 | W86: 223.6767677 | X86: 204.9006734 | Y86: 18.77609428 | Z86: 9.553872054 | AB86: 0.3810091742 | AC86: -1.477 | AI86: -320.5441033 | AJ86: -318.8527596 | AK86: 32.61764706 | AL86: 54.74509804 | AM86: 71.58308576 | AN86: -16.83798772 | AO86: -38.9654387 | AQ86: -0.9612072893 | AR86: 3.72
A87: -582.5 | B87: 10 | E87: -561.0907681 | F87: -560.902841 | G87: 118 | H87: 116.5833333 | I87: 108.5555556 | J87: 8.027777778 | K87: 9.444444444 | M87: -0.9897701826 | N87: 0.265 | T87: -507.7194768 | U87: -507.1556956 | V87: 213.6666667 | W87: 218.1313131 | X87: 204.8148148 | Y87: 13.31649832 | Z87: 8.851851852 | AB87: -0.3024329876 | AC87: -1.477 | AI87: -317.1614159 | AJ87: -315.4700721 | AK87: 28.08823529 | AL87: 34.5 | AM87: 48.42949099 | AN87: -13.92949099 | AO87: -20.34125569 | AQ87: -0.9136256959 | AR87: 3.72
A88: -582.4000244 | B88: 11 | E88: -560.7149139 | F88: -560.5269868 | G88: 114.5 | H88: 111.5 | I88: 106.3055556 | J88: 5.194444444 | K88: 8.194444444 | M88: -0.6665008617 | N88: 0.265 | T88: =T87 + 1.12756249100093 -> -506.5919143 | U88: =U87 + 1.12756249100093 -> -506.0281331 | V88: 226.2727273 | W88: 198.3434343 | X88: =AVERAGE(V84:V92) -> 210.3400673 | Y88: =W88-X88 -> -11.996633 | Z88: =V88-X88 -> 15.93265993 | AB88: =SIN((2*PI()*(U88+AC88)/10.1480624190084) + 4.210129444) -> -0.8443633933 | AC88: =AC87 -> -1.477 | AI88: -313.7787284 | AJ88: -312.0873846 | AK88: 42.79411765 | AL88: 26.17290553 | AM88: 25.82560903 | AN88: 0.3472964944 | AO88: 16.96850862 | AQ88: -0.4385484855 | AR88: 3.72
A89: -582.2999878 | B89: 11 | E89: -560.3390597 | F89: -560.1511327 | G89: 102 | H89: 102.9166667 | I89: 104.4722222 | J89: -1.555555556 | K89: -2.472222222 | M89: -0.03136838022 | N89: 0.265 | T89: -505.4643519 | U89: -504.9005706 | V89: 155.0909091 | W89: 180.9090909 | X89: 207.3821549 | Y89: -26.47306397 | Z89: -52.29124579 | AB89: -0.9912067832 | AC89: -1.477 | AI89: -310.3960409 | AJ89: -308.7046972 | AK89: 7.636363636 | AL89: 11.49643494 | AM89: 8.00207962 | AN89: 3.494355318 | AO89: -0.3657159834 | AQ89: 0.2417304351 | AR89: 3.72
A90: -582.2000122 | B90: 12 | E90: -559.9632056 | F90: -559.7752785 | G90: 92.25 | H90: 95.08333333 | I90: 104.0277778 | J90: -8.944444444 | K90: -11.77777778 | M90: 0.6184417149 | N90: 0.265 | T90: -504.3367894 | U90: -503.7730081 | V90: 161.3636364 | W90: 179.6515152 | X90: 197.4107744 | Y90: -17.75925926 | Z90: -36.04713805 | AB90: -0.6742535032 | AC90: -1.477 | AI90: -307.0133534 | AJ90: -305.3220097 | AK90: -15.94117647 | AL90: -16.18003565 | AM90: -6.527332145 | AN90: -9.652703506 | AO90: -9.413844326 | AQ90: 0.8089009987 | AR90: 3.72
A91: -582.0999756 | B91: 13 | E91: =E90 + 0.375854163666978 -> -559.5873514 | F91: =F90 + 0.375854163666978 -> -559.3994243 | G91: 91 | H91: 91.66666667 | I91: =AVERAGE(G87:G95) -> 104.6666667 | J91: =H91-I91 -> -13 | K91: =G91-I91 -> -13.66666667 | M91: =SIN((2*PI()*(F91+N91)/3.3826874730028) + 3.205610299) -> 0.9788760585 | N91: =N90 -> 0.265 | T91: -503.2092269 | U91: -502.6454456 | V91: 222.5 | W91: 204.8333333 | X91: 195.8552189 | Y91: 8.978114478 | Z91: 26.64478114 | AB91: -0.04180951558 | AC91: -1.477 | AI91: -303.630666 | AJ91: -301.9393222 | AK91: -40.23529412 | AL91: -33.94117647 | AM91: -12.97643098 | AN91: -20.96474549 | AO91: -27.25886314 | AQ91: 0.997577795 | AR91: 3.72
A92: -582 | B92: 14 | E92: -559.2114973 | F92: -559.0235702 | G92: 91.75 | H92: 93.5 | I92: 106 | J92: -12.5 | K92: -14.25 | M92: 0.8812834152 | N92: 0.265 | T92: -502.0816644 | U92: -501.5178831 | V92: 230.6363636 | W92: 217.5606061 | X92: 196.983165 | Y92: 20.57744108 | Z92: 33.65319865 | AB92: 0.6101976091 | AC92: -1.477 | AI92: -300.2479785 | AJ92: -298.5566348 | AK92: -45.64705882 | AL92: -42.23529412 | AM92: -16.96335908 | AN92: -25.27193504 | AO92: -28.68369974 | AQ92: 0.7194768542 | AR92: 3.72
A93: -581.9000244 | B93: 16 | E93: -558.8356431 | F93: -558.647716 | G93: 97.75 | H93: 100.4166667 | I93: 108.4444444 | J93: -8.027777778 | K93: -10.69444444 | M93: 0.3713284676 | N93: 0.265 | T93: -500.9541019 | U93: -500.3903206 | V93: 199.5454545 | W93: 194.4494949 | X93: 195.6397306 | Y93: -1.19023569 | Z93: 3.905723906 | AB93: 0.9766864908 | AC93: -1.477 | AI93: -296.865291 | AJ93: -295.1739473 | AK93: -40.82352941 | AL93: -37.90196078 | AM93: -19.99277085 | AN93: -17.90918994 | AO93: -20.83075857 | AQ93: 0.1047246972 | AR93: 3.72
A94: -581.7999878 | B94: 17 | E94: -558.4597889 | F94: -558.2718618 | G94: 111.75 | H94: 110.8333333 | I94: 112.7222222 | J94: -1.888888889 | K94: -0.9722222222 | M94: -0.3123751968 | N94: 0.265 | T94: -499.8265394 | U94: -499.2627581 | V94: 153.1666667 | W94: 184.3888889 | X94: 195.1759259 | Y94: -10.78703704 | Z94: -42.00925926 | AB94: 0.8861729089 | AC94: -1.477 | AI94: =AI93 + 3.3826874730028 -> -293.4826035 | AJ94: =AJ93 + 3.3826874730028 -> -291.7912598 | AK94: -27.23529412 | AL94: -31.16102198 | AM94: =AVERAGE(AK90:AK98) -> -21.31184393 | AN94: =AL94-AM94 -> -9.849178055 | AO94: =AK94-AM94 -> -5.923450188 | AQ94: =SIN((2*PI()*(AJ94+AR94)/30.4441872570252) + 0.356178951) -> -0.5590293094 | AR94: =AR93 -> 3.72
A95: -581.7000122 | B95: 19 | E95: -558.0839348 | F95: -557.8960077 | G95: 123 | H95: 121.5833333 | I95: 118.3981481 | J95: 3.185185185 | K95: 4.601851852 | M95: -0.849915035 | N95: 0.265 | T95: -498.6989769 | U95: -498.1351957 | V95: 200.4545455 | W95: 192.479798 | X95: 199.6304714 | Y95: -7.150673401 | Z95: 0.8240740741 | AB95: 0.3810091742 | AC95: -1.477 | AI95: -290.0999161 | AJ95: -288.4085723 | AK95: -25.42424242 | AL95: -20.15121806 | AM95: -15.84452367 | AN95: -4.306694395 | AO95: -9.579718756 | AQ95: -0.9612072893 | AR95: 3.72
A96: -581.5999756 | B96: 20 | E96: -557.7080806 | F96: -557.5201535 | G96: 130 | H96: 129.8333333 | I96: 124.2592593 | J96: 5.574074074 | K96: 5.740740741 | M96: -0.9897701826 | N96: 0.265 | T96: -497.5714144 | U96: -497.0076332 | V96: 223.8181818 | W96: 212.8181818 | X96: 199.706229 | Y96: 13.11195286 | Z96: 24.11195286 | AB96: -0.3024329876 | AC96: -1.477 | AI96: -286.7172286 | AJ96: -285.0258849 | AK96: -7.794117647 | AL96: -5.896316102 | AM96: -13.02713409 | AN96: 7.130817984 | AO96: 5.233016439 | AQ96: -0.9136256959 | AR96: 3.72
A97: -581.5 | B97: 21 | E97: -557.3322264 | F97: -557.1442994 | G97: 136.5 | H97: 135.6666667 | I97: 129.5648148 | J97: 6.101851852 | K97: 6.935185185 | M97: -0.6665008617 | N97: 0.265 | T97: -496.4438519 | U97: -495.8800707 | V97: 214.1818182 | W97: 196.3055556 | X97: 197.0092593 | Y97: -0.7037037037 | Z97: 17.17255892 | AB97: -0.8443633933 | AC97: -1.477 | AI97: -283.3345411 | AJ97: -281.6431974 | AK97: 15.52941176 | AL97: 1.166666667 | AM97: -11.46177461 | AN97: 12.62844128 | AO97: 26.99118637 | AQ97: -0.4385484855 | AR97: 3.72
A98: -581.4000244 | B98: 22 | E98: -556.9563723 | F98: -556.7684452 | G98: 140.5 | H98: 140.1111111 | I98: 132.8981481 | J98: 7.212962963 | K98: 7.601851852 | M98: -0.03136838022 | N98: 0.265 | T98: -495.3162894 | U98: -494.7525082 | V98: 150.9166667 | W98: 188.8510101 | X98: 194.9579125 | Y98: -6.106902357 | Z98: -44.04124579 | AB98: -0.9912067832 | AC98: -1.477 | AI98: -279.9518537 | AJ98: -278.2605099 | AK98: -4.235294118 | AL98: 14.85294118 | AM98: -10.68399683 | AN98: 25.53693801 | AO98: 6.448702713 | AQ98: 0.2417304351 | AR98: 3.72
A99: -581.2999878 | B99: 22 | E99: -556.5805181 | F99: -556.392591 | G99: 143.3333333 | H99: 142.5277778 | I99: 133.4444444 | J99: 9.083333333 | K99: 9.888888889 | M99: 0.6184417149 | N99: 0.265 | T99: -494.1887269 | U99: -493.6249457 | V99: 201.4545455 | W99: 191.8510101 | X99: 200.8383838 | Y99: -8.987373737 | Z99: 0.6161616162 | AB99: -0.6742535032 | AC99: -1.477 | AI99: -276.5691662 | AJ99: -274.8778224 | AK99: 33.26470588 | AL99: 4.716874629 | AM99: -9.880075262 | AN99: 14.59694989 | AO99: 43.14478114 | AQ99: 0.8089009987 | AR99: 3.72
A100: -581.2000122 | B100: 23 | E100: -556.2046639 | F100: -556.0167369 | G100: 143.75 | H100: 142.1944444 | I100: 132.0555556 | J100: 10.13888889 | K100: 11.69444444 | M100: 0.9788760585 | N100: 0.265 | T100: -493.0611644 | U100: -492.4973832 | V100: 223.1818182 | W100: 210.3333333 | X100: 201.6868687 | Y100: 8.646464646 | Z100: 21.49494949 | AB100: -0.04180951558 | AC100: -1.477 | AI100: -273.1864787 | AJ100: -271.495135 | AK100: -14.87878788 | AL100: -4.390968509 | AM100: -7.993067934 | AN100: 3.602099426 | AO100: -6.885719945 | AQ100: 0.997577795 | AR100: 3.72
A101: -581.0999756 | B101: 23 | E101: -555.8288098 | F101: -555.6408827 | G101: 139.5 | H101: 137 | I101: 130.1111111 | J101: 6.888888889 | K101: 9.388888889 | M101: 0.8812834152 | N101: 0.265 | T101: -491.933602 | U101: -491.3698207 | V101: 206.3636364 | W101: 203.5429293 | X101: 197.0867003 | Y101: 6.456228956 | Z101: 9.276936027 | AB101: 0.6101976091 | AC101: -1.477 | AI101: -269.8037912 | AJ101: -268.1124475 | AK101: -31.55882353 | AL101: -26.75371361 | AM101: -9.264309764 | AN101: -17.48940384 | AO101: -22.29451377 | AQ101: 0.7194768542 | AR101: 3.72
A102: -581 | B102: 23 | E102: -555.4529556 | F102: -555.2650285 | G102: 127.75 | H102: 127.9722222 | I102: 127.7777778 | J102: 0.1944444444 | K102: -0.02777777778 | M102: 0.3713284676 | N102: 0.265 | T102: -490.8060395 | U102: -490.2422582 | V102: 181.0833333 | W102: 197.8459596 | X102: 194.6422559 | Y102: 3.203703704 | Z102: -13.55892256 | AB102: 0.9766864908 | AC102: -1.477 | AI102: -266.4211038 | AJ102: -264.72976 | AK102: =AVERAGEIFS(Sea_Level,Age_Myr,">"&AI102,Age_Myr,"<="&AI103) -> -33.82352941 | AL102: -28.46078431 | AM102: -15.78441276 | AN102: -12.67637156 | AO102: -18.03911666 | AQ102: 0.1047246972 | AR102: 3.72
A103: -580.9000244 | B103: 22 | E103: -555.0771015 | F103: -554.8891744 | G103: 116.6666667 | H103: 118.3055556 | I103: 125.5 | J103: -7.194444444 | K103: -8.833333333 | M103: -0.3123751968 | N103: 0.265 | T103: -489.678477 | U103: -489.1146957 | V103: 206.0909091 | W103: 198.4217172 | X103: 199.1363636 | Y103: -0.7146464646 | Z103: 6.954545455 | AB103: 0.8861729089 | AC103: -1.477 | AI103: -263.0384163 | AJ103: -261.3470725 | AK103: -20 | AL103: -20.75490196 | AM103: -17.28114478 | AN103: -3.47375718 | AO103: -2.718855219 | AQ103: -0.5590293094 | AR103: 3.72
A104: -580.7999878 | B104: 19 | E104: -554.7012473 | F104: -554.5133202 | G104: 110.5 | H104: 113.2222222 | I104: 123.4259259 | J104: -10.2037037 | K104: -12.92592593 | M104: -0.849915035 | N104: 0.265 | T104: -488.5509145 | U104: -487.9871332 | V104: 208.0909091 | W104: 198.8661616 | X104: 195.6616162 | Y104: 3.204545455 | Z104: 12.42929293 | AB104: 0.3810091742 | AC104: -1.477 | AI104: -259.6557288 | AJ104: -257.9643851 | AK104: -8.441176471 | AL104: -15.89215686 | AM104: -20.84977223 | AN104: 4.957615369 | AO104: 12.40859576 | AQ104: -0.9612072893 | AR104: 3.72
A105: -580.7000122 | B105: 17 | E105: -554.3253931 | F105: -554.137466 | G105: 112.5 | H105: 112.8333333 | I105: 122.0092593 | J105: -9.175925926 | K105: -9.509259259 | M105: -0.9897701826 | N105: 0.265 | T105: -487.423352 | U105: -486.8595707 | V105: 182.4166667 | W105: 194.229798 | X105: 190.6321549 | Y105: 3.597643098 | Z105: -8.215488215 | AB105: -0.3024329876 | AC105: -1.477 | AI105: -256.2730413 | AJ105: -254.5816976 | AK105: -19.23529412 | AL105: -23.60932858 | AM105: -17.40245593 | AN105: -6.206872648 | AO105: -1.832838186 | AQ105: -0.9136256959 | AR105: 3.72
A106: -580.5999756 | B106: 15 | E106: -553.949539 | F106: -553.7616119 | G106: 115.5 | H106: 116 | I106: 122.0648148 | J106: -6.064814815 | K106: -6.564814815 | M106: -0.6665008617 | N106: 0.265 | T106: -486.2957895 | U106: -485.7320083 | V106: 192.1818182 | W106: 188.6540404 | X106: 181.8846801 | Y106: 6.769360269 | Z106: 10.29713805 | AB106: -0.8443633933 | AC106: -1.477 | AI106: -252.8903539 | AJ106: -251.1990101 | AK106: -43.15151515 | AL106: -26.69756387 | AM106: -12.97435136 | AN106: -13.72321252 | AO106: -30.17716379 | AQ106: -0.4385484855 | AR106: 3.72
A107: -580.5 | B107: 12 | E107: -553.5736848 | F107: -553.3857577 | G107: 120 | H107: 120.0555556 | I107: 124.3703704 | J107: -4.314814815 | K107: -4.37037037 | M107: -0.03136838022 | N107: 0.265 | T107: -485.168227 | U107: -484.6044458 | V107: 191.3636364 | W107: 184.5757576 | X107: 173.2087542 | Y107: 11.36700337 | Z107: 18.15488215 | AB107: -0.9912067832 | AC107: -1.477 | AI107: -249.5076664 | AJ107: -247.8163227 | AK107: -17.70588235 | AL107: -19.90344623 | AM107: -5.559318677 | AN107: -14.34412755 | AO107: -12.14656368 | AQ107: 0.2417304351 | AR107: 3.72
A108: -580.4000244 | B108: 10 | E108: -553.1978306 | F108: -553.0099036 | G108: 124.6666667 | H108: 125.2222222 | I108: 128.5185185 | J108: -3.296296296 | K108: -3.851851852 | M108: 0.6184417149 | N108: 0.265 | T108: -484.0406645 | U108: -483.4768833 | V108: 170.1818182 | W108: 179.8207071 | X108: 167.9360269 | Y108: 11.88468013 | Z108: 2.245791246 | AB108: -0.6742535032 | AC108: -1.477 | AI108: -246.1249789 | AJ108: -244.4336352 | AK108: 1.147058824 | AL108: -0.137254902 | AM108: -1.310160428 | AN108: 1.172905526 | AO108: 2.457219251 | AQ108: 0.8089009987 | AR108: 3.72
A109: -580.2999878 | B109: 7 | E109: -552.8219765 | F109: -552.6340494 | G109: 131 | H109: 131.8888889 | I109: 133.9074074 | J109: -2.018518519 | K109: -2.907407407 | M109: 0.9788760585 | N109: 0.265 | T109: -482.913102 | U109: -482.3493208 | V109: 177.9166667 | W109: 158.5782828 | X109: 157.3240741 | Y109: 1.254208754 | Z109: 20.59259259 | AB109: -0.04180951558 | AC109: -1.477 | AI109: -242.7422914 | AJ109: -241.0509477 | AK109: 16.14705882 | AL109: 8.529411765 | AM109: 4.941473559 | AN109: 3.587938206 | AO109: 11.20558526 | AQ109: 0.997577795 | AR109: 3.72
A110: -580.2000122 | B110: 3 | E110: -552.4461223 | F110: -552.2581952 | G110: 140 | H110: 139.8333333 | I110: 139.4074074 | J110: 0.4259259259 | K110: 0.5925925926 | M110: 0.8812834152 | N110: 0.265 | T110: -481.7855395 | U110: -481.2217583 | V110: 127.6363636 | W110: 136.1843434 | X110: 149.3585859 | Y110: -13.17424242 | Z110: -21.72222222 | AB110: 0.6101976091 | AC110: -1.477 | AI110: -239.359604 | AJ110: -237.6682602 | AK110: 8.294117647 | AL110: 19.11764706 | AM110: 13.07546049 | AN110: 6.042186572 | AO110: -4.78134284 | AQ110: 0.7194768542 | AR110: 3.72
A111: -580.0999756 | B111: -3 | E111: -552.0702681 | F111: -551.8823411 | G111: 148.5 | H111: 147.5 | I111: 144.8518519 | J111: 2.648148148 | K111: 3.648148148 | M111: 0.3713284676 | N111: 0.265 | T111: -480.657977 | U111: -480.0941958 | V111: 103 | W111: 129.7575758 | X111: 141.9848485 | Y111: -12.22727273 | Z111: -38.98484848 | AB111: 0.9766864908 | AC111: -1.477 | AI111: -235.9769165 | AJ111: -234.2855728 | AK111: 32.91176471 | AL111: 19.8161022 | AM111: 25.49752426 | AN111: -5.681422064 | AO111: 7.414240444 | AQ111: 0.1047246972 | AR111: 3.72
A112: -580 | B112: -8 | E112: -551.694414 | F112: -551.5064869 | G112: 154 | H112: 153.8333333 | I112: 150.0740741 | J112: 3.759259259 | K112: 3.925925926 | M112: -0.3123751968 | N112: 0.265 | T112: -479.5304146 | U112: -478.9666333 | V112: 158.6363636 | W112: 124.739899 | X112: 125.0648148 | Y112: -0.3249158249 | Z112: 33.57154882 | AB112: 0.8861729089 | AC112: -1.477 | AI112: -232.594229 | AJ112: -230.9028853 | AK112: 18.24242424 | AL112: 32.99257279 | AM112: 32.32105367 | AN112: 0.6715191127 | AO112: -14.07862943 | AQ112: -0.5590293094 | AR112: 3.72
A113: -579.9000244 | B113: -11 | E113: -551.3185598 | F113: -551.1306327 | G113: 159 | H113: 158.3333333 | I113: 155.0277778 | J113: 3.305555556 | K113: 3.972222222 | M113: -0.849915035 | N113: 0.265 | T113: -478.4028521 | U113: -477.8390708 | V113: 112.5833333 | W113: 127.3156566 | X113: 115.4385522 | Y113: 11.87710438 | Z113: -2.855218855 | AB113: 0.3810091742 | AC113: -1.477 | AI113: -229.2115416 | AJ113: -227.5201978 | AK113: 47.82352941 | AL113: 40.01218063 | AM113: 32.07268766 | AN113: 7.939492969 | AO113: 15.75084175 | AQ113: -0.9612072893 | AR113: 3.72
A114: -579.7999878 | B114: -14 | E114: -550.9427057 | F114: -550.7547786 | G114: 162 | H114: 161.8333333 | I114: 159.3611111 | J114: 2.472222222 | K114: 2.638888889 | M114: -0.9897701826 | N114: 0.265 | T114: -477.2752896 | U114: -476.7115083 | V114: 110.7272727 | W114: 116.3762626 | X114: 101.043771 | Y114: 15.33249158 | Z114: 9.683501684 | AB114: -0.3024329876 | AC114: -1.477 | AI114: -225.8288541 | AJ114: -224.1375103 | AK114: 53.97058824 | AL114: 56.81372549 | AM114: 29.19439493 | AN114: 27.61933056 | AO114: 24.77619331 | AQ114: -0.9136256959 | AR114: 3.72
A115: -579.7000122 | B115: -16 | E115: -550.5668515 | F115: -550.3789244 | G115: 164.5 | H115: 164.5 | I115: 162.6944444 | J115: 1.805555556 | K115: 1.805555556 | M115: -0.6665008617 | N115: 0.265 | T115: -476.1477271 | U115: -475.5839458 | V115: 125.8181818 | W115: 91.87626263 | X115: 90.27609428 | Y115: 1.60016835 | Z115: 35.54208754 | AB115: -0.8443633933 | AC115: -1.477 | AI115: -222.4461666 | AJ115: -220.7548229 | AK115: 68.64705882 | AL115: 55.44117647 | AM115: 26.09308774 | AN115: 29.34808873 | AO115: 42.55397108 | AQ115: -0.4385484855 | AR115: 3.72
A116: -579.5999756 | B116: -16 | E116: -550.1909973 | F116: -550.0030702 | G116: 167 | H116: 166.9166667 | I116: 165.0833333 | J116: 1.833333333 | K116: 1.916666667 | M116: -0.03136838022 | N116: 0.265 | T116: -475.0201646 | U116: -474.4563833 | V116: 39.08333333 | W116: 82.81565657 | X116: 89.72979798 | Y116: -6.914141414 | Z116: -50.64646465 | AB116: -0.9912067832 | AC116: -1.477 | AI116: -219.0634791 | AJ116: -217.3721354 | AK116: 43.70588235 | AL116: 37.08823529 | AM116: 20.22707467 | AN116: 16.86116063 | AO116: 23.47880768 | AQ116: 0.2417304351 | AR116: 3.72
A117: -579.5 | B117: -17 | E117: -549.8151432 | F117: -549.6272161 | G117: 169.25 | H117: 168.75 | I117: 166.6944444 | J117: 2.055555556 | K117: 2.555555556 | M117: 0.6184417149 | N117: 0.265 | T117: -473.8926021 | U117: -473.3288209 | V117: 83.54545455 | W117: 56.99747475 | X117: 83.06313131 | Y117: -26.06565657 | Z117: 0.4823232323 | AB117: -0.6742535032 | AC117: -1.477 | AI117: -215.6807917 | AJ117: -213.9894479 | AK117: -1.088235294 | AL117: 10.9533571 | AM117: 16.04981184 | AN117: -5.096454744 | AO117: -17.13804714 | AQ117: 0.8089009987 | AR117: 3.72
A118: -579.4000244 | B118: -16 | E118: -549.439289 | F118: -549.2513619 | G118: 170 | H118: 169.75 | I118: 167.5555556 | J118: 2.194444444 | K118: 2.444444444 | M118: 0.9788760585 | N118: 0.265 | T118: -472.7650396 | U118: -472.2012584 | V118: 48.36363636 | W118: 54.21212121 | X118: 77.29124579 | Y118: -23.07912458 | Z118: -28.92760943 | AB118: -0.04180951558 | AC118: -1.477 | AI118: -212.2981042 | AJ118: -210.6067605 | AK118: -9.757575758 | AL118: -10.15448604 | AM118: 11.88314518 | AN118: -22.03763121 | AO118: -21.64072093 | AQ118: 0.997577795 | AR118: 3.72
A119: -579.2999878 | B119: -16 | E119: -549.0634348 | F119: -548.8755078 | G119: 170 | H119: 170 | I119: 167.6388889 | J119: 2.361111111 | K119: 2.361111111 | M119: 0.8812834152 | N119: 0.265 | T119: -471.6374771 | U119: -471.0736959 | V119: 30.72727273 | W119: 59.05808081 | X119: 76.04377104 | Y119: -16.98569024 | Z119: -45.31649832 | AB119: 0.6101976091 | AC119: -1.477 | AI119: -208.9154167 | AJ119: -207.224073 | AK119: -19.61764706 | AL119: -16.41919192 | AM119: 8.462170727 | AN119: -24.88136265 | AO119: -28.07981779 | AQ119: 0.7194768542 | AR119: 3.72
A120: -579.2000122 | B120: -15 | E120: -548.6875807 | F120: -548.4996536 | G120: 170 | H120: 169.5 | I120: 165.8796296 | J120: 3.62037037 | K120: 4.12037037 | M120: 0.3713284676 | N120: 0.265 | T120: -470.5099146 | U120: -469.9461334 | V120: 98.08333333 | W120: 75.81565657 | X120: 75.11447811 | Y120: 0.7011784512 | Z120: 22.96885522 | AB120: 0.9766864908 | AC120: -1.477 | AI120: -205.5327292 | AJ120: -203.8413855 | AK120: -19.88235294 | AL120: -19.61764706 | AM120: 5.370667459 | AN120: -24.98831452 | AO120: -25.2530204 | AQ120: 0.1047246972 | AR120: 3.72
A121: -579.0999756 | B121: -14 | E121: -548.3117265 | F121: -548.1237994 | G121: 168.5 | H121: 168.4166667 | I121: 162.4074074 | J121: 6.009259259 | K121: 6.092592593 | M121: -0.3123751968 | N121: 0.265 | T121: -469.3823521 | U121: -468.8185709 | V121: 98.63636364 | W121: 85.78535354 | X121: 81.59006734 | Y121: 4.195286195 | Z121: 17.0462963 | AB121: 0.8861729089 | AC121: -1.477 | AI121: -202.1500418 | AJ121: -200.458698 | AK121: -19.35294118 | AL121: -9.637254902 | AM121: 3.592889681 | AN121: -13.23014458 | AO121: -22.94583086 | AQ121: -0.5590293094 | AR121: 3.72
A122: -579 | B122: -12 | E122: -547.9358723 | F122: -547.7479453 | G122: 166.75 | H122: 166 | I122: 157.5462963 | J122: 8.453703704 | K122: 9.203703704 | M122: -0.849915035 | N122: 0.265 | T122: -468.2547896 | U122: -467.6910084 | V122: 60.63636364 | W122: 86.25757576 | X122: 81.94360269 | Y122: 4.313973064 | Z122: -21.30723906 | AB122: 0.3810091742 | AC122: -1.477 | AI122: -198.7673543 | AJ122: -197.0760106 | AK122: 10.32352941 | AL122: 4.717468806 | AM122: 9.485046544 | AN122: -4.767577738 | AO122: 0.8384828679 | AQ122: -0.9612072893 | AR122: 3.72
A123: -578.9000244 | B123: -11 | E123: -547.5600182 | F123: -547.3720911 | G123: 162.75 | H123: 159.3888889 | I123: 152.7962963 | J123: 6.592592593 | K123: 9.953703704 | M123: -0.9897701826 | N123: 0.265 | T123: -467.1272272 | U123: -466.5634459 | V123: 99.5 | W123: 92.53030303 | X123: 90.50505051 | Y123: 2.025252525 | Z123: 8.994949495 | AB123: -0.3024329876 | AC123: -1.477 | AI123: -195.3846668 | AJ123: -193.6933231 | AK123: 23.18181818 | AL123: 24.77629234 | AM123: 16.39601901 | AN123: 8.380273321 | AO123: 6.785799168 | AQ123: -0.9136256959 | AR123: 3.72
A124: -578.7999878 | B124: -10 | E124: -547.184164 | F124: -546.9962369 | G124: 148.6666667 | H124: 149.0555556 | I124: 149.0555556 | J124: 0 | K124: -0.3888888889 | M124: -0.6665008617 | N124: 0.265 | T124: -465.9996647 | U124: -465.4358834 | V124: 117.4545455 | W124: 104.7727273 | X124: 100.9494949 | Y124: 3.823232323 | Z124: 16.50505051 | AB124: -0.8443633933 | AC124: -1.477 | AI124: -192.0019794 | AJ124: -190.3106356 | AK124: 40.82352941 | AL124: 30.57040998 | AM124: 21.49405823 | AN124: 9.076351753 | AO124: 19.32947118 | AQ124: -0.4385484855 | AR124: 3.72
A125: -578.7000122 | B125: -8 | E125: -546.8083099 | F125: -546.6203828 | G125: 135.75 | H125: 136.6388889 | I125: 146.8055556 | J125: -10.16666667 | K125: -11.05555556 | M125: -0.03136838022 | N125: 0.265 | T125: -464.8721022 | U125: -464.3083209 | V125: 97.36363636 | W125: 100.5151515 | X125: 100.0311448 | Y125: 0.484006734 | Z125: -2.667508418 | AB125: -0.9912067832 | AC125: -1.477 | AI125: -188.6192919 | AJ125: -186.9279481 | AK125: 27.70588235 | AL125: 40.15686275 | AM125: 28.61903347 | AN125: 11.53782927 | AO125: -0.913151119 | AQ125: 0.2417304351 | AR125: 3.72
A126: -578.5999756 | B126: -7 | E126: -546.4324557 | F126: -546.2445286 | G126: 125.5 | H126: 129.5 | I126: 146.2777778 | J126: -16.77777778 | K126: -20.77777778 | M126: 0.6184417149 | N126: 0.265 | T126: -463.7445397 | U126: -463.1807584 | V126: 86.72727273 | W126: 103.1691919 | X126: 101.273569 | Y126: 1.895622896 | Z126: -14.5462963 | AB126: -0.6742535032 | AC126: -1.477 | AI126: -185.2366044 | AJ126: -183.5452607 | AK126: 51.94117647 | AL126: 44.02941176 | AM126: 39.51445831 | AN126: 4.514953456 | AO126: 12.42671816 | AQ126: 0.8089009987 | AR126: 3.72
A127: -578.5 | B127: -6 | E127: -546.0566015 | F127: -545.8686744 | G127: 127.25 | H127: 129.6944444 | I127: 147.1111111 | J127: -17.41666667 | K127: -19.86111111 | M127: 0.9788760585 | N127: 0.265 | T127: -462.6169772 | U127: -462.0531959 | V127: 125.4166667 | W127: 112.290404 | X127: 109.3880471 | Y127: 2.902356902 | Z127: 16.02861953 | AB127: -0.04180951558 | AC127: -1.477 | AI127: -181.8539169 | AJ127: -180.1625732 | AK127: 52.44117647 | AL127: 43.54901961 | AM127: 47.80530798 | AN127: -4.256288374 | AO127: 4.635868489 | AQ127: 0.997577795 | AR127: 3.72
A128: -578.4000244 | B128: -4 | E128: -545.6807474 | F128: -545.4928203 | G128: 136.3333333 | H128: 137.7777778 | I128: 148.6574074 | J128: -10.87962963 | K128: -12.32407407 | M128: 0.8812834152 | N128: 0.265 | T128: -461.4894147 | U128: -460.9256335 | V128: 124.7272727 | W128: 113.3207071 | X128: 111.3728956 | Y128: 1.947811448 | Z128: 13.3543771 | AB128: 0.6101976091 | AC128: -1.477 | AI128: -178.4712295 | AJ128: -176.7798857 | AK128: 26.26470588 | AL128: 40.98276887 | AM128: 54.92236086 | AN128: -13.939592 | AO128: -28.65765498 | AQ128: 0.7194768542 | AR128: 3.72
A129: -578.2999878 | B129: -2 | E129: -545.3048932 | F129: -545.1169661 | G129: 149.75 | H129: 149.9444444 | I129: 151.8055556 | J129: -1.861111111 | K129: -2.055555556 | M129: 0.3713284676 | N129: 0.265 | T129: -460.3618522 | U129: -459.798071 | V129: 89.81818182 | W129: 108.1212121 | X129: 109.4234007 | Y129: -1.302188552 | Z129: -19.60521886 | AB129: 0.9766864908 | AC129: -1.477 | AI129: -175.088542 | AJ129: -173.3971983 | AK129: 44.24242424 | AL129: 49.73767083 | AM129: 55.67399485 | AN129: -5.936324025 | AO129: -11.43157061 | AQ129: 0.1047246972 | AR129: 3.72
A130: -578.2000122 | B130: 0 | E130: -544.929039 | F130: -544.741112 | G130: 163.75 | H130: 162.5833333 | I130: 156.3888889 | J130: 6.194444444 | K130: 7.361111111 | M130: -0.3123751968 | N130: 0.265 | T130: -459.2342897 | U130: -458.6705085 | V130: 109.8181818 | W130: 111.1010101 | X130: 112.8274411 | Y130: -1.726430976 | Z130: -3.009259259 | AB130: 0.8861729089 | AC130: -1.477 | AI130: -171.7058545 | AJ130: -170.0145108 | AK130: 78.70588235 | AL130: 69.29649436 | AM130: 58.18379877 | AN130: 11.11269558 | AO130: 20.52208358 | AQ130: -0.5590293094 | AR130: 3.72
A131: -578.0999756 | B131: 2 | E131: -544.5531849 | F131: -544.3652578 | G131: 174.25 | H131: 171.5555556 | I131: 162 | J131: 9.555555556 | K131: 12.25 | M131: -0.849915035 | N131: 0.265 | T131: -458.1067272 | U131: -457.542946 | V131: 133.6666667 | W131: 120.2828283 | X131: 117.4436027 | Y131: 2.839225589 | Z131: 16.22306397 | AB131: 0.3810091742 | AC131: -1.477 | AI131: -168.323167 | AJ131: -166.6318233 | AK131: 84.94117647 | AL131: 83.62745098 | AM131: 62.3755199 | AN131: 21.25193108 | AO131: 22.56565657 | AQ131: -0.9612072893 | AR131: 3.72
A132: -578 | B132: 4 | E132: -544.1773307 | F132: -543.9894036 | G132: 176.6666667 | H132: 175.9722222 | I132: 167.4166667 | J132: 8.555555556 | K132: 9.25 | M132: -0.9897701826 | N132: 0.265 | T132: -456.9791647 | U132: -456.4153835 | V132: 117.3636364 | W132: 116.979798 | X132: 120.03367 | Y132: -3.053872054 | Z132: -2.67003367 | AB132: -0.3024329876 | AC132: -1.477 | AI132: -164.9404796 | AJ132: -163.2491358 | AK132: 87.23529412 | AL132: 73.25490196 | AM132: 68.70558526 | AN132: 4.549316696 | AO132: 18.52970885 | AQ132: -0.9136256959 | AR132: 3.72
A133: -577.9000244 | B133: 6 | E133: -543.8014765 | F133: -543.6135495 | G133: 177 | H133: 176.8888889 | I133: 171.8240741 | J133: 5.064814815 | K133: 5.175925926 | M133: -0.6665008617 | N133: 0.265 | T133: -455.8516022 | U133: -455.287821 | V133: 99.90909091 | W133: 115.0909091 | X133: 121.7407407 | Y133: -6.64983165 | Z133: -21.83164983 | AB133: -0.8443633933 | AC133: -1.477 | AI133: -161.5577921 | AJ133: -159.8664484 | AK133: 47.58823529 | AL133: 61.70588235 | AM133: 78.72519311 | AN133: -17.01931075 | AO133: -31.13695781 | AQ133: -0.4385484855 | AR133: 3.72
A134: -577.7999878 | B134: 9 | E134: -543.4256224 | F134: -543.2376953 | G134: 177 | H134: 176.6666667 | I134: 174.0462963 | J134: 2.62037037 | K134: 2.953703704 | M134: -0.03136838022 | N134: 0.265 | T134: -454.7240398 | U134: -454.1602585 | V134: 128 | W134: 118.7272727 | X134: 129.6590909 | Y134: -10.93181818 | Z134: -1.659090909 | AB134: -0.9912067832 | AC134: -1.477 | AI134: -158.1751046 | AJ134: -156.4837609 | AK134: =AVERAGEIFS(Sea_Level,Age_Myr,">"&AI134,Age_Myr,"<="&AI135) -> 50.29411765 | AL134: 62.51633987 | AM134: 89.34204793 | AN134: -26.82570806 | AO134: -39.04793028 | AQ134: 0.2417304351 | AR134: 3.72
A135: -577.7000122 | B135: 12 | E135: -543.0497682 | F135: -542.8618411 | G135: =AVERAGEIFS(Sea_Level,Age_Myr,">"&E135,Age_Myr,"<="&E136) -> 176 | H135: 176.3333333 | I135: 173.212963 | J135: 3.12037037 | K135: 2.787037037 | M135: 0.6184417149 | N135: 0.265 | T135: -453.5964773 | U135: -453.032696 | V135: 128.2727273 | W135: 135 | X135: 135.6792929 | Y135: -0.6792929293 | Z135: -7.406565657 | AB135: -0.6742535032 | AC135: -1.477 | AI135: -154.7924171 | AJ135: -153.1010734 | AK135: 89.66666667 | AL135: 83.12418301 | AM135: 97.82244009 | AN135: -14.69825708 | AO135: -8.15577342 | AQ135: 0.8089009987 | AR135: 3.72
A136: -577.5999756 | B136: 14 | E136: -542.6739141 | F136: -542.485987 | G136: 176 | H136: 176 | I136: 166.6851852 | J136: 9.314814815 | K136: 9.314814815 | M136: 0.9788760585 | N136: 0.265 | T136: -452.4689148 | U136: -451.9051335 | V136: 148.7272727 | W136: 139.030303 | X136: 138.2112795 | Y136: 0.819023569 | Z136: 10.51599327 | AB136: -0.04180951558 | AC136: -1.477 | AI136: -151.4097297 | AJ136: -149.7183859 | AK136: 109.4117647 | AL136: 105.1732026 | AM136: 103.1165577 | AN136: 2.05664488 | AO136: 6.295206972 | AQ136: 0.997577795 | AR136: 3.72
A137: -577.5 | B137: 17 | E137: -542.2980599 | F137: -542.1101328 | G137: 176 | H137: 173.9166667 | I137: 158.5 | J137: 15.41666667 | K137: 17.5 | M137: 0.8812834152 | N137: 0.265 | T137: -451.3413523 | U137: -450.777571 | V137: 140.0909091 | W137: 149.9671717 | X137: 144.9991582 | Y137: 4.968013468 | Z137: -4.908249158 | AB137: 0.6101976091 | AC137: -1.477 | AI137: -148.0270422 | AJ137: -146.3356985 | AK137: 116.4411765 | AL137: 121.8823529 | AM137: 106.4776193 | AN137: 15.40473361 | AO137: 9.96355714 | AQ137: 0.7194768542 | AR137: 3.72
A138: -577.4000244 | B138: 20 | E138: -541.9222057 | F138: -541.7342786 | G138: 169.75 | H138: 167.3333333 | I138: 153.0277778 | J138: 14.30555556 | K138: 16.72222222 | M138: 0.3713284676 | N138: 0.265 | T138: -450.2137898 | U138: -449.6500085 | V138: 161.0833333 | W138: 155.0580808 | X138: 153.8518519 | Y138: 1.206228956 | Z138: 7.231481481 | AB138: 0.9766864908 | AC138: -1.477 | AI138: -144.6443547 | AJ138: -142.953011 | AK138: 139.7941176 | AL138: 137.0882353 | AM138: 113.5625867 | AN138: 23.52564864 | AO138: 26.231531 | AQ138: 0.1047246972 | AR138: 3.72
A139: -577.2999878 | B139: 22 | E139: -541.5463516 | F139: -541.3584245 | G139: 156.25 | H139: 147.1666667 | I139: 152.2222222 | J139: -5.055555556 | K139: 4.027777778 | M139: -0.3123751968 | N139: 0.265 | T139: -449.0862273 | U139: -448.5224461 | V139: 164 | W139: =AVERAGE(V138:V140) -> 160.5126263 | X139: 156.1447811 | Y139: 4.367845118 | Z139: 7.855218855 | AB139: 0.8861729089 | AC139: -1.477 | AI139: -141.2616673 | AJ139: -139.5703235 | AK139: 155.0294118 | AL139: 142.4705882 | AM139: 115.3795801 | AN139: 27.09100812 | AO139: 39.64983165 | AQ139: -0.5590293094 | AR139: 3.72
A140: -577.2000122 | B140: 24 | E140: -541.1704974 | F140: -540.9825703 | G140: 115.5 | H140: 124.9166667 | I140: 153.5 | J140: -28.58333333 | K140: -38 | M140: -0.849915035 | N140: 0.265 | T140: -447.9586648 | U140: -447.3948836 | V140: 156.4545455 | W140: 166.3030303 | X140: 159.8215488 | Y140: 6.481481481 | Z140: -3.367003367 | AB140: 0.3810091742 | AC140: -1.477 | AI140: =AI139 + 3.3826874730028 -> -137.8789798 | AJ140: =AJ139 + 3.3826874730028 -> -136.187636 | AK140: 132.5882353 | AL140: 135.0341652 | AM140: =AVERAGE(AK136:AK144) -> 116.3218459 | AN140: =AL140-AM140 -> 18.71231927 | AO140: =AK140-AM140 -> 16.26638938 | AQ140: =SIN((2*PI()*(AJ140+AR140)/30.4441872570252) + 0.356178951) -> -0.9612072893 | AR140: =AR139 -> 3.72
A141: -577.0999756 | B141: 26 | E141: -540.7946432 | F141: -540.6067162 | G141: 103 | H141: 115.4166667 | I141: 154.7222222 | J141: -39.30555556 | K141: -51.72222222 | M141: -0.9897701826 | N141: 0.265 | T141: -446.8311023 | U141: -446.2673211 | V141: =AVERAGEIFS(Sea_Level,Age_Myr,">"&T141,Age_Myr,"<="&T142) -> 178.4545455 | W141: 171.4974747 | X141: 163.3518519 | Y141: 8.145622896 | Z141: 15.1026936 | AB141: -0.3024329876 | AC141: -1.477 | AI141: -134.4962923 | AJ141: -132.8049486 | AK141: 117.4848485 | AL141: 120.4753417 | AM141: 119.2401466 | AN141: 1.235195088 | AO141: -1.755298079 | AQ141: -0.9136256959 | AR141: 3.72
A142: -577 | B142: 28 | E142: -540.4187891 | F142: -540.230862 | G142: 127.75 | H142: 133.5 | I142: 153.8888889 | J142: -20.38888889 | K142: -26.13888889 | M142: -0.6665008617 | N142: 0.265 | T142: -445.7035398 | U142: -445.1397586 | V142: 179.5833333 | W142: 168.8914141 | X142: 165.8265993 | Y142: 3.064814815 | Z142: 13.75673401 | AB142: -0.8443633933 | AC142: -1.477 | AI142: -131.1136048 | AJ142: -129.4222611 | AK142: 111.3529412 | AL142: 98.49494949 | AM142: 125.261834 | AN142: -26.76688453 | AO142: -13.90889285 | AQ142: -0.4385484855 | AR142: 3.72
A143: -576.9000244 | B143: 30 | E143: -540.0429349 | F143: -539.8550078 | G143: 169.75 | H143: 161.6666667 | I143: 154.1944444 | J143: 7.472222222 | K143: 15.55555556 | M143: -0.03136838022 | N143: 0.265 | T143: -444.5759773 | U143: -444.0121961 | V143: 148.6363636 | W143: 163.1944444 | X143: 161.8072391 | Y143: 1.387205387 | Z143: -13.17087542 | AB143: -0.9912067832 | AC143: -1.477 | AI143: -127.7309174 | AJ143: -126.0395736 | AK143: 66.64705882 | AL143: 92.04901961 | AM143: 126.4546445 | AN143: -34.40562488 | AO143: -59.80758566 | AQ143: 0.2417304351 | AR143: 3.72
A144: -576.7999878 | B144: 32 | E144: -539.6670807 | F144: -539.4791537 | G144: 187.5 | H144: 181.4166667 | I144: 155.4166667 | J144: 26 | K144: 32.08333333 | M144: 0.6184417149 | N144: 0.265 | T144: -443.4484148 | U144: -442.8846336 | V144: 161.3636364 | W144: 163.5 | X144: 157.4436027 | Y144: 6.056397306 | Z144: 3.92003367 | AB144: -0.6742535032 | AC144: -1.477 | AI144: -124.3482299 | AJ144: -122.6568862 | AK144: 98.14705882 | AL144: 100.1568627 | AM144: 125.5461478 | AN144: -25.38928501 | AO144: -27.39908893 | AQ144: 0.8089009987 | AR144: 3.72
A145: -576.7000122 | B145: 34 | E145: -539.2912266 | F145: -539.1032995 | G145: 187 | H145: 181 | I145: 157.5462963 | J145: 23.4537037 | K145: 29.4537037 | M145: 0.9788760585 | N145: 0.265 | T145: -442.3208524 | U145: -441.7570711 | V145: 180.5 | W145: 168.0757576 | X145: 151.8375421 | Y145: 16.23821549 | Z145: 28.66245791 | AB145: -0.04180951558 | AC145: -1.477 | AI145: -120.9655424 | AJ145: -119.2741987 | AK145: 135.6764706 | AL145: =AVERAGE(AK144:AK146) -> 134.8199643 | AM145: 127.1082393 | AN145: 7.711725094 | AO145: 8.568231333 | AQ145: 0.997577795 | AR145: 3.72
A146: -576.5999756 | B146: 36 | E146: -538.9153724 | F146: -538.7274453 | G146: 168.5 | H146: 176 | I146: 162.6851852 | J146: 13.31481481 | K146: 5.814814815 | M146: 0.8812834152 | N146: 0.265 | T146: -441.1932899 | U146: -440.6295086 | V146: 162.3636364 | W146: 155.9242424 | X146: 146.4941077 | Y146: 9.43013468 | Z146: 15.86952862 | AB146: 0.6101976091 | AC146: -1.477 | AI146: -117.5828549 | AJ146: -115.8915112 | AK146: 170.6363636 | AL146: 152.2807487 | AM146: 133.5576352 | AN146: 18.72311349 | AO146: 37.07872846 | AQ146: 0.7194768542 | AR146: 3.72
A147: -576.5 | B147: 37 | E147: -538.5395183 | F147: -538.3515912 | G147: 172.5 | H147: 169.4166667 | I147: 168.2685185 | J147: 1.148148148 | K147: 4.231481481 | M147: 0.3713284676 | N147: 0.265 | T147: -440.0657274 | U147: -439.5019461 | V147: 124.9090909 | W147: 137.3333333 | X147: 142.8333333 | Y147: -5.5 | Z147: -17.92424242 | AB147: 0.9766864908 | AC147: -1.477 | AI147: -114.2001675 | AJ147: -112.5088237 | AK147: 150.5294118 | AL147: 156.0062389 | AM147: 144.3517528 | AN147: 11.65448604 | AO147: 6.177658942 | AQ147: 0.1047246972 | AR147: 3.72
A148: -576.4000244 | B148: 39 | E148: -538.1636641 | F148: -537.975737 | G148: 167.25 | H148: 158.1388889 | I148: 170.5185185 | J148: -12.37962963 | K148: -3.268518519 | M148: -0.3123751968 | N148: 0.265 | T148: -438.9381649 | U148: -438.3743836 | V148: 124.7272727 | W148: 118.5454545 | X148: 141.5 | Y148: -22.95454545 | Z148: -16.77272727 | AB148: 0.8861729089 | AC148: -1.477 | AI148: -110.81748 | AJ148: -109.1261363 | AK148: 146.8529412 | AL148: 148.0098039 | AM148: 162.9936621 | AN148: -14.98385819 | AO148: -16.14072093 | AQ148: -0.5590293094 | AR148: 3.72
A149: -576.2999878 | B149: 41 | E149: -537.7878099 | F149: -537.5998828 | G149: 134.6666667 | H149: =AVERAGE(G148:G150) -> 150.3888889 | I149: 171.3148148 | J149: -20.92592593 | K149: -36.64814815 | M149: -0.849915035 | N149: 0.265 | T149: -437.8106024 | U149: -437.2468211 | V149: 106 | W149: 120.3636364 | X149: 141.3299663 | Y149: -20.96632997 | Z149: -35.32996633 | AB149: 0.3810091742 | AC149: -1.477 | AI149: -107.4347925 | AJ149: -105.7434488 | AK149: 146.6470588 | AL149: 156.3431373 | AM149: 178.6995445 | AN149: -22.35640721 | AO149: -32.05248564 | AQ149: -0.9612072893 | AR149: 3.72
A150: -576.2000122 | B150: 43 | E150: -537.4119558 | F150: -537.2240287 | G150: 149.25 | H150: 153.9722222 | I150: 171.9259259 | J150: -17.9537037 | K150: -22.67592593 | M150: -0.9897701826 | N150: 0.265 | T150: -436.6830399 | U150: -436.1192587 | V150: 130.3636364 | W150: 127.6666667 | X150: 137.506734 | Y150: -9.84006734 | Z150: -7.143097643 | AB150: -0.3024329876 | AC150: -1.477 | AI150: -104.0521051 | AJ150: -102.3607613 | AK150: 175.5294118 | AL150: 176.8921569 | AM150: 187.2943157 | AN150: -10.40215884 | AO150: -11.76490394 | AQ150: -0.9136256959 | AR150: 3.72
A151: -576.0999756 | B151: 45 | E151: -537.0361016 | F151: -536.8481745 | G151: 178 | H151: 172.4166667 | I151: 173.287037 | J151: -0.8703703704 | K151: 4.712962963 | M151: -0.6665008617 | N151: 0.265 | T151: -435.5554774 | U151: -434.9916962 | V151: 146.6363636 | W151: 137.8787879 | X151: 138.4259259 | Y151: -0.5471380471 | Z151: 8.21043771 | AB151: -0.8443633933 | AC151: -1.477 | AI151: -100.6694176 | AJ151: -98.97807384 | AK151: 208.5 | AL151: 206.1512181 | AM151: 191.6876609 | AN151: 14.46355714 | AO151: 16.81233908 | AQ151: -0.4385484855 | AR151: 3.72
A152: -576 | B152: 46 | E152: -536.6602474 | F152: -536.4723204 | G152: 190 | H152: 187.5555556 | I152: 168.8703704 | J152: 18.68518519 | K152: 21.12962963 | M152: -0.03136838022 | N152: 0.265 | T152: =T151 + 1.12756249100093 -> -434.4279149 | U152: =U151 + 1.12756249100093 -> -433.8641337 | V152: 136.6363636 | W152: 147.7020202 | X152: =AVERAGE(V148:V156) -> 143.3989899 | Y152: =W152-X152 -> 4.303030303 | Z152: =V152-X152 -> -6.762626263 | AB152: =SIN((2*PI()*(U152+AC152)/10.1480624190084) + 4.210129444) -> -0.9912067832 | AC152: =AC151 -> -1.477 | AI152: -97.28673011 | AJ152: -95.59538637 | AK152: 234.4242424 | AL152: 227.4747475 | AM152: 200.0961577 | AN152: 27.37858982 | AO152: 34.32808477 | AQ152: 0.2417304351 | AR152: 3.72
A153: -575.9000244 | B153: 48 | E153: -536.2843933 | F153: -536.0964662 | G153: 194.6666667 | H153: 192.3888889 | I153: 163.4351852 | J153: 28.9537037 | K153: 31.23148148 | M153: 0.6184417149 | N153: 0.265 | T153: -433.3003524 | U153: -432.7365712 | V153: 159.8333333 | W153: 147.520202 | X153: 148.2171717 | Y153: -0.696969697 | Z153: 11.61616162 | AB153: -0.6742535032 | AC153: -1.477 | AI153: -93.90404264 | AJ153: -92.2126989 | AK153: 239.5 | AL153: 228.9845514 | AM153: 209.7497524 | AN153: 19.23479897 | AO153: 29.75024757 | AQ153: 0.8089009987 | AR153: 3.72
A154: -575.7999878 | B154: 49 | E154: -535.9085391 | F154: -535.720612 | G154: 192.5 | H154: 189.3055556 | I154: 163.6388889 | J154: 25.66666667 | K154: 28.86111111 | M154: 0.9788760585 | N154: 0.265 | T154: -432.1727899 | U154: -431.6090087 | V154: 146.0909091 | W154: 158.8535354 | X154: 153.7828283 | Y154: 5.070707071 | Z154: -7.691919192 | AB154: -0.04180951558 | AC154: -1.477 | AI154: -90.52135516 | AJ154: -88.83001143 | AK154: 213.0294118 | AL154: 220.9019608 | AM154: 217.3781937 | AN154: 3.523767083 | AO154: -4.348781937 | AQ154: 0.997577795 | AR154: 3.72
A155: -575.7000122 | B155: 50 | E155: =E154 + 0.375854163666978 -> -535.5326849 | F155: =F154 + 0.375854163666978 -> -535.3447579 | G155: 180.75 | H155: 168.6666667 | I155: =AVERAGE(G151:G159) -> 167.6111111 | J155: =H155-I155 -> 1.055555556 | K155: =G155-I155 -> 13.13888889 | M155: =SIN((2*PI()*(F155+N155)/3.3826874730028) + 3.205610299) -> 0.8812834152 | N155: =N154 -> 0.265 | T155: -431.0452274 | U155: -430.4814462 | V155: 170.6363636 | W155: 162.1313131 | X155: 160.6313131 | Y155: 1.5 | Z155: 10.00505051 | AB155: 0.6101976091 | AC155: -1.477 | AI155: -87.13866769 | AJ155: -85.44732395 | AK155: 210.1764706 | AL155: 216.4705882 | AM155: 221.6657754 | AN155: -5.195187166 | AO155: -11.48930481 | AQ155: 0.7194768542 | AR155: 3.72
A156: -575.5999756 | B156: 51 | E156: -535.1568308 | F156: -534.9689037 | G156: 132.75 | H156: 143.9444444 | I156: 170.4444444 | J156: -26.5 | K156: -37.69444444 | M156: 0.3713284676 | N156: 0.265 | T156: -429.917665 | U156: -429.3538837 | V156: 169.6666667 | W156: 169.4646465 | X156: 167.7643098 | Y156: 1.7003367 | Z156: 1.902356902 | AB156: 0.9766864908 | AC156: -1.477 | AI156: -83.75598022 | AJ156: -82.06463648 | AK156: 226.2058824 | AL156: 223.372549 | AM156: 218.6821153 | AN156: 4.690433749 | AO156: 7.523767083 | AQ156: 0.1047246972 | AR156: 3.72
A157: -575.5 | B157: 52 | E157: -534.7809766 | F157: -534.5930495 | G157: 118.3333333 | H157: 129.1944444 | I157: 170.4444444 | J157: -41.25 | K157: -52.11111111 | M157: -0.3123751968 | N157: 0.265 | T157: -428.7901025 | U157: -428.2263212 | V157: 168.0909091 | W157: 164.6161616 | X157: 176.2491582 | Y157: -11.63299663 | Z157: -8.158249158 | AB157: 0.8861729089 | AC157: -1.477 | AI157: -80.37329274 | AJ157: -78.68194901 | AK157: 233.7352941 | AL157: 225.0814023 | AM157: 214.6905328 | AN157: 10.39086948 | AO157: 19.04476134 | AQ157: -0.5590293094 | AR157: 3.72
A158: -575.4000244 | B158: 53 | E158: -534.4051225 | F158: -534.2171954 | G158: 136.5 | H158: 146.6111111 | I158: 168.0092593 | J158: -21.39814815 | K158: -31.50925926 | M158: -0.849915035 | N158: 0.265 | T158: -427.66254 | U158: -427.0987587 | V158: 156.0909091 | W158: 172.0606061 | X158: 180.2070707 | Y158: -8.146464646 | Z158: -24.11616162 | AB158: 0.3810091742 | AC158: -1.477 | AI158: -76.99060527 | AJ158: -75.29926153 | AK158: 215.3030303 | AL158: 221.0519905 | AM158: 209.9421668 | AN158: 11.10982373 | AO158: 5.360863537 | AQ158: -0.9612072893 | AR158: 3.72
A159: -575.2999878 | B159: 54 | E159: -534.0292683 | F159: -533.8413412 | G159: 185 | H159: 175 | I159: 165.1203704 | J159: 9.87962963 | K159: 19.87962963 | M159: -0.9897701826 | N159: 0.265 | T159: -426.5349775 | U159: -425.9711962 | V159: 192 | W159: 186.3080808 | X159: 182.1691919 | Y159: 4.138888889 | Z159: 9.830808081 | AB159: -0.3024329876 | AC159: -1.477 | AI159: -73.6079178 | AJ159: -71.91657406 | AK159: 214.1176471 | AL159: 203.6892454 | AM159: 201.0826896 | AN159: 2.606555754 | AO159: 13.03495742 | AQ159: -0.9136256959 | AR159: 3.72
A160: -575.2000122 | B160: 56 | E160: -533.6534141 | F160: -533.465487 | G160: 203.5 | H160: 192.8333333 | I160: 164.8148148 | J160: 28.01851852 | K160: 38.68518519 | M160: -0.6665008617 | N160: 0.265 | T160: -425.407415 | U160: -424.8436337 | V160: 210.8333333 | W160: 205.2777778 | X160: 186.3409091 | Y160: 18.93686869 | Z160: 24.49242424 | AB160: -0.8443633933 | AC160: -1.477 | AI160: -70.22523032 | AJ160: -68.53388659 | AK160: 181.6470588 | AL160: 198.0882353 | AM160: 197.7095464 | AN160: 0.3786888493 | AO160: -16.06248762 | AQ160: -0.4385484855 | AR160: 3.72
A161: -575.0999756 | B161: 57 | E161: -533.27756 | F161: -533.0896329 | G161: 190 | H161: 188.75 | I161: 172.0925926 | J161: 16.65740741 | K161: 17.90740741 | M161: -0.03136838022 | N161: 0.265 | T161: -424.2798525 | U161: -423.7160713 | V161: 213 | W161: 206.4292929 | X161: 191.4991582 | Y161: 14.93013468 | Z161: 21.50084175 | AB161: -0.9912067832 | AC161: -1.477 | AI161: -66.84254285 | AJ161: -65.15119911 | AK161: 198.5 | AL161: 192.3039216 | AM161: 195.6834027 | AN161: -3.379481085 | AO161: 2.816597346 | AQ161: 0.2417304351 | AR161: 3.72
A162: -575 | B162: 59 | E162: -532.9017058 | F162: -532.7137787 | G162: 172.75 | H162: 176.4166667 | I162: 182.0925926 | J162: -5.675925926 | K162: -9.342592593 | M162: 0.6184417149 | N162: 0.265 | T162: -423.15229 | U162: -422.5885088 | V162: 195.4545455 | W162: 190.7348485 | X162: 193.8627946 | Y162: -3.127946128 | Z162: 1.591750842 | AB162: -0.6742535032 | AC162: -1.477 | AI162: -63.45985538 | AJ162: -61.76851164 | AK162: 196.7647059 | AL162: 176.1862745 | AM162: 189.761834 | AN162: -13.57555952 | AO162: 7.002871856 | AQ162: 0.8089009987 | AR162: 3.72
A163: -574.9000244 | B163: 60 | E163: -532.5258516 | F163: -532.3379246 | G163: 166.5 | H163: 172.4166667 | I163: 190.1481481 | J163: -17.73148148 | K163: -23.64814815 | M163: 0.9788760585 | N163: 0.265 | T163: -422.0247275 | U163: -421.4609463 | V163: 163.75 | W163: 189.1287879 | X163: 195.4915825 | Y163: -6.362794613 | Z163: -31.74158249 | AB163: -0.04180951558 | AC163: -1.477 | AI163: -60.07716791 | AJ163: -58.38582417 | AK163: 133.2941176 | AL163: 169.9590018 | AM163: 187.6464646 | AN163: -17.68746286 | AO163: -54.352347 | AQ163: 0.997577795 | AR163: 3.72
A164: -574.7999878 | B164: 61 | E164: -532.1499975 | F164: -531.9620704 | G164: 178 | H164: 180.9166667 | I164: 192.1481481 | J164: -11.23148148 | K164: -14.14814815 | M164: 0.8812834152 | N164: 0.265 | T164: -420.897165 | U164: -420.3333838 | V164: 208.1818182 | W164: 196.0075758 | X164: 196.3602694 | Y164: -0.3526936027 | Z164: 11.82154882 | AB164: 0.6101976091 | AC164: -1.477 | AI164: -56.69448043 | AJ164: -55.0031367 | AK164: 179.8181818 | AL164: 173.6942959 | AM164: 182.5713012 | AN164: -8.877005348 | AO164: -2.75311943 | AQ164: 0.7194768542 | AR164: 3.72
A165: -574.7000122 | B165: 63 | E165: -531.7741433 | F165: -531.5862162 | G165: 198.25 | H165: 194.8611111 | I165: 188.1481481 | J165: 6.712962963 | K165: 10.10185185 | M165: 0.3713284676 | N165: 0.265 | T165: -419.7696025 | U165: -419.2058213 | V165: 216.0909091 | W165: 204.5454545 | X165: 195.4393939 | Y165: 9.106060606 | Z165: 20.65151515 | AB165: 0.9766864908 | AC165: -1.477 | AI165: -53.31179296 | AJ165: -51.62044922 | AK165: 207.9705882 | AL165: 189.4099822 | AM165: 177.1105169 | AN165: 12.29946524 | AO165: 30.8600713 | AQ165: 0.1047246972 | AR165: 3.72
A166: -574.5999756 | B166: 64 | E166: -531.3982891 | F166: -531.2103621 | G166: 208.3333333 | H166: 205.1944444 | I166: 181.2592593 | J166: 23.93518519 | K166: 27.07407407 | M166: -0.3123751968 | N166: 0.265 | T166: -418.64204 | U166: -418.0782588 | V166: 189.3636364 | W166: 192.0681818 | X166: 190.5505051 | Y166: 1.517676768 | Z166: -1.186868687 | AB166: 0.8861729089 | AC166: -1.477 | AI166: -49.92910549 | AJ166: -48.23776175 | AK166: =AVERAGEIFS(Sea_Level,Age_Myr,">"&AI166,Age_Myr,"<="&AI167) -> 180.4411765 | AL166: 194.8921569 | AM166: 174.1795405 | AN166: 20.71261636 | AO166: 6.261635968 | AQ166: -0.5590293094 | AR166: 3.72
A167: -574.5 | B167: 65 | E167: -531.022435 | F167: -530.8345079 | G167: 209 | H167: 206.7777778 | I167: 177.1759259 | J167: 29.60185185 | K167: 31.82407407 | M167: -0.849915035 | N167: 0.265 | T167: -417.5144776 | U167: -416.9506963 | V167: 170.75 | W167: 186.6439394 | X167: 184.1481481 | Y167: 2.495791246 | Z167: -13.39814815 | AB167: 0.3810091742 | AC167: -1.477 | AI167: -46.54641801 | AJ167: -44.85507428 | AK167: 196.2647059 | AL167: 181.7156863 | AM167: 168.5553575 | AN167: 13.16032878 | AO167: 27.70934839 | AQ167: -0.9612072893 | AR167: 3.72
A168: -574.4000244 | B168: 66 | E168: -530.6465808 | F168: -530.4586537 | G168: 203 | H168: 193.1666667 | I168: 177.8981481 | J168: 15.26851852 | K168: 25.10185185 | M168: -0.9897701826 | N168: 0.265 | T168: -416.3869151 | U168: -415.8231338 | V168: 199.8181818 | W168: 191.0378788 | X168: 182.8526936 | Y168: 8.185185185 | Z168: 16.96548822 | AB168: -0.3024329876 | AC168: -1.477 | AI168: -43.16373054 | AJ168: -41.4723868 | AK168: 168.4411765 | AL168: 165.7352941 | AM168: 160.2971876 | AN168: 5.438106556 | AO168: 8.143988909 | AQ168: -0.9136256959 | AR168: 3.72
A169: -574.2999878 | B169: 66 | E169: -530.2707267 | F169: -530.0827996 | G169: 167.5 | H169: 166.1666667 | I169: 181.0092593 | J169: -14.84259259 | K169: -13.50925926 | M169: -0.6665008617 | N169: 0.265 | T169: -415.2593526 | U169: -414.6955713 | V169: 202.5454545 | W169: 190.4545455 | X169: 174.7617845 | Y169: 15.69276094 | Z169: 27.78367003 | AB169: -0.8443633933 | AC169: -1.477 | AI169: -39.78104307 | AJ169: -38.08969933 | AK169: 132.5 | AL169: 157.6874629 | AM169: 151.8206576 | AN169: 5.866805308 | AO169: -19.32065756 | AQ169: -0.4385484855 | AR169: 3.72
A170: -574.2000122 | B170: 67 | E170: -529.8948725 | F170: -529.7069454 | G170: 128 | H170: 143.8333333 | I170: 183.1296296 | J170: -39.2962963 | K170: -55.12962963 | M170: -0.03136838022 | N170: 0.265 | T170: -414.1317901 | U170: -413.5680088 | V170: 169 | W170: 169.7929293 | X170: 161.5942761 | Y170: 8.198653199 | Z170: 7.405723906 | AB170: -0.9912067832 | AC170: -1.477 | AI170: -36.39835559 | AJ170: -34.70701186 | AK170: 172.1212121 | AL170: 150.2560903 | AM170: 139.8141216 | AN170: 10.44196871 | AO170: 32.30709051 | AQ170: 0.2417304351 | AR170: 3.72
A171: -574.0999756 | B171: 68 | E171: -529.5190183 | F171: -529.3310912 | G171: 136 | H171: 145.6666667 | I171: 184.1481481 | J171: -38.48148148 | K171: -48.14814815 | M171: 0.6184417149 | N171: 0.265 | T171: -413.0042276 | U171: -412.4404463 | V171: 137.8333333 | W171: 152.9747475 | X171: 148.0690236 | Y171: 4.905723906 | Z171: -10.23569024 | AB171: -0.6742535032 | AC171: -1.477 | AI171: -33.01566812 | AJ171: -31.32432438 | AK171: 146.1470588 | AL171: 125.7462864 | AM171: 132.6640919 | AN171: -6.917805506 | AO171: 13.48296692 | AQ171: 0.8089009987 | AR171: 3.72
A172: -574 | B172: 69 | E172: -529.1431642 | F172: -528.9552371 | G172: 173 | H172: 171.6666667 | I172: 184.0092593 | J172: -12.34259259 | K172: -11.00925926 | M172: 0.9788760585 | N172: 0.265 | T172: -411.8766651 | U172: -411.3128839 | V172: 152.0909091 | W172: 141.7626263 | X172: 138.0563973 | Y172: 3.706228956 | Z172: 14.03451178 | AB172: -0.04180951558 | AC172: -1.477 | AI172: -29.63298065 | AJ172: -27.94163691 | AK172: 58.97058824 | AL172: 102.8823529 | AM172: 124.0006932 | AN172: -21.11834027 | AO172: -65.03010497 | AQ172: 0.997577795 | AR172: 3.72
A173: -573.9000244 | B173: 69 | E173: -528.76731 | F173: -528.5793829 | G173: 206 | H173: 198.7777778 | I173: 182.287037 | J173: 16.49074074 | K173: 23.71296296 | M173: 0.8812834152 | N173: 0.265 | T173: -410.7491026 | U173: -410.1853214 | V173: 135.3636364 | W173: 128.3459596 | X173: 126.3695286 | Y173: 1.976430976 | Z173: 8.994107744 | AB173: 0.6101976091 | AC173: -1.477 | AI173: -26.25029318 | AJ173: -24.55894944 | AK173: 103.5294118 | AL173: 87.47058824 | AM173: 106.896118 | AN173: -19.42552981 | AO173: -3.366706278 | AQ173: 0.7194768542 | AR173: 3.72
A174: -573.7999878 | B174: 70 | E174: -528.3914558 | F174: -528.2035288 | G174: 217.3333333 | H174: 213.6111111 | I174: 180.1574074 | J174: 33.4537037 | K174: 37.17592593 | M174: 0.3713284676 | N174: 0.265 | T174: -409.6215401 | U174: -409.0577589 | V174: 97.58333333 | W174: 100.1944444 | X174: 115.5867003 | Y174: -15.39225589 | Z174: -18.003367 | AB174: 0.9766864908 | AC174: -1.477 | AI174: -22.8676057 | AJ174: -21.17626197 | AK174: 99.91176471 | AL174: 106.5106952 | AM174: 91.77520301 | AN174: 14.73549218 | AO174: 8.136561695 | AQ174: 0.1047246972 | AR174: 3.72
A175: -573.7000122 | B175: 71 | E175: -528.0156017 | F175: -527.8276746 | G175: 217.5 | H175: 214.1944444 | I175: 180.712963 | J175: 33.48148148 | K175: 36.78703704 | M175: -0.3123751968 | N175: 0.265 | T175: -408.4939776 | U175: -407.9301964 | V175: 67.63636364 | W175: 81.9520202 | X175: 109.233165 | Y175: -27.28114478 | Z175: -41.59680135 | AB175: 0.8861729089 | AC175: -1.477 | AI175: -19.48491823 | AJ175: -17.79357449 | AK175: 116.0909091 | AL175: 111.4322638 | AM175: 77.0493167 | AN175: 34.38294712 | AO175: 39.04159239 | AQ175: -0.5590293094 | AR175: 3.72
A176: -573.5999756 | B176: 72 | E176: -527.6397475 | F176: -527.4518204 | G176: 207.75 | H176: 204.25 | I176: 181.962963 | J176: 22.28703704 | K176: 25.78703704 | M176: -0.849915035 | N176: 0.265 | T176: -407.3664151 | U176: -406.8026339 | V176: 80.63636364 | W176: 80.96969697 | X176: 106.5648148 | Y176: -25.59511785 | Z176: -25.92845118 | AB176: 0.3810091742 | AC176: -1.477 | AI176: -16.10223076 | AJ176: -14.41088702 | AK176: 118.2941176 | AL176: 82.96167558 | AM176: 57.97314777 | AN176: 24.98852781 | AO176: 60.32096988 | AQ176: -0.9612072893 | AR176: 3.72
A177: -573.5 | B177: 72 | E177: -527.2638933 | F177: -527.0759663 | G177: 187.5 | H177: 181.1944444 | I177: 182.7685185 | J177: -1.574074074 | K177: 4.731481481 | M177: -0.9897701826 | N177: 0.265 | T177: -406.2388526 | U177: -405.6750714 | V177: 94.63636364 | W177: 93.59090909 | X177: 102.3021886 | Y177: -8.711279461 | Z177: -7.665824916 | AB177: -0.3024329876 | AC177: -1.477 | AI177: -12.71954328 | AJ177: -11.02819955 | AK177: 14.5 | AQ177: -0.9136256959 | AR177: 3.72
A178: -573.4000244 | B178: 73 | E178: -526.8880392 | F178: -526.7001121 | G178: 148.3333333 | H178: 156.2777778 | I178: 183.4722222 | J178: -27.19444444 | K178: -35.13888889 | M178: -0.6665008617 | N178: 0.265 | T178: -405.1112902 | U178: -404.5475089 | V178: 105.5 | W178: 103.9848485 | X178: 99.47474747 | Y178: 4.51010101 | Z178: 6.025252525 | AB178: -0.8443633933 | AC178: -1.477 | AI178: -9.33685581 | AJ178: -7.645512074 | AK178: -3.588235294 | AQ178: -0.4385484855 | AR178: 3.72
A179: -573.2999878 | B179: 74 | E179: -526.512185 | F179: -526.3242579 | G179: 133 | H179: 142.8611111 | I179: 184.2407407 | J179: -41.37962963 | K179: -51.24074074 | M179: -0.03136838022 | N179: 0.265 | T179: -403.9837277 | U179: -403.4199464 | V179: 111.8181818 | W179: 110.3787879 | X179: 100.0563973 | Y179: 10.32239057 | Z179: 11.76178451 | AB179: -0.9912067832 | AC179: -1.477 | AI179: -5.954168337 | AJ179: -4.262824601 | AK179: 39.58823529 | AQ179: 0.2417304351 | AR179: 3.72
A180: -573.2000122 | B180: 74 | E180: -526.1363309 | F180: -525.9484038 | G180: 147.25 | H180: 153.5 | I180: 184.9351852 | J180: -31.43518519 | K180: -37.68518519 | M180: 0.6184417149 | N180: 0.265 | T180: -402.8561652 | U180: -402.2923839 | V180: 113.8181818 | W180: 113.1212121 | X180: 101.9149832 | Y180: 11.20622896 | Z180: 11.90319865 | AB180: -0.6742535032 | AC180: -1.477 | AI180: -2.571480864 | AJ180: -0.8801371275 | AK180: -25.53846154 | AQ180: 0.8089009987 | AR180: 3.72
A181: -573.0999756 | B181: 75 | E181: -525.7604767 | F181: -525.5725496 | G181: 180.25 | H181: 179.9444444 | I181: 185.3240741 | J181: -5.37962963 | K181: -5.074074074 | M181: 0.9788760585 | N181: 0.265 | T181: -401.7286027 | U181: -401.1648214 | V181: 113.7272727 | W181: 112.4873737 | X181: 97.39057239 | Y181: 15.09680135 | Z181: 16.33670034 | AB181: -0.04180951558 | AC181: -1.477 | AI181: 0.811206609 | AJ181: 2.502550346 | AQ181: 0.997577795 | AR181: 3.72
A182: -573 | B182: 75 | E182: -525.3846225 | F182: -525.1966954 | G182: 212.3333333 | H182: 205.6111111 | I182: 185.4537037 | J182: 20.15740741 | K182: 26.87962963 | M182: 0.8812834152 | N182: 0.265 | T182: -400.6010402 | U182: -400.0372589 | V182: 109.9166667 | W182: 108.8207071 | X182: 92.97643098 | Y182: 15.84427609 | Z182: 16.94023569 | AB182: 0.6101976091 | AC182: -1.477
A183: -572.9000244 | B183: 75 | E183: -525.0087684 | F183: -524.8208413 | G183: 224.25 | H183: 220.1111111 | I183: 189.4444444 | J183: 30.66666667 | K183: 34.80555556 | M183: 0.3713284676 | N183: 0.265 | T183: -399.4734777 | U183: -398.9096965 | V183: 102.8181818 | W183: 99.03282828 | X183: 92.12289562 | Y183: 6.90993266 | Z183: 10.6952862 | AB183: 0.9766864908 | AC183: -1.477
A184: -572.7999878 | B184: 75 | E184: -524.6329142 | F184: -524.4449871 | G184: 223.75 | H184: 219.75 | I184: 196.3055556 | J184: 23.44444444 | K184: 27.44444444 | M184: -0.3123751968 | N184: 0.265 | T184: -398.3459152 | U184: -397.782134 | V184: 84.36363636 | W184: 75.69949495 | X184: 92.55723906 | Y184: -16.85774411 | Z184: -8.193602694 | AB184: 0.8861729089 | AC184: -1.477
A185: -572.7000122 | B185: 75 | E185: -524.25706 | F185: -524.069133 | G185: 211.25 | H185: 207.8888889 | I185: 203.6666667 | J185: 4.222222222 | K185: 7.583333333 | M185: -0.849915035 | N185: 0.265 | T185: -397.2183527 | U185: -396.6545715 | V185: 39.91666667 | W185: 59.72979798 | X185: 93.46632997 | Y185: -33.73653199 | Z185: -53.5496633 | AB185: 0.3810091742 | AC185: -1.477
A186: -572.5999756 | B186: 75 | E186: -523.8812059 | F186: -523.6932788 | G186: 188.6666667 | H186: 194.7222222 | I186: 206.2314815 | J186: -11.50925926 | K186: -17.56481481 | M186: -0.9897701826 | N186: 0.265 | T186: -396.0907902 | U186: -395.527009 | V186: 54.90909091 | W186: 64.21464646 | X186: 94.25420875 | Y186: -30.03956229 | Z186: -39.34511785 | AB186: -0.3024329876 | AC186: -1.477
A187: -572.5 | B187: 75 | E187: -523.5053517 | F187: -523.3174246 | G187: 184.25 | H187: 189.2222222 | I187: 200.9166667 | J187: -11.69444444 | K187: -16.66666667 | M187: -0.6665008617 | N187: 0.265 | T187: -394.9632277 | U187: -394.3994465 | V187: 97.81818182 | W187: 89.48484848 | X187: 93.94023569 | Y187: -4.455387205 | Z187: 3.877946128 | AB187: -0.8443633933 | AC187: -1.477
A188: -572.4000244 | B188: 75 | E188: -523.1294975 | F188: -522.9415705 | G188: 194.75 | H188: 197.5 | I188: 194.3333333 | J188: 3.166666667 | K188: 0.4166666667 | M188: -0.03136838022 | N188: 0.265 | T188: -393.8356652 | U188: -393.271884 | V188: 115.7272727 | W188: 111.8484848 | X188: 89.41414141 | Y188: 22.43434343 | Z188: 26.31313131 | AB188: -0.9912067832 | AC188: -1.477
A189: -572.2999878 | B189: 76 | E189: -522.7536434 | F189: -522.5657163 | G189: 213.5 | H189: 203.8611111 | I189: 191.4444444 | J189: 12.41666667 | K189: 22.05555556 | M189: 0.6184417149 | N189: 0.265 | T189: -392.7081028 | U189: -392.1443215 | V189: 122 | W189: 119.5151515 | X189: 86.52525253 | Y189: 32.98989899 | Z189: 35.47474747 | AB189: -0.6742535032 | AC189: -1.477
A190: -572.2000122 | B190: 76 | E190: -522.3777892 | F190: -522.1898621 | G190: 203.3333333 | H190: 193.7777778 | I190: 192.75 | J190: 1.027777778 | K190: 10.58333333 | M190: 0.9788760585 | N190: 0.265 | T190: -391.5805403 | U190: -391.016759 | V190: 120.8181818 | W190: 116.6363636 | X190: 95.14057239 | Y190: 21.49579125 | Z190: 25.67760943 | AB190: -0.04180951558 | AC190: -1.477
A191: -572.0999756 | B191: 77 | E191: -522.0019351 | F191: -521.814008 | G191: 164.5 | H191: 177.6111111 | I191: 197.8981481 | J191: -20.28703704 | K191: -33.39814815 | M191: 0.8812834152 | N191: 0.265 | T191: -390.4529778 | U191: -389.8891965 | V191: 107.0909091 | W191: 96.66414141 | X191: 105.9486532 | Y191: -9.284511785 | Z191: 1.142255892 | AB191: 0.6101976091 | AC191: -1.477
A192: -572 | B192: 77 | E192: -521.6260809 | F192: -521.4381538 | G192: 165 | H192: 175.75 | I192: 203.6759259 | J192: -27.92592593 | K192: -38.67592593 | M192: 0.3713284676 | N192: 0.265 | T192: -389.3254153 | U192: -388.761634 | V192: 62.08333333 | W192: 75.8459596 | X192: 112.246633 | Y192: -36.4006734 | Z192: -50.16329966 | AB192: 0.9766864908 | AC192: -1.477
A193: -571.9000244 | B193: 78 | E193: -521.2502267 | F193: -521.0622996 | G193: 197.75 | H193: 195.25 | I193: 207.5092593 | J193: -12.25925926 | K193: -9.759259259 | M193: -0.3123751968 | N193: 0.265 | T193: -388.1978528 | U193: -387.6340715 | V193: 58.36363636 | W193: 79.30050505 | X193: 114.0749158 | Y193: -34.77441077 | Z193: -55.71127946 | AB193: 0.8861729089 | AC193: -1.477
A194: -571.7999878 | B194: 78 | E194: -520.8743726 | F194: -520.6864455 | G194: 223 | H194: 218.5833333 | I194: 206.3981481 | J194: 12.18518519 | K194: 16.60185185 | M194: -0.849915035 | N194: 0.265 | T194: -387.0702903 | U194: -386.506509 | V194: 117.4545455 | W194: 109.3333333 | X194: 114.276936 | Y194: -4.943602694 | Z194: 3.177609428 | AB194: 0.3810091742 | AC194: -1.477
A195: -571.7000122 | B195: 79 | E195: -520.4985184 | F195: -520.3105913 | G195: 235 | H195: 231.4166667 | I195: 200.5833333 | J195: 30.83333333 | K195: 34.41666667 | M195: -0.9897701826 | N195: 0.265 | T195: -385.9427278 | U195: -385.3789466 | V195: 152.1818182 | W195: 141.3787879 | X195: 116.0446128 | Y195: 25.33417508 | Z195: 36.13720539 | AB195: -0.3024329876 | AC195: -1.477
A196: -571.5999756 | B196: 79 | E196: -520.1226642 | F196: -519.9347372 | G196: 236.25 | H196: 233.5 | I196: 199.0277778 | J196: 34.47222222 | K196: 37.22222222 | M196: -0.6665008617 | N196: 0.265 | T196: -384.8151653 | U196: -384.2513841 | V196: 154.5 | W196: 146.2878788 | X196: 120.2474747 | Y196: 26.04040404 | Z196: 34.25252525 | AB196: -0.8443633933 | AC196: -1.477
A197: -571.5 | B197: 79 | E197: -519.7468101 | F197: -519.558883 | G197: 229.25 | H197: 223 | I197: 200.4166667 | J197: 22.58333333 | K197: 28.83333333 | M197: -0.03136838022 | N197: 0.265 | T197: -383.6876028 | U197: -383.1238216 | V197: 132.1818182 | W197: 136.8333333 | X197: 131.5210438 | Y197: 5.312289562 | Z197: 0.6607744108 | AB197: -0.9912067832 | AC197: -1.477
A198: -571.4000244 | B198: 80 | E198: -519.3709559 | F198: -519.1830288 | G198: 203.5 | H198: 194.5833333 | I198: 202.7777778 | J198: -8.194444444 | K198: 0.7222222222 | M198: 0.6184417149 | N198: 0.265 | T198: -382.5600403 | U198: -381.9962591 | V198: 123.8181818 | W198: 130.9090909 | X198: 140.9250842 | Y198: -10.01599327 | Z198: -17.10690236 | AB198: -0.6742535032 | AC198: -1.477
A199: -571.2999878 | B199: 80 | E199: -518.9951017 | F199: -518.8071747 | G199: =AVERAGEIFS(Sea_Level,Age_Myr,">"&E199,Age_Myr,"<="&E200) -> 151 | H199: 168.3333333 | I199: 204.1481481 | J199: -35.81481481 | K199: -53.14814815 | M199: 0.9788760585 | N199: 0.265 | T199: -381.4324778 | U199: -380.8686966 | V199: 136.7272727 | W199: 135.1540404 | X199: 143.6986532 | Y199: -8.544612795 | Z199: -6.971380471 | AB199: -0.04180951558 | AC199: -1.477
A200: -571.2000122 | B200: 80 | E200: -518.6192476 | F200: -518.4313205 | G200: 150.5 | H200: 159.6666667 | I200: 204.9259259 | J200: -45.25925926 | K200: -54.42592593 | M200: 0.8812834152 | N200: 0.265 | T200: -380.3049153 | U200: -379.7411341 | V200: 144.9166667 | W200: 148.3964646 | X200: 143.2845118 | Y200: 5.111952862 | Z200: 1.632154882 | AB200: 0.6101976091 | AC200: -1.477
... 5712 more rows

Sheet Documentation
B1: Data Source:
B2: http://hydro.geosc.psu.edu/Sed_html/exxon.sea
B3: Text file.
B4: Penn State University, Geosciences
B6: *********************************************************
B7: Original Source:
B8: Vail, P.R., Mitchum, R.M., Jr., Todd, R.G., Widmier, J.M.,
B9: Thompson, S., III, Sangree, J.B., Bubb, J.N., and
B10: Hatlelid, W.G., 1977, Seismic stratigraphy and global
B11: changes of sea level, in Payton, C.E., ed., Seismic stratigraphy—
B12: Applications to hydrocarbon exploration:
B13: American Association of Petroleum Geologists Memoir
B14: 26, p. 49–212.

Sheet Charts

Sheet Statistics
A3: Table E32.1.1 – Information about the Exxon Sea Level Time-Series.
A4: Description | B4: Details for this Time-Series
A6: Data Source
A7: Brief description of the data | B7: Global changes of sea level.
A8: Abbreviated references | B8: Vail et al., 1977
A9: Details about the data source | B9: http://hydro.geosc.psu.edu/Sed_html/exxon.sea
A11: Original Time-Series | B11: Vail et al., 1977
A12: Beginning time | B12: 591 Ma
A13: Ending time | B13: 0.2 Ma
A14: No. of samples (observations) | B14: 5910
A15: Estimated ages: Mean error | B15: 1.5% (inferred)
A16: Estimated ages: Minimum error | B16: 0.5% (inferred)
A17: Estimated ages: Maximum error | B17: 3.0% (inferred)
B20: Table E32.2.1 – Exxon Sea Level: Data Preparation.
B21: Preparation Summary | C21: Test # 1 | D21: Test # 2 | E21: Test # 3 | F21: Test # 4 | G21: Test # 5 | H21: Test # 6
B23: Data Preparation Steps | C23: 3.38-myr | D23: 3.38-myr | E23: 10.1-myr | F23: 10.1-myr | G23: 30.4-myr | H23: 91.3-myr
B25: Bin Sizes for Histogram | C25: 376-kyr | D25: 376-kyr | E25: 1.13-myr | F25: 1.13-myr | G25: 3.38-myr | H25: 10.1-myr
B26: Detrending Method | C26: BP filter | D26: BP filter | E26: BP filter | F26: BP filter | G26: BP filter | H26: BP filter
B27: Band-Pass Filter Used | C27: 1/9 cell | D27: 1/9 cell | E27: 1/9 cell | F27: 1/9 cell | G27: 1/9 cell | H27: 1/9 cell
B28: Moving Avr. Indentation | C28: 4 cell | D28: 4 cell | E28: 4 cell | F28: 4 cell | G28: 4 cell | H28: 4 cell
B29: Empty Bins Interpolated | C29: 0 | D29: 0 | E29: 0 | F29: 0 | G29: 0 | H29: 0
B30: Beginning Time of Test | C30: 589 Ma | D30: 296 Ma | E30: 586 Ma | F30: 295 Ma | G30: 576 Ma | H30: 552 Ma
B31: Ending Time of Test | C31: 296 Ma | D31: 2 Ma | E31: 296 Ma | F31: 4 Ma | G31: 12 Ma | H31: 45 Ma
B33: Basic Time-Series Stats | C33: 3.38-myr | D33: 3.38-myr | E33: 10.1-myr | F33: 10.1-myr | G33: 30.4-myr | H33: 91.3-myr
B35: Number of observations | C35: 782 | D35: 783 | E35: 258 | F35: 259 | G35: 167 | H35: 51
B36: Approximate # of cycles | C36: 87 | D36: 87 | E36: 29 | F36: 29 | G36: 18 | H36: 6
B38: Minimum | C38: -60.287 | D38: -98.37 | E38: -55.711 | F38: -81.027 | G38: -65.03 | H38: -79.948
B39: 1st Quartile | C39: -12.373 | D39: -5.922 | E39: -12.461 | F39: -9.521 | G39: -11.769 | H39: -17.545
B40: 2nd Quartile (Median) | C40: 3.648 | D40: 1.648 | E40: 2.982 | F40: 1.258 | G40: 2.817 | H40: 12.925
B41: 3rd Quartile | C41: 13.13 | D41: 8.283 | E41: 15.706 | F41: 12.484 | G41: 13.757 | H41: 31.698
B42: Maximum | C42: 42.926 | D42: 50.38 | E42: 46.016 | F42: 61.461 | G42: 60.321 | H42: 65.22
B43: Average (Mean) | C43: 0.002 | D43: 0.013 | E43: 0.081 | F43: 0.214 | G43: 1.098 | H43: 4.219
B45: Standard Error of Mean | C45: 0.70148 | D45: 0.58095 | E45: 1.29254 | F45: 1.23306 | G45: 1.6985 | H45: 4.81427
B46: Lower C.L. of the Mean | C46: -1.37482 | D46: -1.12774 | E46: -2.46405 | F46: -2.21406 | G46: -2.25577 | H46: -5.45119
B47: Upper C.L. of the Mean | C47: 1.37921 | D47: 1.15308 | E47: 2.6266 | F47: 2.6422 | G47: 4.45114 | H47: 13.88833
B48: Variance | C48: 384.805 | D48: 264.267 | E48: 431.032 | F48: 393.79 | G48: 481.781 | H48: 1182.039
B49: Standard Deviation | C49: 19.616 | D49: 16.256 | E49: 20.761 | F49: 19.844 | G49: 21.949 | H49: 34.381
B51: Skewness | C51: -0.7 | D51: -1.56 | E51: -0.61 | F51: -0.52 | G51: -0.33 | H51: -0.37
B52: Kurtosis | C52: 0.28 | D52: 6.38 | E52: -0.16 | F52: 1.86 | G52: 0.25 | H52: -0.49
B55: Table E32.3.1 – Results from Exxon Sea Level Tests.
B56: Preparation Summary | C56: Test # 1 | D56: Test # 2 | E56: Test # 3 | F56: Test # 4 | G56: Test # 5 | H56: Test # 6
B58: Least Squares Tests TestPreparation Steps | C58: 3.38-myr | D58: 3.38-myr | E58: 10.1-myr | F58: 10.1-myr | G58: 30.4-myr | H58: 91.3-myr
F59: 0.99
B60: Stat. Signif. from p-value | C60: 0.999 | D60: 0.85 | E60: 0.99 | F60: 0.99 | G60: N.S. | H60: 0.9999
B61: Practical Signif. (Adj. R2) | C61: 0.022 | D61: 0.002 | E61: 0.013 | F61: 0.017 | G61: 0.006 | H61: 0.284
B63: Lomb-Scargle Period’gm
B65: Estimated Wavelength | C65: 2.700-myr | D65: 3.196-myr | E65: 9.24-myr | F65: 9.79-myr | G65: 33.8-myr | H65: 89.2-myr
B66: p-value | C66: 0 | D66: 0 | E66: 0.00139 | F66: 0 | G66: 0.08787 | H66: 0.00733
B67: Secondary Wavelength | C67: --- | D67: --- | E67: --- | F67: --- | G67: --- | H67: ---
B69: Smoothed Periodogram
B71: Estimated Wavelength | C71: 2.844-myr | D71: 3.363-myr | E71: 9.40-myr | F71: 10.1-myr | G71: 29.9-myr | H71: 86.7-myr
B72: Confidence Level | C72: 0.9999 | D72: 0.9999 | E72: 0.9999 | F72: 0.9999 | G72: 0.95 | H72: 0.95
B73: Secondary Wavelength | C73: --- | D73: --- | E73: --- | F73: --- | G73: --- | H73: ---
B75: Correlation & Lag Tests | C75: 3.38-myr | D75: 3.38-myr | E75: 10.1-myr | F75: 10.1-myr | G75: 30.4-myr | H75: 91.3-myr
B77: Correlation with lag | C77: 0.152 | D77: 0.053 | E77: 0.13 | F77: 0.145 | G77: 0.244 | H77: 0.546
B78: Confidence Level | C78: 0.999 | D78: 0.6 | E78: 0.85 | F78: 0.9 | G78: 0.9 | H78: 0.999
B79: Offset used with Model | C79: 1.31-myr | D79: 0.26-myr | E79: 2.98-myr | F79: -1.48-myr | G79: 3.72-myr | H79: -19.9-myr

Sheet Input_Data
A1: File Name | B1: Sea_Level_e_3-myr.txt | C1: Sea_Level_f_3-myr.txt | D1: Sea_Level_g_10-myr.txt | E1: Sea_Level_h_10-myr.txt | F1: Sea_Level_i_30-myr.txt | G1: Sea_Level_k_91-myr.txt
A2: Input data | B2: -0.676 | C2: 16.204 | D2: -1.989 | E2: 2.598 | F2: 11.286 | G2: 33.383
A3: used in | B3: -1.102 | C3: 19.009 | D3: -0.034 | E3: -11.626 | F3: 26.121 | G3: 18.602
A4: periodogram | B4: -1.028 | C4: -28.546 | D4: 6.888 | E4: -5.482 | F4: -4.902 | G4: 20.477
A5: scripts. | B5: 0.167 | C5: -13 | D5: 11.674 | E5: -2.987 | F5: -23.926 | G5: 25.679
B6: 1.167 | C6: 6.361 | D6: 16.503 | E6: 22.032 | F6: 9.026 | G6: 53.042
B7: 0.889 | C7: -10.417 | D7: -0.763 | E7: 3.699 | F7: -4.054 | G7: 31.668
B8: 0.38 | C8: 15.62 | D8: -31.657 | E8: -18.563 | F8: 10.733 | G8: 32.528
B9: -0.565 | C9: 5.759 | D9: -24.646 | E9: -0.604 | F9: 8.645 | G9: -10.728
B10: -1.176 | C10: -21.963 | D10: -6.874 | E10: -24.555 | F10: 24.321 | G10: -79.948
B11: -0.12 | C11: 4.37 | D11: 6.909 | E11: -2.182 | F11: -4.446 | G11: -41.452
B12: 0.491 | C12: -6.88 | D12: 16.249 | E12: 20.99 | F12: -1.556 | G12: -0.35
B13: -1.037 | C13: -11.852 | D13: 20.128 | E13: 20.912 | F13: -4.552 | G13: 12.925
B14: -1.037 | C14: 32.231 | D14: 15.796 | E14: -3.742 | F14: -5.441 | G14: 31.728
B15: 0.046 | C15: -6.741 | D15: 12.822 | E15: 18.519 | F15: 13.804 | G15: 59.471
B16: 0.343 | C16: 22.954 | D16: -6.493 | E16: 7.297 | F16: -4.378 | G16: -15.269
B17: 0.222 | C17: -5.519 | D17: -24.399 | E17: -41.051 | F17: -7.228 | G17: -48.013
B18: -0.056 | C18: -4.213 | D18: 15.48 | E18: -17.041 | F18: -2.979 | G18: -36.594
B19: -0.139 | C19: 12.065 | D19: 13.838 | E19: 26.776 | F19: 4.586 | G19: 0.122
B20: -0.185 | C20: -25.213 | D20: -40.919 | E20: 41.655 | F20: 27.965 | G20: 18.792
B21: -1.028 | C21: -23.907 | D21: -29.001 | E21: 19.269 | F21: 5.73 | G21: 8.556
B22: 1.778 | C22: 7.148 | D22: 8.878 | E22: -32.205 | F22: 18.294 | G22: 39.299
B23: 8.139 | C23: 23.704 | D23: 21.457 | E23: -7.366 | F23: -24.872 | G23: 65.22
B24: 12.704 | C24: 18.593 | D24: 20.891 | E24: 13.345 | F24: 12.729 | G24: 61.979
B25: 13.102 | C25: -3.574 | D25: -4.606 | E25: 1.13 | F25: -8.397 | G25: -15.921
B26: 6.38 | C26: -16.611 | D26: -20.748 | E26: -18.69 | F26: -3.855 | G26: -40.743
B27: -7.009 | C27: -16.472 | D27: 4.161 | E27: -2.862 | F27: 22.015 | G27: -74.932
B28: -15.315 | C28: -10.944 | D28: 19.351 | E28: -6.875 | F28: 28.557 | G28: -31.741
B29: -14.324 | C29: -6.648 | D29: 11.886 | E29: -13.009 | F29: 32.25 | G29: 17.577
B30: -9.852 | C30: -2.204 | D30: -19.315 | E30: 2.554 | F30: -3.283 | G30: -22.534
B31: -6.13 | C31: 3.852 | D31: -21.062 | E31: -7.153 | F31: -4.121 | G31: -14.394
B32: -4.185 | C32: 9.546 | D32: -5.815 | E32: -1.795 | F32: -39.562 | G32: -21.036
B33: -2.583 | C33: 11.019 | D33: 13.554 | E33: 12.471 | F33: -52.252 | G33: 15.018
B34: 0.917 | C34: 11.046 | D34: 21.635 | E34: 1.238 | F34: -18.525 | G34: 33.316
B35: 2.639 | C35: 10.796 | D35: 18.261 | E35: 6.122 | F35: -6.088 | G35: 22.641
B36: 2.667 | C36: 9.685 | D36: 7.924 | E36: 14.652 | F36: 2.693 | G36: -41.99
B37: 1.852 | C37: 3.037 | D37: -26.296 | E37: 3.542 | F37: 0.566 | G37: -30.073
B38: 2.463 | C38: -17.093 | D38: -20.397 | E38: 9.502 | F38: -11.826 | G38: -5.869
B39: 1.407 | C39: -27.704 | D39: 13.367 | E39: -1.855 | F39: 15.769 | G39: -15.628
B40: 1.491 | C40: -7.454 | D40: 18.387 | E40: -10.497 | F40: 26.495 | G40: 20.942
B41: 1.917 | C41: 12.269 | D41: 17.024 | E41: -17.902 | F41: 18.46 | G41: -19.17
B42: 1.944 | C42: 17.963 | D42: -35.502 | E42: -23.896 | F42: 5.721 | G42: 23.597
B43: 1.833 | C43: 5.685 | D43: -4.162 | E43: -9.053 | F43: -40.714 | G43: 16.118
B44: 2.056 | C44: -4.731 | D44: 11.606 | E44: 4.765 | F44: -17.57 | G44: -46.544
B45: 2.046 | C45: 31.13 | D45: -12.906 | E45: 10.553 | F45: -5.484 | G45: -1.769
B46: 1.361 | C46: 21.222 | D46: 21.386 | E46: 10.172 | F46: 3.649 | G46: -11.976
B47: -0.167 | C47: -12.222 | D47: -5.715 | E47: -7.896 | F47: 41.392 | G47: 53.337
B48: 0.75 | C48: -29.25 | D48: -23.378 | E48: 4.425 | F48: 34.222 | G48: 37.234
B49: 3.241 | C49: -28.5 | D49: 13.622 | E49: 2.678 | F49: 29.542 | G49: 35.429
B50: 8.398 | C50: -19.806 | D50: 0.077 | E50: 8.901 | F50: 18.163 | G50: 13.805
B51: 13.204 | C51: -10.806 | D51: 30.746 | E51: 8.476 | F51: -10.703 | G51: 3.324
B52: 11.704 | C52: -1.472 | D52: -34.655 | E52: -11.08 | F52: -46.684 | G52: 36.012
B53: 5.889 | C53: 8.111 | D53: 10.446 | E53: 2.818 | F53: -6.372
B54: -21.185 | C54: 11.898 | D54: 16.62 | E54: -18.598 | F54: 0.783
B55: -32.213 | C55: 14.065 | D55: -44.639 | E55: 11.106 | F55: -45.423
B56: -21.352 | C56: 13.843 | D56: 16.836 | E56: 16.47 | F56: 5.26
B57: -6.519 | C57: 13.87 | D57: 12.836 | E57: 9.024 | F57: -18.305
B58: 9.574 | C58: 15.481 | D58: 4.77 | E58: -33.67 | F58: -12.638
B59: 15.435 | C59: 17.12 | D59: -20.52 | E59: -24.494 | F59: 10.651
B60: 13.88 | C60: 11.898 | D60: 9.793 | E60: 15.859 | F60: 13.011
B61: 16.546 | C61: -4.157 | D61: 14.082 | E61: 20.758 | F61: 7.043
B62: 20.306 | C62: -21.269 | D62: -50.868 | E62: -10.993 | F62: 41.145
B63: 18.444 | C63: -28 | D63: 17.632 | E63: 5.714 | F63: 5.171
B64: 8.889 | C64: -26.889 | D64: 31.097 | E64: 13.711 | F64: -11.773
B65: -40.5 | C65: -11.556 | D65: 3.763 | E65: -12.284 | F65: -16.399
B66: -40.713 | C66: 4.889 | D66: 13.24 | E66: -7.25 | F66: -22.461
B67: -26.491 | C67: 15.444 | D67: -0.76 | E67: 11.79 | F67: 2.925
B68: -9.88 | C68: 18.056 | D68: -41.107 | E68: 14.091 | F68: 1.037
B69: 9.231 | C69: 14.667 | D69: 6.332 | E69: 16.927 | F69: -3.628
B70: 12.62 | C70: 4.537 | D70: 30.241 | E70: 12.497 | F70: 13.482
B71: 8.148 | C71: -5.713 | D71: 9.554 | E71: 8.549 | F71: 13.711
B72: 6.343 | C72: 18.648 | D72: 8.852 | E72: 1.16 | F72: 11.263
B73: 5.481 | C73: -10.324 | D73: 15.933 | E73: -10.752 | F73: 7.718
B74: 4.676 | C74: -31.463 | D74: -52.291 | E74: -16.782 | F74: 27.609
B75: 3.833 | C75: -4.278 | D75: -36.047 | E75: -9.377 | F75: 33.429
B76: 4.361 | C76: -9.472 | D76: 26.645 | E76: 3.832 | F76: 10.151
B77: 6.833 | C77: 22.861 | D77: 33.653 | E77: 0.888 | F77: 12.221
B78: 9.444 | C78: 5.833 | D78: 3.906 | E78: -6.253 | F78: -38.965
B79: 8.194 | C79: -11.593 | D79: -42.009 | E79: -8.432 | F79: -20.341
B80: -2.472 | C80: 5.046 | D80: 0.824 | E80: -5.842 | F80: 16.969
B81: -11.778 | C81: -14.454 | D81: 24.112 | E81: 6.431 | F81: -0.366
B82: -13.667 | C82: 13.269 | D82: 17.173 | E82: 9.188 | F82: -9.414
B83: -14.25 | C83: 15.815 | D83: -44.041 | E83: 3.455 | F83: -27.259
B84: -10.694 | C84: -25.62 | D84: 0.616 | E84: -13.73 | F84: -28.684
B85: -0.972 | C85: -2.648 | D85: 21.495 | E85: -24.902 | F85: -20.831
B86: 4.602 | C86: -0.926 | D86: 9.277 | E86: -10.281 | F86: -5.923
B87: 5.741 | C87: -6.546 | D87: -13.559 | E87: 7.742 | F87: -9.58
B88: 6.935 | C88: 27.815 | D88: 6.955 | E88: 0.137 | F88: 5.233
B89: 7.602 | C89: -21.185 | D89: 12.429 | E89: 4.137 | F89: 26.991
B90: 9.889 | C90: 6.343 | D90: -8.215 | E90: 9.846 | F90: 6.449
B91: 11.694 | C91: 5.176 | D91: 10.297 | E91: -5.668 | F91: 43.145
B92: 9.389 | C92: -26.704 | D92: 18.155 | E92: -5.062 | F92: -6.886
B93: -0.028 | C93: 10.241 | D93: 2.246 | E93: 6.496 | F93: -22.295
B94: -8.833 | C94: 3.324 | D94: 20.593 | E94: 13.077 | F94: -18.039
B95: -12.926 | C95: -7.407 | D95: -21.722 | E95: 10.247 | F95: -2.719
B96: -9.509 | C96: 23.296 | D96: -38.985 | E96: 5.085 | F96: 12.409
B97: -6.565 | C97: -1.315 | D97: 33.572 | E97: -3.766 | F97: -1.833
B98: -4.37 | C98: 2.852 | D98: -2.855 | E98: -8.774 | F98: -30.177
B99: -3.852 | C99: 12.722 | D99: 9.684 | E99: -23.715 | F99: -12.147
B100: -2.907 | C100: -27.722 | D100: 35.542 | E100: -13.191 | F100: 2.457
B101: 0.593 | C101: 5.278 | D101: -50.646 | E101: 19.162 | F101: 11.206
B102: 3.648 | C102: 4.056 | D102: 0.482 | E102: 16.998 | F102: -4.781
B103: 3.926 | C103: -13.278 | D103: -28.928 | E103: 18.008 | F103: 7.414
B104: 3.972 | C104: 20.685 | D104: -45.316 | E104: 11.327 | F104: -14.079
B105: 2.639 | C105: -6.231 | D105: 22.969 | E105: -2.233 | F105: 15.751
B106: 1.806 | C106: 13.657 | D106: 17.046 | E106: -0.87 | F106: 24.776
B107: 1.917 | C107: -7.398 | D107: -21.307 | E107: -18.142 | F107: 42.554
B108: 2.556 | C108: -10.981 | D108: 8.995 | E108: -26.332 | F108: 23.479
B109: 2.444 | C109: 7.88 | D109: 16.505 | E109: -21.879 | F109: -17.138
B110: 2.361 | C110: -6.981 | D110: -2.668 | E110: -8.061 | F110: -21.641
B111: 4.12 | C111: 5.907 | D111: -14.546 | E111: 12.747 | F111: -28.08
B112: 6.093 | C112: 15.306 | D112: 16.029 | E112: 21.673 | F112: -25.253
B113: 9.204 | C113: -7.37 | D113: 13.354 | E113: 12.554 | F113: -22.946
B114: 9.954 | C114: 6.574 | D114: -19.605 | E114: -6.274 | F114: 0.838
B115: -0.389 | C115: -6.426 | D115: -3.009 | E115: -8.112 | F115: 6.786
B116: -11.056 | C116: -5.426 | D116: 16.223 | E116: 7.113 | F116: 19.329
B117: -20.778 | C117: 12.12 | D117: -2.67 | E117: 10.255 | F117: -0.913
B118: -19.861 | C118: -12.574 | D118: -21.832 | E118: 18.427 | F118: 12.427
B119: -12.324 | C119: -5.296 | D119: -1.659 | E119: 20.991 | F119: 4.636
B120: -2.056 | C120: 17.537 | D120: -7.407 | E120: 3.194 | F120: -28.658
B121: 7.361 | C121: -13.639 | D121: 10.516 | E121: -16.291 | F121: -11.432
B122: 12.25 | C122: -9.333 | D122: -4.908 | E122: -9.071 | F122: 20.522
B123: 9.25 | C123: -2.972 | D123: 7.231 | E123: -16.904 | F123: 22.566
B124: 5.176 | C124: -8.741 | D124: 7.855 | E124: -27.347 | F124: 18.53
B125: 2.954 | C125: -3.296 | D125: -3.367 | E125: -1.771 | F125: -31.137
B126: 2.787 | C126: -0.852 | D126: 15.103 | E126: -10.564 | F126: -39.048
B127: 9.315 | C127: 2.12 | D127: 13.757 | E127: -5.923 | F127: -8.156
B128: 17.5 | C128: 3.315 | D128: -13.171 | E128: 13.423 | F128: 6.295
B129: 16.722 | C129: 1.87 | D129: 3.92 | E129: 10.663 | F129: 9.964
B130: 4.028 | C130: 1.231 | D130: 28.662 | E130: 3.673 | F130: 26.232
B131: -38 | C131: 0.176 | D131: 15.87 | E131: 6.857 | F131: 39.65
B132: -51.722 | C132: 1.565 | D132: -17.924 | E132: 2.281 | F132: 16.266
B133: -26.139 | C133: 4.62 | D133: -16.773 | E133: 0.172 | F133: -1.755
B134: 15.556 | C134: 6.981 | D134: -35.33 | E134: -10.551 | F134: -13.909
B135: 32.083 | C135: 6.537 | D135: -7.143 | E135: -7.975 | F135: -59.808
B136: 29.454 | C136: 2.898 | D136: 8.21 | E136: 1.258 | F136: -27.399
B137: 5.815 | C137: -5.852 | D137: -6.763 | E137: 5.54 | F137: 8.568
B138: 4.231 | C138: -10.963 | D138: 11.616 | E138: 0.521 | F138: 37.079
B139: -3.269 | C139: -9.769 | D139: -7.692 | E139: 13.753 | F139: 6.178
B140: -36.648 | C140: -3.296 | D140: 10.005 | E140: 19.701 | F140: -16.141
B141: -22.676 | C141: 7.037 | D141: 1.902 | E141: 6.234 | F141: -32.052
B142: 4.713 | C142: 9.472 | D142: -8.158 | E142: 16.624 | F142: -11.765
B143: 21.13 | C143: 5.611 | D143: -24.116 | E143: -8.801 | F143: 16.812
B144: 31.231 | C144: -4.139 | D144: 9.831 | E144: -14.676 | F144: 34.328
B145: 28.861 | C145: -5.083 | D145: 24.492 | E145: -12.843 | F145: 29.75
B146: 13.139 | C146: -0.722 | D146: 21.501 | E146: -9.862 | F146: -4.349
B147: -37.694 | C147: 4.583 | D147: 1.592 | E147: 10.391 | F147: -11.489
B148: -52.111 | C148: 3.694 | D148: -31.742 | E148: 35.95 | F148: 7.524
B149: -31.509 | C149: 2.407 | D149: 11.822 | E149: 30.886 | F149: 19.045
B150: 19.88 | C150: 7.435 | D150: 20.652 | E150: -34.609 | F150: 5.361
B151: 38.685 | C151: 6.713 | D151: -1.187 | E151: 7.985 | F151: 13.035
B152: 17.907 | C152: -19.704 | D152: -13.398 | E152: -53.119 | F152: -16.062
B153: -9.343 | C153: -17.602 | D153: 16.965 | E153: -28.438 | F153: 2.817
B154: -23.648 | C154: 7.343 | D154: 27.784 | E154: 2.168 | F154: 7.003
B155: -14.148 | C155: 18.065 | D155: 7.406 | E155: -2.565 | F155: -54.352
B156: 10.102 | C156: 18.509 | D156: -10.236 | E156: -3.941 | F156: -2.753
B157: 27.074 | C157: -2.296 | D157: 14.035 | E157: -3.718 | F157: 30.86
B158: 31.824 | C158: -19.481 | D158: 8.994 | E158: 3.939 | F158: 6.262
B159: 25.102 | C159: -20.87 | D159: -18.003 | E159: 5.226 | F159: 27.709
B160: -13.509 | C160: -9.481 | D160: -41.597 | E160: 21.052 | F160: 8.144
B161: -55.13 | C161: 2.63 | D161: -25.928 | E161: 21.557 | F161: -19.321
B162: -48.148 | C162: 6.944 | D162: -7.666 | E162: 11.907 | F162: 32.307
B163: -11.009 | C163: 7.25 | D163: 6.025 | E163: 11.069 | F163: 13.483
B164: 23.713 | C164: 5.694 | D164: 11.762 | E164: -2.276 | F164: -65.03
B165: 37.176 | C165: 4.083 | D165: 11.903 | E165: -22.832 | F165: -3.367
B166: 36.787 | C166: 3.444 | D166: 16.337 | E166: 7.796 | F166: 8.137
B167: 25.787 | C167: 6.417 | D167: 16.94 | E167: -12.153 | F167: 39.042
B168: 4.731 | C168: 13.083 | D168: 10.695 | E168: -1.476 | F168: 60.321
B169: -35.139 | C169: 16.361 | D169: -8.194 | E169: -9.286
B170: -51.241 | C170: 14.426 | D170: -53.55 | E170: -6.049
B171: -37.685 | C171: -14.713 | D171: -39.345 | E171: -11.202
B172: -5.074 | C172: -53.241 | D172: 3.878 | E172: 0.121
B173: 26.88 | C173: -37.63 | D173: 26.313 | E173: -2.889
B174: 34.806 | C174: -5.833 | D174: 35.475 | E174: -2.571
B175: 27.444 | C175: 10.583 | D175: 25.678 | E175: -6.088
B176: 7.583 | C176: 18.111 | D176: 1.142 | E176: 4.347
B177: -17.565 | C177: 14.167 | D177: -50.163 | E177: 11.319
B178: -16.667 | C178: 11.639 | D178: -55.711 | E178: 15.396
B179: 0.417 | C179: 13.185 | D179: 3.178 | E179: 5.063
B180: 22.056 | C180: 13.796 | D180: 36.137 | E180: 7.797
B181: 10.583 | C181: 8.157 | D181: 34.253 | E181: -5.635
B182: -33.398 | C182: -13.269 | D182: 0.661 | E182: 12.923
B183: -38.676 | C183: -23.926 | D183: -17.107 | E183: 26.519
B184: -9.759 | C184: -17.843 | D184: -6.971 | E184: -32.496
B185: 16.602 | C185: -4.37 | D185: 1.632 | E185: 3.848
B186: 34.417 | C186: 5.324 | D186: 15.781 | E186: 2.638
B187: 37.222 | C187: 7.463 | D187: -9.33 | E187: -1.362
B188: 28.833 | C188: 10.046 | D188: -16.091 | E188: -4.084
B189: 0.722 | C189: 14.463 | D189: -11.902 | E189: -19.692
B190: -53.148 | C190: 15.269 | D190: 32.17 | E190: -4.106
B191: -54.426 | C191: 11.315 | D191: 13.756 | E191: 4.311
B192: -28.426 | C192: -8.907 | D192: 24.724 | E192: 8.038
B193: 11.102 | C193: -32.435 | D193: -2.293 | E193: -1.593
B194: 22.787 | C194: -21.435 | D194: 8.404 | E194: 14.487
B195: 19.815 | C195: -1.056 | D195: -16.891 | E195: 12.13
B196: 15.537 | C196: 6.556 | D196: -45.125 | E196: 7.375
B197: 14.481 | C197: 11.583 | D197: 10.893 | E197: -10.868
B198: 14.111 | C198: 7.361 | D198: 28.166 | E198: -16.577
B199: 7.093 | C199: 3.296 | D199: 20.223 | E199: 12.6
B200: -13.324 | C200: 1.509 | D200: -27.408 | E200: 20.643
... 584 more rows

Sheet Periodograms
B1: Periodogram for 3.38-myr test 1.
B46: Periodogram for 3.38-myr test 2.
B97: Periodogram for 10.1-myr test 1.
B148: Periodogram for 10.1-myr test 2.
B199: Periodogram for 30.4-myr test.
B250: Periodogram for 91.3-myr test.
